Workbook

Sheet À PROPOS
B1: EI2 - ConfortThermiqueR
B3: Modèle Impacts Économiques des Initiatives d'Électrification (EI2)
B6: Numéro de version: ctr-2021-10-22
B8: Les modèles « Impacts économiques des initiatives d’électrification » (EI2) reprennent la structure du modèle Jobs and Economic Development Impact (JEDI) élaboré en 2002 pour montrer les avantages économiques du développement de centrales éoliennes terrestres aux États-Unis. Ce modèle a été adapté à l’échelle des provinces et territoritoires canadiens avec pour premier objectif de fournir aux responsables gouvernementaux, aux décideurs et autres utilisateurs potentiels un outil pour déterminer les retombées économiques locales associées aux mesures d'efficacité énergétique telles que l'installation de technologies de confort thermique. Le second objectif est de faciliter l’accès au modèle et son utilisation à grande échelle.
B13: Conformément à ces objectifs, un format convivial facile à modifier et adapté à différents niveaux d'informations sur le projet et de compétences de l'utilisateur a été privilégié. Cela offre une plus grande flexibilité aux utilisateurs peu habitués aux tableurs ou qui ne maîtrisent pas l'analyse d'impacts économiques, mais aussi aux utilisateurs plus expérimentés et qualifiés qui ont besoin de ce type spécifique d'analyse.
B16: Les modèles EI2 ont été adaptés par Éloïse Edom, associée de recherche à l'Institut de l'énergie Trottier, dans le cadre de l'Initiative de modélisation énergétique soutenue par RNCan.
B17: Institut de l'énergie Trottier
B18: Initiative de modélisation énergétique
B20: Pour plus d'information sur la suite de modèles EI2 visitez le site https://emi-ime.ca/ei2/.
B21: Ou contacter:
B22: info@emi-ime.ca
B23: eloise.edom@polymtl.ca

Sheet FAQ
B2: EI2 - ConfortThermiqueR
B4: Modèle Impacts Économiques des Initiatives d'Électrification (EI2)
B6: Foire aux questions (FAQ)
B9: Comment savoir si je dispose de la version la plus récente du modèle EI2 ?
B10: La version la plus récente du modèle est disponible sur le site web de l'initiative de modélisation énergétique à l'adresse https://emi-ime.ca/.
B12: Comment savoir de quelle version du modèle EI2 je dispose ?
B13: La version (le numéro de la version) du modèle que vous utilisez actuellement est indiquée dans la feuille de travail « À propos d'EI2 ».
B15: À l'ouverture du modèle, je reçois un message d'alerte indiquant que « les macros du fichier ont été désactivées ». Comment modifier les paramètres de sécurité pour pouvoir exécuter le modèle avec les macros désactivées ?
B16: Cliquez sur le bouton "Activer le contenu" qui apparaît à gauche de l'alerte de sécurité.
B18: À quoi correspond la « part locale » ?
B19: La « part locale » est le pourcentage de chaque dépense réellement effectué localement (c’est-à-dire dans la province, le territoire ou la région analysée). Par exemple, si un million de dollars doit être consacré à l’achat de matériaux de construction et que la moitié (500 000 $) de ce montant est dépensée chez des fournisseurs locaux, la « part locale » est dite de 50 %.
B21: Que signifie l'expression « équivalent temps plein pendant un an » dans les résultats concernant les emplois ?
B22: Cette expression désigne un emploi à temps plein occupé (et rémunéré) pendant un an, soit 2 080 heures (40 heures hebdomadaires durant 52 semaines). Par exemple, si l'analyse fait état de 100 emplois dans le secteur de la construction, il y aura l'équivalent de 100 travailleurs à temps plein pendant toute l'année. Si la construction dure deux ans, les effets sur l'emploi sont répartis sur deux ans et il y aura par conséquent une moyenne de 50 emplois à temps plein (100 divisés par deux ans) par année. De la même manière, si la construction dure moins d'un an, par exemple 9 mois (ou 75 % d'une année), le nombre de personnes travaillant à temps plein durant cette période sera plus important puisqu'elles ne seront pas employées pendant une année entière. Dans ce cas, il y aura en moyenne 133 travailleurs à temps plein (100 emplois divisés par 0,75 % de l'année) pendant les 9 mois de la construction.
B24: Pour que l'analyse soit aussi précise que possible, comment obtenir les informations permettant d’ajuster à ma province, mon territoire ou ma région les valeurs de la « part locale » (dans la feuille de calcul « Données Projet ») ?
B25: Dans la mesure où la « part locale » dépend directement de l’existence d’entreprises et de fournisseurs de services locaux capables de répondre aux besoins de la construction et de l’exploitation du projet, il est important de disposer d'un portrait exact des ressources locales. Ces informations peuvent être obtenues de plusieurs façons, notamment en contactant des personnes compétentes et bien informées dans la région, des associations régionales d’entreprises et d’entrepreneurs ou la chambre de commerce locale.
B27: Je souhaite modifier la valeur par défaut des coûts de la main-d’œuvre pour la construction et/ou l’opération et maintenance, les taux de rémunération ou les charges de l’employeur, mais lorsque je le fais, une fenêtre contextuelle m’indique que je ne peux apporter de changement qu’à condition de modifier d’autres cellules relatives aux salaires. Pourquoi ?
B28: Le modèle se sert du coût total de la main-d’œuvre et du salaire horaire moyen pour calculer le nombre d’ouvriers de la construction et d’ouvriers d’O&M. De sorte que si un utilisateur choisit de modifier les valeurs par défaut, les ratios par défaut programmés dans le modèle sont remplacés. Par conséquent, si l’utilisateur augmente le coût total de la main-d’œuvre sans modifier le salaire horaire, les résultats feront apparaître davantage de travailleurs. De même, si le salaire horaire moyen est augmenté sans modification subséquente du coût total de la main-d’œuvre, les résultats feront apparaître moins de travailleurs.
B30: Je souhaiterais voir et éventuellement modifier les formules internes du modèle, comment y accéder ?
B31: Pour effectuer une analyse, le modèle EI2 utilise certaines feuilles de calcul qui ne sont pas conçues pour être modifiées par les utilisateurs. Plusieurs d'entre elles, dont les données par défaut, les calculs et les déflateurs, peuvent toutefois être visualisées en cliquant dessus et en les faisant défiler vers la droite. Mais, bien que consultables, elles sont protégées et ne peuvent être modifiées.
B33: Quelle est la source des coûts par défaut?
B34: Les valeurs par défaut proviennet de diverses sources. Les sources comprennent:
B35: Coûts et répartition des coûts
B36: - Un sondage (menées auprès d'entreprises canadiennes œuvrant dans les services énergétiques dans le secteur résidentiel)
B37: - Une base de données développées par Canmet ENERGY
B39: Comment obtenir davantage d’informations sur la modélisation des entrées-sorties et l’utilisation du modèle EI2 ?
B40: De plus amples informations sur la manière d’utiliser les modèles EI2 sont disponibles sur https://emi-ime.ca/ei2/.
B41: EI2 utilise la même structure que les modèles JEDI développés par NREL. Pour afficher et / ou télécharger les publications liées à JEDI, accédez à https://www.nrel.gov/analysis/jedi/publications.html.

Sheet COMMENCER
B3: EI2 - ConfortThermiqueR
B4: Modèle Impacts Économiques des Initiatives d'Électrification (EI2)

Sheet DonnéesProjet
A1: EI2 - Confort Thermique Résidentiel (EI2-CTR)
A3: INSTRUCTIONS : 1. Commencez par saisir la localisation du projet (dans la liste déroulante) et autres données descriptives. Après avoir saisi des données, appuyez sur la touche «Entrée» (ou passez à la case suivante) pour continuer. 2. Une fois les données descriptives saisies, choisissez « O » ou « N » à la ligne 21 pour continuer. Choisissez « O » pour accepter les valeurs par défaut des coûts du projet et de la part locale ou « N » pour vérifier ou modifier ces valeurs. 3. Une fois toutes les valeurs déterminées, cliquez sur le bouton « Aller aux résultats ». Pour appliquer les nouvelles valeurs dans l'analyse, vous devez répondre « N » à la question « Utiliser les valeurs par défaut du modèle (ci-dessous) ? » – Ligne 21. Vous pouvez obtenir des informations supplémentaires en plaçant le curseur sur les triangles rouges situés dans les coins des cellules et dans l'onglet FAQ. Seules les cellules à fond blanc peuvent être modifiées (et accepter de nouvelles valeurs).
A6: Données descriptives du projet
A7: Description du projet
A8: Nom du projet | B8: Project 1
A9: Localisation du projet | B9: Ontario | AA9: =IF(B9="MYREGION",IF(B10="",2,1),0) -> 0
A11: Technologie / service de confort thermqiue | B11: Pompe à chaleur air-source pour climat froid
A12: Nombre d'installations | B12: 5000
A15: Information sur les installations
A16: Année d'installation | B16: 2022
A17: Valeur monétaire (année de référence) | B17: 2020
A18: Informations sur les coûts
A19: Coût d'installation du projet ($/technologie) | B19: 18276.16
A20: Coûts d'opération et de maintenance ($/technologie) | B20: 250
A21: Utiliser les valeurs par défaut des données sur les coûts du projet dans l'analyse ? Choisissez « O » pour accepter les valeurs par défaut ci-dessous ou « N » pour les remplacer par de nouvelles valeurs. Consultez la FAQ pour des informations complémentaires. | B21: O | D21: =IF($B$20="O","Cliquez sur 'Aller aux résultats' ",IF($B$20="N","Modifier les coûts détaillés (ci-dessous)","Erreur - Entrer 'O' ou 'N'")) -> Erreur - Entrer 'O' ou 'N'
A24: Si vous le souhaitez, les valeurs par défaut (dans les cellules ci-dessous et établies sur la base des données descriptives saisies précédemment) peuvent être restaurées en cliquant sur le bouton « Réinitialiser les valeurs par défaut ». Remarque : il n'est pas nécessaire de restaurer les valeurs par défaut pour incorporer les données sur les coûts du projet par défaut dans l'analyse ; il suffit de choisir « O » dans la cellule B21.
A25: Données sur les coûts du projet
A26: Coûts d'installation | AH26: Valeurs par défaut
B27: Coût | C27: Coût par installation | D27: Pourcentage du coût total | E27: Part locale | AH27: Coût | AI27: Part locale
A28: Coûts d'équipement, matériau et installation
A29: =DonnéesParDéfaut!C17 -> Pompe à chaleur air-source pour climat froid | B29: =AH29 -> 50259440 | C29: =B29/(B$12) -> 10051.888 | D29: =B29/B$33 -> 0.5092592593 | E29: =AI29 -> 1 | AH29: =DonnéesParDéfaut!D17 -> 50259440 | AI29: =DonnéesParDéfaut!F17 -> 1
A30: Main d'œuvre | B30: =AH30 -> 41121360 | C30: =B30/(B$12) -> 8224.272 | D30: =B30/B$33 -> 0.4166666667 | E30: =AI30 -> 1 | AH30: =DonnéesParDéfaut!D18 -> 41121360 | AI30: =DonnéesParDéfaut!F18 -> 1
A31: Sous-total (sans taxes) | B31: 91380800 | C31: =B31/(B$12) -> 18276.16 | D31: =B31/B33 -> 0.9259259259 | AH31: =AH29+AH30 -> 91380800
A32: Taxes de vente | B32: 7310464 | C32: =B32/(B$12) -> 1462.0928 | D32: =B32/B33 -> 0.07407407407 | E32: =AI32 -> 1 | AH32: =DonnéesParDéfaut!D20 -> 7310464 | AI32: 1
A33: Coût d'installation total | B33: =B31+B32 -> 98691264 | D33: =D31+D32 -> 1
A35: Coûts annuels de maintenance
B36: Coût | C36: Coût par installation | D36: Pourcentage du coût total | E36: Part locale | AH36: Coût | AI36: Part locale
A37: Main d'œuvre
A38: Main d'œuvre pour la maintenance | B38: =AH38 -> 1250000 | C38: =B38/(B$12) -> 250 | D38: =IF(B38<>0,B38/B$41,0) -> 1 | E38: =AI38 -> 1 | AH38: =DonnéesParDéfaut!D27 -> 1250000 | AI38: =DonnéesParDéfaut!F27 -> 1
A39: Sous-total (sans taxes) | B39: =B38 -> 1250000 | C39: =B39/(B$12) -> 250 | D39: =IF(B39<>0,B39/B$41,0) -> 1
A40: Taxes de vente | B40: =AH40 -> 0 | C40: 0 | D40: 0 | E40: =AI40 -> 1 | AH40: =DonnéesParDéfaut!D28 -> 0 | AI40: =DonnéesParDéfaut!F28 -> 1
A41: Coûts de maintenance annuel total | B41: =B39+B40 -> 1250000 | D41: =D39+D40 -> 1
A44: Autres paramètres
A45: Paramètres fiscaux
A46: Taux local de la taxe de vente | B46: =AH46 -> 0.08 | E46: =AI46 -> 1 | AH46: =DonnéesParDéfaut!D33 -> 0.08 | AI46: =DonnéesParDéfaut!E33 -> 1
A47: Paramètres de rémunération
B48: Salaire horaire | D48: Charges salariales | AH48: Salaire horaire | AJ48: Charges salariales
A49: Technicien (installation) | B49: =AH49 -> 24.64663983 | D49: =AJ49 -> 0.2983 | AH49: =DonnéesParDéfaut!F37 -> 24.64663983 | AJ49: =DonnéesParDéfaut!K32 -> 0.2983
B50: Salaire horaire | D50: Charges salariales | AH50: Salaire horaire | AJ50: Charges salariales
A51: Technicien (maintenance) | B51: =AH51 -> 24.64663983 | D51: =AJ51 -> 0.2983 | AH51: =DonnéesParDéfaut!F38 -> 24.64663983 | AJ51: =DonnéesParDéfaut!K32 -> 0.2983

Sheet Résultats
A1: EI2 - CTR
A2: =CONCATENATE("Mesures de confort thermique - Résumé des données du projet sur la base des valeurs ",$AE$5) -> Mesures de confort thermique - Résumé des données du projet sur la base des valeurs par défaut du modèle
A3: Localisation du projet | C3: =IF(DonnéesProjet!B9="MyCounty",'User Add-in Location'!#REF!,DonnéesProjet!B9) -> Ontario | AE3: =D7+D8 -> 18526.16 | AF3: =DonnéesProjet!B21 -> O
A4: Année d'installation | C4: =DonnéesProjet!B16 -> 2022 | AE4: =DonnéesParDéfaut!F7+DonnéesParDéfaut!G7 -> 18526.16
A5: Nombre d'installations | C5: =DonnéesProjet!B12 -> 5000 | AE5: =IF(AND(ROUND(AE3,2)=ROUND(AE4,2),AF3="O"),"par défaut du modèle","révisées par l'utilisateur") -> par défaut du modèle
A7: Coût d'installation du projet ($/technologie) | C7: =Calculs!D11/Résultats!C5 -> 19738.2528 | D7: =DonnéesProjet!B19 -> 18276.16 | E7: sans taxes | AE7: =_xlfn.CONCAT("EI2-TCR_",DonnéesProjet!B8) -> EI2-TCR_Project 1
A8: Coûts d'opération et de maintenance ($/technologie) | C8: =Calculs!D18/Résultats!C5 -> 250 | D8: =DonnéesProjet!B20 -> 250 | E8: sans taxes
A9: Valeur monétaire (année de référence) | C9: =DonnéesProjet!B17 -> 2020
A10: Coût d'installation total | C10: =Calculs!D11 -> 98691264
A11: Dépenses locales | C11: =Calculs!D36 -> 98691264
A12: Coûts de maintenance annuel total
A13: Coûts de maintenance directs
A14: Dépenses locales | C14: =Calculs!D18 -> 1250000
A21: Retombées économiques locales - Résumé des résultats
B22: Emplois | C22: Revenus | D22: Extrant | E22: Valeur ajoutée
A23: Durant l'installation | AE23: Retombées économiques locales - Phase d'installation - # d'emplois créés
A24: Retombées directes | B24: =Calculs!AH18 -> 777.118155 | C24: =Calculs!AI18 -> 41.12136 | D24: =Calculs!AJ18 -> 41.12136 | E24: =Calculs!AK18 -> 25.94166753 | AE24: Durant l'installation | AF24: EMPLOIS | AI24: Revenus | AJ24: Extrants | AK24: Valeur ajoutée
A25: Retombées indirectes (chaîne d'approvisionnement) | B25: =Calculs!AH19 -> 422.8318693 | C25: =Calculs!AI19 -> 14.71213426 | D25: =Calculs!AJ19 -> 103.2948854 | E25: =Calculs!AK19 -> 40.65814668 | AE25: Retombées induites | AF25: =B26 -> 154.9437281 | AH25: Retombées induites | AI25: =C26 -> 8.0803578 | AJ25: 29.62349246 | AK25: 17.37352971
A26: Retombées induites | B26: =Calculs!AH20 -> 154.9437281 | C26: =Calculs!AI20 -> 8.0803578 | D26: =Calculs!AJ20 -> 29.62349246 | E26: =Calculs!AK20 -> 17.37352971 | AE26: Retombées indirectes (chaîne d'approvisionnement) | AF26: =B25 -> 422.8318693 | AH26: Retombées indirectes (chaîne d'approvisionnement) | AI26: =C25 -> 14.71213426 | AJ26: 103.2948854 | AK26: 40.65814668
A27: Total des retombées locales | B27: =SUM(B24:B26) -> 1354.893752 | C27: =SUM(C24:C26) -> 63.91385206 | D27: 174.0397379 | E27: 83.97334392 | AE27: Retombées directes | AF27: =B24 -> 777.118155 | AH27: Retombées directes | AI27: =C24 -> 41.12136 | AJ27: =D24 -> 41.12136 | AK27: =E24 -> 25.94166753
AE28: Retombées totales | AF28: =B27 -> 1354.893752 | AH28: Retombées totales | AI28: =C27 -> 63.91385206 | AJ28: =D27 -> 174.0397379 | AK28: =E27 -> 83.97334392
A29: Maintenance annuelle
A30: Retombées de la main d'œuvre sur site | B30: =Calculs!AH25 -> 18.78079198 | C30: =Calculs!AI25 -> 0.9625 | D30: =Calculs!AJ25 -> 0.9625 | E30: =Calculs!AK25 -> 0.9625 | AE30: Retombées économiques locales - Phase d'O&M - # d'emplois créés
A31: Retombées indirectes (chaîne d'approvisionnement) | B31: =Calculs!AH26 -> 2.05219371 | C31: =Calculs!AI26 -> 0.1288849121 | D31: =Calculs!AJ26 -> 0.4099180587 | E31: =Calculs!AK26 -> 0.2160276345 | AE31: Maintenance annuelle | AF31: EMPLOIS | AI31: Revenus | AJ31: Extrants | AK31: Valeur ajoutée
A32: Retombées induites | B32: =Calculs!AH27 -> 1.555023227 | C32: =Calculs!AI27 -> 0.08100229369 | D32: =Calculs!AJ27 -> 0.2970711048 | E32: =Calculs!AK27 -> 0.174382292 | AE32: Retombées induites | AF32: =B32 -> 1.555023227 | AH32: Retombées induites | AI32: =C32 -> 0.08100229369 | AJ32: 0.2970711048 | AK32: 0.174382292
A33: Total des retombées locales | B33: =SUM(B30:B32) -> 22.38800892 | C33: =SUM(C30:C32) -> 1.172387206 | D33: 1.669489164 | E33: 1.352909927 | AE33: Retombées indirectes (chaîne d'approvisionnement) | AF33: =B31 -> 2.05219371 | AH33: Retombées indirectes (chaîne d'approvisionnement) | AI33: =C31 -> 0.1288849121 | AJ33: =D31 -> 0.4099180587 | AK33: =E31 -> 0.2160276345
A34: =CONCATENATE("Remarque: Les revenus, les extrant et la valeur ajoutée sont en million de dollars de ", DonnéesProjet!B17,".") -> Remarque: Les revenus, les extrant et la valeur ajoutée sont en million de dollars de 2020. | AE34: Retombées directes | AF34: =B30 -> 18.78079198 | AH34: Retombées directes | AI34: =C30 -> 0.9625 | AJ34: 0.9625 | AK34: 0.9625
AE35: Retombées totales | AF35: 22.38800892 | AH35: Retombées totales | AI35: =C33 -> 1.172387206 | AJ35: =D33 -> 1.669489164 | AK35: =E33 -> 1.352909927
A37: Les emplois liés à l'installation et à la maintenance sont des équivalents temps plein pendant un an (1 ETP = 2 080 heures). Les impacts liés à la maintenance ont lieu annuellement. L'analyse n'inclut pas les nouvelles dépenses des propriétaires rendues possibles grâce aux économies réalisées sur les factures d'électricité. Les totaux peuvent ne pas correspondre à la somme des composantes en raison des arrondis.
A38: =CONCATENATE("Les résultats sont établis à partir des valeurs ",AE5,".") -> Les résultats sont établis à partir des valeurs par défaut du modèle.

Sheet User Add-in Location (hidden)
A1: Multipliers For Economic Input-Output Analysis
A3: MYREGION (Name) | C3: Year of Data
A4: Province or Territory (Name)
A6: Jobs Direct Multipliers | E6: Personal Consumption Expenditures (PCE)
A7: Jobs Per Million Dollars Change in Final Demand | B7: MyRegion | E7: MYREGION
A8: Agriculture | B8: 0 | E8: 0
A9: Mining | B9: 0 | E9: 0
A10: Construction | B10: 0 | E10: 0
A11: Manufacturing | B11: 0 | E11: 0
A12: Fabricated Metals | B12: 0 | E12: 0
A13: Machinery | B13: 0 | E13: 0
A14: Electrical Equipment | B14: 0 | E14: 0
A15: TCPU | B15: 0 | E15: 0
A16: Wholesale Trade | B16: 0 | E16: 0
A17: Retail Trade | B17: 0 | E17: 0
A18: FIRE | B18: 0 | E18: 0
A19: Misc. Services | B19: 0 | E19: 0
A20: Professional Services | B20: 0 | E20: 0
A21: Government | B21: 0 | E21: 0
E22: =SUM(E8:E21) -> 0 | F22: Total
A23: Jobs Indirect Multipliers
A24: Jobs Per Million Dollars Change in Final Demand | B24: MyRegion
A25: Agriculture | B25: 0
A26: Mining | B26: 0
A27: Construction | B27: 0
A28: Manufacturing | B28: 0
A29: Fabricated Metals | B29: 0
A30: Machinery | B30: 0
A31: Electrical Equipment | B31: 0
A32: TCPU | B32: 0
A33: Wholesale Trade | B33: 0
A34: Retail Trade | B34: 0
A35: FIRE | B35: 0
A36: Misc. Services | B36: 0
A37: Professional Services | B37: 0
A38: Government | B38: 0
A40: Jobs Induced Multipliers
A41: Jobs Per Million Dollars Change in Final Demand | B41: MyRegion
A42: Agriculture | B42: 0
A43: Mining | B43: 0
A44: Construction | B44: 0
A45: Manufacturing | B45: 0
A46: Fabricated Metals | B46: 0
A47: Machinery | B47: 0
A48: Electrical Equipment | B48: 0
A49: TCPU | B49: 0
A50: Wholesale Trade | B50: 0
A51: Retail Trade | B51: 0
A52: FIRE | B52: 0
A53: Misc. Services | B53: 0
A54: Professional Services | B54: 0
A55: Government | B55: 0
A57: Earnings Direct Multipliers
A58: Earnings Per Million Dollars Change in Final Demand | B58: MyRegion
A59: Agriculture | B59: 0
A60: Mining | B60: 0
A61: Construction | B61: 0
A62: Manufacturing | B62: 0
A63: Fabricated Metals | B63: 0
A64: Machinery | B64: 0
A65: Electrical Equipment | B65: 0
A66: TCPU | B66: 0
A67: Wholesale Trade | B67: 0
A68: Retail Trade | B68: 0
A69: FIRE | B69: 0
A70: Misc. Services | B70: 0
A71: Professional Services | B71: 0
A72: Government | B72: 0
A74: Earnings Per Million Dollars Change in Final Demand
A75: Earnings Indirect Multipliers | B75: MyRegion
A76: Agriculture | B76: 0
A77: Mining | B77: 0
A78: Construction | B78: 0
A79: Manufacturing | B79: 0
A80: Fabricated Metals | B80: 0
A81: Machinery | B81: 0
A82: Electrical Equipment | B82: 0
A83: TCPU | B83: 0
A84: Wholesale Trade | B84: 0
A85: Retail Trade | B85: 0
A86: FIRE | B86: 0
A87: Misc. Services | B87: 0
A88: Professional Services | B88: 0
A89: Government | B89: 0
A91: Earnings Induced Multipliers
A92: Earnings Per Million Dollars Change in Final Demand | B92: MyRegion
A93: Agriculture | B93: 0
A94: Mining | B94: 0
A95: Construction | B95: 0
A96: Manufacturing | B96: 0
A97: Fabricated Metals | B97: 0
A98: Machinery | B98: 0
A99: Electrical Equipment | B99: 0
A100: TCPU | B100: 0
A101: Wholesale Trade | B101: 0
A102: Retail Trade | B102: 0
A103: FIRE | B103: 0
A104: Misc. Services | B104: 0
A105: Professional Services | B105: 0
A106: Government | B106: 0
A108: Output Direct Multipliers
A109: Output Per Million Dollars Change in Final Demand | B109: MyRegion
A110: Agriculture | B110: 0
A111: Mining | B111: 0
A112: Construction | B112: 0
A113: Manufacturing | B113: 0
A114: Fabricated Metals | B114: 0
A115: Machinery | B115: 0
A116: Electrical Equipment | B116: 0
A117: TCPU | B117: 0
A118: Wholesale Trade | B118: 0
A119: Retail Trade | B119: 0
A120: FIRE | B120: 0
A121: Misc. Services | B121: 0
A122: Professional Services | B122: 0
A123: Government | B123: 0
A125: Output Indirect Multipliers
A126: Output Per Million Dollars Change in Final Demand | B126: MyRegion
A127: Agriculture | B127: 0
A128: Mining | B128: 0
A129: Construction | B129: 0
A130: Manufacturing | B130: 0
A131: Fabricated Metals | B131: 0
A132: Machinery | B132: 0
A133: Electrical Equipment | B133: 0
A134: TCPU | B134: 0
A135: Wholesale Trade | B135: 0
A136: Retail Trade | B136: 0
A137: FIRE | B137: 0
A138: Misc. Services | B138: 0
A139: Professional Services | B139: 0
A140: Government | B140: 0
A142: Output Induced Multipliers
A143: Output Per Million Dollars Change in Final Demand | B143: MyRegion
A144: Agriculture | B144: 0
A145: Mining | B145: 0
A146: Construction | B146: 0
A147: Manufacturing | B147: 0
A148: Fabricated Metals | B148: 0
A149: Machinery | B149: 0
A150: Electrical Equipment | B150: 0
A151: TCPU | B151: 0
A152: Wholesale Trade | B152: 0
A153: Retail Trade | B153: 0
A154: FIRE | B154: 0
A155: Misc. Services | B155: 0
A156: Professional Services | B156: 0
A157: Government | B157: 0
A159: Value Added Direct Multipliers
A160: Value Added Per Million Dollars Change in Final Demand | B160: MyRegion
A161: Agriculture | B161: 0
A162: Mining | B162: 0
A163: Construction | B163: 0
A164: Manufacturing | B164: 0
A165: Fabricated Metals | B165: 0
A166: Machinery | B166: 0
A167: Electrical Equipment | B167: 0
A168: TCPU | B168: 0
A169: Wholesale Trade | B169: 0
A170: Retail Trade | B170: 0
A171: FIRE | B171: 0
A172: Misc. Services | B172: 0
A173: Professional Services | B173: 0
A174: Government | B174: 0
A176: Value Added Indirect Multipliers
A177: Value Added Per Million Dollars Change in Final Demand | B177: MyRegion
A178: Agriculture | B178: 0
A179: Mining | B179: 0
A180: Construction | B180: 0
A181: Manufacturing | B181: 0
A182: Fabricated Metals | B182: 0
A183: Machinery | B183: 0
A184: Electrical Equipment | B184: 0
A185: TCPU | B185: 0
A186: Wholesale Trade | B186: 0
A187: Retail Trade | B187: 0
A188: FIRE | B188: 0
A189: Misc. Services | B189: 0
A190: Professional Services | B190: 0
A191: Government | B191: 0
A193: Value Added Induced Multipliers
A194: Value Added Per Million Dollars Change in Final Demand | B194: MyRegion
A195: Agriculture | B195: 0
A196: Mining | B196: 0
A197: Construction | B197: 0
A198: Manufacturing | B198: 0
A199: Fabricated Metals | B199: 0
A200: Machinery | B200: 0
A201: Electrical Equipment | B201: 0
A202: TCPU | B202: 0
A203: Wholesale Trade | B203: 0
A204: Retail Trade | B204: 0
A205: FIRE | B205: 0
A206: Misc. Services | B206: 0
A207: Professional Services | B207: 0
A208: Government | B208: 0

Sheet DonnéesParDéfaut
A1: *** AVERTISSEMENT *** Cette feuille de calcul contient des données et des formules qui font partie intégrante du modèle EI2. Bien que ces données et formules soient consultables pour examen, elles ne doivent pas être modifiées. Toute modification des données ou des formules affectera l'analyse et pourrait invalider les résultats du modèle. Pour les visualiser, faites simplement défiler les colonnes vers la droite. | V1: Changement annuel | AW1: CVAC | AY1: Part lde main d'œuvre dans les coûts
V2: -0.005 | AW2: Pompe à chaleur air-source pour climat froid | AX2: 1 | AY2: 0.45
AW3: Chaudière électrique | AX3: 2 | AY3: 0.45
Q4: 2021 | R4: 2022 | S4: 2023 | T4: 2024 | U4: 2025 | V4: 2026 | W4: 2027 | X4: 2028 | Y4: 2029 | Z4: 2030 | AA4: 2031 | AB4: 2032 | AC4: 2033 | AD4: 2034 | AE4: 2035 | AF4: 2036 | AG4: 2037 | AH4: 2038 | AI4: 2039 | AJ4: 2040 | AW4: Amélioration de l'enveloppe du batîment | AY4: Part de la main d'œuvre dans les coûts
Q5: 1 | R5: 2 | S5: 3 | T5: 4 | U5: 5 | V5: 6 | W5: 7 | X5: 8 | Y5: 9 | Z5: 10 | AA5: 11 | AB5: 12 | AC5: 13 | AD5: 14 | AE5: 15 | AF5: 16 | AG5: 17 | AH5: 18 | AI5: 19 | AJ5: 20 | AW5: Isolation du grenier (atteindre un RSI minimum de 8,81 ou R-50) | AX5: 3 | AY5: 0.7
D6: Nombre d'instalaltions | F6: Coût d'installation par défaut par technologie | G6: Coût par défaut de maintenance par technologie / an | P6: Pompe à chaleur air-source pour climat froid | Q6: =VLOOKUP(DonnéesProjet!B$9,DonnéesParDéfaut!AW$12:BE$26,2,FALSE) -> 18368 | R6: =Q6*(1+$V$2) -> 18276.16 | S6: =R6*(1+$V$2) -> 18184.7792 | T6: 18093.8553 | U6: 18003.38603 | V6: 17913.3691 | W6: 17823.80225 | X6: 17734.68324 | Y6: 17646.00982 | Z6: 17557.77978 | AA6: 17469.99088 | AB6: 17382.64092 | AC6: 17295.72772 | AD6: 17209.24908 | AE6: 17123.20283 | AF6: 17037.58682 | AG6: 16952.39889 | AH6: 16867.63689 | AI6: 16783.29871 | AJ6: 16699.38221 | AW6: Isolation du toit plat et/ou du plafond cathédrale (atteindre un RSI minimum de 4,93 ou R-28) | AX6: 4 | AY6: 0.7
D7: =DonnéesProjet!B12 -> 5000 | F7: =Q16 -> 18276.16 | G7: =Q17 -> 250 | P7: Chaudière électrique | Q7: =VLOOKUP(DonnéesProjet!B$9,DonnéesParDéfaut!AW$12:BE$26,3,FALSE) -> 5390 | R7: =Q7*(1+$V$2) -> 5363.05 | S7: 5336.23475 | T7: 5309.553576 | U7: 5283.005808 | V7: 5256.590779 | W7: 5230.307825 | X7: 5204.156286 | Y7: 5178.135505 | Z7: 5152.244827 | AA7: 5126.483603 | AB7: 5100.851185 | AC7: 5075.346929 | AD7: 5049.970195 | AE7: 5024.720344 | AF7: 4999.596742 | AG7: 4974.598758 | AH7: 4949.725764 | AI7: 4924.977136 | AJ7: 4900.35225 | AW7: Isolation du sous-sol / des fondations (isoler au moins 60 % de la surface) | AX7: 5 | AY7: 0.7
P8: Isolation du grenier (atteindre un RSI minimum de 8,81 ou R-50) | Q8: =VLOOKUP(DonnéesProjet!B$9,DonnéesParDéfaut!AW$12:BE$26,4,FALSE) -> 1721.859357 | R8: 1713.250061 | S8: 1704.68381 | T8: 1696.160391 | U8: 1687.679589 | V8: 1679.241191 | W8: 1670.844985 | X8: 1662.49076 | Y8: 1654.178307 | Z8: 1645.907415 | AA8: 1637.677878 | AB8: 1629.489489 | AC8: 1621.342041 | AD8: 1613.235331 | AE8: 1605.169154 | AF8: 1597.143309 | AG8: 1589.157592 | AH8: 1581.211804 | AI8: 1573.305745 | AJ8: 1565.439216 | AW8: Isolation des murs extérieurs (100 % de la surface aux niveaux du CNB 2012) | AX8: 6 | AY8: 0.4
P9: Isolation du toit plat et/ou du plafond cathédrale (atteindre un RSI minimum de 4,93 ou R-28) | Q9: =VLOOKUP(DonnéesProjet!B$9,DonnéesParDéfaut!AW$12:BE$26,5,FALSE) -> 1512.431714 | R9: 1504.869555 | S9: 1497.345208 | T9: 1489.858482 | U9: 1482.409189 | V9: 1474.997143 | W9: 1467.622158 | X9: 1460.284047 | Y9: 1452.982627 | Z9: 1445.717713 | AA9: 1438.489125 | AB9: 1431.296679 | AC9: 1424.140196 | AD9: 1417.019495 | AE9: 1409.934397 | AF9: 1402.884725 | AG9: 1395.870302 | AH9: 1388.89095 | AI9: 1381.946495 | AJ9: 1375.036763 | AW9: Étanchéité à l'air | AX9: 7 | AY9: 0.7
D10: Coût d'installation par technologie | E10: Coût d'installation total | F10: Coût de maintenance par technologie / an | G10: Coût total d'installation / an | P10: Isolation du sous-sol / des fondations (isoler au moins 60 % de la surface) | Q10: =VLOOKUP(DonnéesProjet!B$9,DonnéesParDéfaut!AW$12:BE$26,6,FALSE) -> 3407.025462 | R10: =Q10*(1+$V$2) -> 3389.990334 | S10: 3373.040383 | T10: 3356.175181 | U10: 3339.394305 | V10: 3322.697333 | W10: 3306.083847 | X10: 3289.553428 | Y10: 3273.10566 | Z10: 3256.740132 | AA10: 3240.456431 | AB10: 3224.254149 | AC10: 3208.132879 | AD10: 3192.092214 | AE10: 3176.131753 | AF10: 3160.251094 | AG10: 3144.449839 | AH10: 3128.72759 | AI10: 3113.083952 | AJ10: 3097.518532 | AW10: Remplacement des portes et des fenêtres (facteur U de 1,08 W/m2-K et homologation Energy Star). | AX10: 8 | AY10: 0.4
D11: =DonnéesProjet!B19 -> 18276.16 | E11: =D11*D7 -> 91380800 | F11: =DonnéesProjet!B20 -> 250 | G11: =F11*D7 -> 1250000 | P11: Isolation des murs extérieurs (100 % de la surface aux niveaux du CNB 2012) | Q11: =VLOOKUP(DonnéesProjet!B$9,DonnéesParDéfaut!AW$12:BE$26,7,FALSE) -> 68300.54694 | R11: =Q11*(1+$V$2) -> 67959.04421 | S11: 67619.24899 | T11: 67281.15274 | U11: 66944.74698 | V11: 66610.02324 | W11: 66276.97313 | X11: 65945.58826 | Y11: 65615.86032 | Z11: 65287.78102 | AA11: 64961.34211 | AB11: 64636.5354 | AC11: 64313.35273 | AD11: 63991.78596 | AE11: 63671.82703 | AF11: 63353.4679 | AG11: 63036.70056 | AH11: 62721.51706 | AI11: 62407.90947 | AJ11: 62095.86992
P12: Étanchéité à l'air | Q12: =VLOOKUP(DonnéesProjet!B$9,DonnéesParDéfaut!AW$12:BE$26,8,FALSE) -> 2113.425608 | R12: 2102.85848 | S12: 2092.344188 | T12: 2081.882467 | U12: 2071.473055 | V12: 2061.115689 | W12: 2050.810111 | X12: 2040.55606 | Y12: 2030.35328 | Z12: 2020.201514 | AA12: 2010.100506 | AB12: 2000.050004 | AC12: 1990.049754 | AD12: 1980.099505 | AE12: 1970.199007 | AF12: 1960.348012 | AG12: 1950.546272 | AH12: 1940.793541 | AI12: 1931.089573 | AJ12: 1921.434125 | AW12: Coûts d'installation / technologie | AX12: 1 | AY12: 2 | AZ12: 3 | BA12: 4 | BB12: 5 | BC12: 6 | BD12: 7 | BE12: 8 | BF12: 1
C13: Données de projet | P13: Remplacement des portes et des fenêtres (facteur U de 1,08 W/m2-K et homologation Energy Star). | Q13: =VLOOKUP(DonnéesProjet!B$9,DonnéesParDéfaut!AW$12:BE$26,9,FALSE) -> 18543.06667 | R13: =Q13*(1+$V$2) -> 18450.35133 | S13: 18358.09958 | T13: 18266.30908 | U13: 18174.97753 | V13: 18084.10265 | W13: 17993.68213 | X13: 17903.71372 | Y13: 17814.19515 | Z13: 17725.12418 | AA13: 17636.49856 | AB13: 17548.31606 | AC13: 17460.57448 | AD13: 17373.27161 | AE13: 17286.40525 | AF13: 17199.97323 | AG13: 17113.97336 | AH13: 17028.40349 | AI13: 16943.26148 | AJ13: 16858.54517 | AW13: Alberta | AX13: 18368 | AY13: 5145 | AZ13: 1971.609637 | BA13: 2207.083836 | BB13: 3814.732848 | BC13: 72449.4421 | BD13: 2073.109776 | BE13: 20417.1 | BF13: 2
C14: =DonnéesProjet!B11 -> Pompe à chaleur air-source pour climat froid | AW14: Colombie-Britannique | AX14: 18368 | AY14: 5456.25 | AZ14: 2154.490274 | BA14: 2367.692345 | BB14: 4241.776313 | BC14: 71871.68661 | BD14: 2019.210298 | BE14: 26873.1 | BF14: 3
P15: Index année d'installation | Q15: =HLOOKUP(Year_of_Construction,DonnéesParDéfaut!Q4:AJ5,2,FALSE) -> 2 | AW15: Manitoba | AX15: 18368 | AY15: 4940 | AZ15: 1729.751448 | BA15: 1513.830375 | BB15: 3464.819277 | BC15: 61724.57798 | BD15: 1760.933657 | BE15: 12759.56667 | BF15: 4
C16: Coûts d'équipement, matériau et installation | F16: Part locale | P16: Coût d'installa par technologie | Q16: =VLOOKUP(DonnéesProjet!B11,DonnéesParDéfaut!P6:AJ13,DonnéesParDéfaut!Q15+1,FALSE) -> 18276.16 | AW16: Nouveau-Brunswick | AX16: 18368 | AY16: 4865 | AZ16: 1926.761778 | BA16: 1859.28691 | BB16: 3738.412091 | BC16: 62810.23829 | BD16: 1847.76015 | BE16: 19628.03333 | BF16: 5
C17: =DonnéesProjet!B11 -> Pompe à chaleur air-source pour climat froid | D17: =E11*(1-Q18) -> 50259440 | F17: 1 | P17: Coût de maintenance par technologie /an | Q17: =HLOOKUP(AV30,AW29:BE43,AV29+1,FALSE) -> 250 | AW17: Terre-Neuve-et-Labrador | AX17: 18368 | AY17: 4775 | AZ17: 1790.062426 | BA17: 2167.892874 | BB17: 3535.133023 | BC17: 62892.38711 | BD17: 1800.42372 | BE17: 15933.76667 | BF17: 6
C18: Main d'œuvre | D18: =E11*Q18 -> 41121360 | F18: 1 | P18: Part de la main d'œuvre | Q18: =VLOOKUP(DonnéesProjet!B11,DonnéesParDéfaut!AW2:AY10,3,FALSE) -> 0.45 | AW18: Territoires du Nord-Ouest | AX18: 18368 | AY18: 4977.5 | AZ18: 1796.107661 | BA18: 1792.761092 | BB18: 3742.870764 | BC18: 61279.59444 | BD18: 1722.66264 | BE18: 16283.46667 | BF18: 7
C19: Sous-total (ensemble des coûts sans les taxes) | D19: =SUM(D17:D18) -> 91380800 | F19: 1 | AW19: Nouvelle-Écosse | AX19: 18368 | AY19: 4747.5 | AZ19: 1771.164157 | BA19: 1547.262592 | BB19: 3287.181687 | BC19: 61763.54048 | BD19: 1809.047765 | BE19: 16982.86667 | BF19: 8
C20: Taxes de vente | D20: =D19*D33 -> 7310464 | F20: 1 | AW20: Nunavut | AX20: 18368 | AY20: 4930 | AZ20: 1796.107661 | BA20: 1792.761092 | BB20: 3742.870764 | BC20: 61279.59444 | BD20: 1722.66264 | BE20: 16283.46667 | BF20: 9
C21: TOTAL | D21: =D19+D20 -> 98691264 | F21: 1 | AW21: Ontario | AX21: 18368 | AY21: 5390 | AZ21: 1721.859357 | BA21: 1512.431714 | BB21: 3407.025462 | BC21: 68300.54694 | BD21: 2113.425608 | BE21: 18543.06667 | BF21: 10
AW22: Île-du-Prince-Édouard | AX22: 18368 | AY22: 4835 | AZ22: 1790.062426 | BA22: 2167.892874 | BB22: 3535.133023 | BC22: 62892.38711 | BD22: 1800.42372 | BE22: 15933.76667 | BF22: 11
AW23: Québec | AX23: 18368 | AY23: 4940 | AZ23: 1754.7108 | BA23: 1651.186021 | BB23: 3383.448062 | BC23: 60822.65882 | BD23: 1811.183453 | BE23: 19816.33333 | BF23: 12
AW24: Saskatchewan | AX24: 18368 | AY24: 3895 | AZ24: 1995.445816 | BA24: 1647.490104 | BB24: 3738.346442 | BC24: 66297.6305 | BD24: 1939.15295 | BE24: 15117.8 | BF24: 13
C25: Coûts maintenance annuelle | AW25: Yukon | AX25: 18368 | AY25: 5015 | AZ25: 1828.584488 | BA25: 2205.784457 | BB25: 3529.760132 | BC25: 66376.55446 | BD25: 2002.776207 | BE25: 20336.4 | BF25: 14
C26: Service | AW26: Canada | AX26: 18368 | AY26: =AVERAGE(AY13:AY25) -> 4916.25 | AZ26: 1820 | BA26: 1782 | BB26: 3513 | BC26: 59047 | BD26: 1987 | BE26: 19494
C27: Main d'œuvre | D27: =G11 -> 1250000 | F27: 1
C28: Taxes de vente | D28: 0 | F28: 1 | AV28: Maintenance cost per installation
C29: TOTAL | D29: =D27+D28 -> 1250000 | F29: 1 | J29: Charges salariales | AV29: =VLOOKUP(DonnéesProjet!B9,DonnéesParDéfaut!AW30:BF43,10,FALSE) -> 9 | AX29: 1 | AY29: 2 | AZ29: 3 | BA29: 4 | BB29: 5 | BC29: 6 | BD29: 7 | BE29: 8
J30: Gouv. | K30: =VLOOKUP(DonnéesProjet!B9,Multiplicateurs!S8:U22,3,FALSE) -> 0.23 | AV30: =VLOOKUP(DonnéesProjet!B11,DonnéesParDéfaut!AW1:AX10,2,FALSE) -> 1 | AW30: Alberta | AX30: 230 | AY30: 195 | AZ30: 0 | BA30: 0 | BB30: 0 | BC30: 0 | BD30: 0 | BE30: 0 | BF30: 1
J31: Santé/Ass./divers | K31: =IF(OR(DonnéesProjet!B9=Multiplicateurs!Z8,'User Add-in Location'!B4=Multiplicateurs!Z8),Multiplicateurs!Y8,Multiplicateurs!Y7) -> 0.0683 | AW31: Colombie-Britannique | AX31: 245 | AY31: 220 | AZ31: 0 | BA31: 0 | BB31: 0 | BC31: 0 | BD31: 0 | BE31: 0 | BF31: 2
J32: Total | K32: =K30+K31 -> 0.2983 | AW32: Manitoba | AX32: 210 | AY32: 190 | AZ32: 0 | BA32: 0 | BB32: 0 | BC32: 0 | BD32: 0 | BE32: 0 | BF32: 3
C33: Taux de taxe de vente locale | D33: =C66 -> 0.08 | E33: 1 | F33: =VLOOKUP(DonnéesProjet!B9,Multiplicateurs!S8:T22,2,FALSE) -> 0.9910188913 | G33: Facteur d'ajustement | AW33: Nouveau-Brunswick | AX33: 212.5 | AY33: 152.5 | AZ33: 0 | BA33: 0 | BB33: 0 | BC33: 0 | BD33: 0 | BE33: 0 | BF33: 4
N34: Révisé par l'utilisateur | AW34: Terre-Neuve-et-Labrador | AX34: 205 | AY34: 155 | AZ34: 0 | BA34: 0 | BB34: 0 | BC34: 0 | BD34: 0 | BE34: 0 | BF34: 5
D35: Coût salarial | E35: Taux horaire moy. | F35: Taux horaire ajusté | G35: Charges | H35: Charges | I35: Défaut | J35: Révisé | L35: Défaut | N35: Charges salariale | O35: Taux horaire | P35: Charges | Q35: Charges | AW35: Territoires du Nord-Ouest | AX35: 205 | AY35: 150 | AZ35: 0 | BA35: 0 | BB35: 0 | BC35: 0 | BD35: 0 | BE35: 0 | BF35: 6
C36: Paramètres de rémunération | AW36: Nouvelle-Écosse | AX36: 210 | AY36: 150 | AZ36: 0 | BA36: 0 | BB36: 0 | BC36: 0 | BD36: 0 | BE36: 0 | BF36: 7
C37: Main d'œuvre installation | D37: =F37+G37 -> 31.99873249 | E37: 24.87 | F37: =E37*F$33 -> 24.64663983 | G37: =F37*H37 -> 7.35209266 | H37: =K$32 -> 0.2983 | I37: =(D18*F18)/(D37*52*40) -> 617.8333665 | J37: =(DonnéesProjet!B30*DonnéesProjet!E30)/(DonnéesParDéfaut!N37*52*40) -> 617.8333665 | L37: =D37*52*40 -> 66557.36357 | N37: =O37+P37 -> 31.99873249 | O37: =DonnéesProjet!B49 -> 24.64663983 | P37: =O37*Q37 -> 7.35209266 | Q37: =DonnéesProjet!D49 -> 0.2983 | R37: =N37*52*40 -> 66557.36357 | AW37: Nunavut | AX37: 210 | AY37: 165 | AZ37: 0 | BA37: 0 | BB37: 0 | BC37: 0 | BD37: 0 | BE37: 0 | BF37: 8
C38: Main d'œuvre maintenance | D38: =F38+G38 -> 31.99873249 | E38: 24.87 | F38: =E38*F$33 -> 24.64663983 | G38: =F38*H38 -> 7.35209266 | H38: =K$32 -> 0.2983 | I38: =(D27*F27)/(D38*52*40) -> 18.78079198 | J38: =(DonnéesProjet!B38*DonnéesProjet!E38)/(DonnéesParDéfaut!N38*52*40) -> 18.78079198 | L38: =D38*52*40 -> 66557.36357 | N38: =O38+P38 -> 31.99873249 | O38: =DonnéesProjet!B51 -> 24.64663983 | P38: =O38*Q38 -> 7.35209266 | Q38: =DonnéesProjet!D51 -> 0.2983 | R38: =N38*52*40 -> 66557.36357 | AW38: Ontario | AX38: 250 | AY38: 225 | AZ38: 0 | BA38: 0 | BB38: 0 | BC38: 0 | BD38: 0 | BE38: 0 | BF38: 9
AW39: Île-du-Prince-Édouard | AX39: 212.5 | AY39: 160 | AZ39: 0 | BA39: 0 | BB39: 0 | BC39: 0 | BD39: 0 | BE39: 0 | BF39: 10
H40: Main d'œuvre installation | I40: =IF(DonnéesProjet!$B$21="O",DonnéesParDéfaut!I37,DonnéesParDéfaut!J37) -> 617.8333665 | AW40: Québec | AX40: 215 | AY40: 185 | AZ40: 0 | BA40: 0 | BB40: 0 | BC40: 0 | BD40: 0 | BE40: 0 | BF40: 11
H41: Main d'œuvre maintenance | I41: =IF(DonnéesProjet!$B$21="O",DonnéesParDéfaut!I38,DonnéesParDéfaut!J38) -> 18.78079198 | AW41: Saskatchewan | AX41: 225 | AY41: 205 | AZ41: 0 | BA41: 0 | BB41: 0 | BC41: 0 | BD41: 0 | BE41: 0 | BF41: 12
AW42: Yukon | AX42: 210 | AY42: 140 | AZ42: 0 | BA42: 0 | BB42: 0 | BC42: 0 | BD42: 0 | BE42: 0 | BF42: 13
AW43: Canada | AX43: =AVERAGE(AX30:AX42) -> 218.4615385 | AY43: =AVERAGE(AY30:AY42) -> 176.3461538 | AZ43: 0 | BA43: 0 | BB43: 0 | BC43: 0 | BD43: 0 | BE43: 0 | BF43: 14
AW44: 1 | AX44: 2 | AY44: 3 | AZ44: 4 | BA44: 5 | BB44: 6 | BC44: 7 | BD44: 8 | BE44: 9 | BF44: 10
C46: Marges commerciales et de transport
D47: Agriculture | E47: Exploitation minière | F47: Construction | G47: Secteur manufacturier | H47: Machinerie et équipement | I47: TCSP | J47: Commerce de gros | K47: Commerce de détail | L47: FAI | M47: Services divers | N47: Réparation et maintenance | O47: Services professioniels | P47: Gouvernement | Q47: Total
C48: Agriculture | D48: 0.9622391349 | E48: 0 | F48: 0 | G48: 0 | H48: 0 | I48: 0.0153121644 | J48: 0.02244870071 | K48: 0 | L48: 0 | M48: 0 | N48: 0 | O48: 0 | P48: 0 | Q48: =SUM(D48:P48) -> 1
C49: Exploitation minière | D49: 0 | E49: 0.9269040457 | F49: 0 | G49: 0 | H49: 0 | I49: 0.06288891547 | J49: 0.01020703884 | K49: 0 | L49: 0 | M49: 0 | N49: 0 | O49: 0 | P49: 0 | Q49: 1
C50: Construction | D50: 0 | E50: 0 | F50: 1 | G50: 0 | H50: 0 | I50: 0 | J50: 0 | K50: 0 | L50: 0 | M50: 0 | N50: 0 | O50: 0 | P50: 0 | Q50: 1
C51: Secteur manufacturier | D51: 0 | E51: 0 | F51: 0 | G51: 0.8769574708 | H51: 0 | I51: 0.03266428864 | J51: 0.09037824061 | K51: 0 | L51: 0 | M51: 0 | N51: 0 | O51: 0 | P51: 0 | Q51: 1
C52: Machinerie et équipement | D52: 0 | E52: 0 | F52: 0 | G52: 0 | H52: 0.8441753474 | I52: 0.008151487036 | J52: 0.1476731656 | K52: 0 | L52: 0 | M52: 0 | N52: 0 | O52: 0 | P52: 0 | Q52: 1
C53: TCSP | D53: 0 | E53: 0 | F53: 0 | G53: 0 | H53: 0 | I53: 0.9999828494 | J53: 7.83465249e-06 | K53: 0 | L53: 0 | M53: 0 | N53: 0 | O53: 0 | P53: 0 | Q53: 0.999990684
C54: Commerce de gros | D54: 0 | E54: 0 | F54: 0 | G54: 0 | H54: 0 | I54: 0 | J54: 1 | K54: 0 | L54: 0 | M54: 0 | N54: 0 | O54: 0 | P54: 0 | Q54: 1
C55: Commerce de détail | D55: 0 | E55: 0 | F55: 0 | G55: 0 | H55: 0 | I55: 0 | J55: 0 | K55: 1 | L55: 0 | M55: 0 | N55: 0 | O55: 0 | P55: 0 | Q55: 1
C56: FAI | D56: 0 | E56: 0 | F56: 0 | G56: 0 | H56: 0 | I56: 0 | J56: 0 | K56: 0 | L56: 1 | M56: 0 | N56: 0 | O56: 0 | P56: 0 | Q56: 1
C57: Services divers | D57: 0 | E57: 0 | F57: 0 | G57: 0 | H57: 0 | I57: 0.0003295404171 | J57: 0.009175033382 | K57: 0 | L57: 0 | M57: 0.9904954262 | N57: 0 | O57: 0 | P57: 0 | Q57: 1
C58: Réparation et maintenance | D58: 0 | E58: 0 | F58: 0 | G58: 0 | H58: 0 | I58: 0 | J58: 0 | K58: 0 | L58: 0 | M58: 0 | N58: 1 | O58: 0 | P58: 0 | Q58: 1
C59: Services professioniels | D59: 0 | E59: 0 | F59: 0 | G59: 0 | H59: 0 | I59: 7.596323454e-05 | J59: 0.002920144425 | K59: 0 | L59: 0 | M59: 0 | N59: 0 | O59: 0.9970038923 | P59: 0 | Q59: 1
C60: Gouvernement | D60: 0 | E60: 0 | F60: 0 | G60: 0 | H60: 0 | I60: 3.225277974e-05 | J60: 0.0005852732458 | K60: 0 | L60: 0 | M60: 0 | N60: 0 | O60: 0 | P60: 0.999382474 | Q60: 1
D64: Canada | E64: Alberta | F64: Colombie-Britannique | G64: Manitoba | H64: Nouveau-Brunswick | I64: Terre-Neuve-et-Labrador | J64: Territoires du Nord-Ouest | K64: Nouvelle-Écosse | L64: Nunavut | M64: Ontario | N64: Île-du-Prince-Édouard | O64: Québec | P64: Saskatchewan | Q64: Yukon
C65: Taux taxe de vente | D65: 0.05 | E65: 0 | F65: 0.07 | G65: 0.07 | H65: 0.1 | I65: 0.1 | J65: 0 | K65: 0.1 | L65: 0 | M65: 0.08 | N65: 0.1 | O65: 0.09975 | P65: 0.06 | Q65: 0
C66: =HLOOKUP(DonnéesProjet!B9,DonnéesParDéfaut!D64:R65,2,FALSE) -> 0.08

Sheet Calculs
A1: *** AVERTISSEMENT *** Cette feuille de calcul contient des données et des formules qui font partie intégrante du modèle EI2. Bien que ces données et formules soient consultables pour examen, elles ne doivent pas être modifiées. Toute modification des données ou des formules affectera l'analyse et pourrait invalider les résultats du modèle. Pour les visualiser, faites simplement défiler les colonnes vers la droite. | C1: Analyse d'impact économiques de | D1: =CONCATENATE(DonnéesProjet!B12," ",DonnéesProjet!B11) -> 5000 Pompe à chaleur air-source pour climat froid | G1: en | H1: =DonnéesProjet!B9 -> Ontario
D4: Coût | E4: Part achetée localement | G4: Dépenses locale | AB4: Project Installation Costs | AC4: Cost | AD4: Local Share
C6: Coûts d'équipement, matériau et installation | AB6: Equipment & Installation costs
C7: =DonnéesParDéfaut!C17 -> Pompe à chaleur air-source pour climat froid | D7: =IF(DonnéesProjet!$B$21="O",DonnéesParDéfaut!D17,DonnéesProjet!B29) -> 50259440 | E7: =IF(DonnéesProjet!$B$21="O",DonnéesParDéfaut!F17,DonnéesProjet!E29) -> 1 | G7: =D7*E7 -> 50259440 | AB7: =C7 -> Pompe à chaleur air-source pour climat froid | AC7: =D7 -> 50259440 | AD7: 1
C8: Main d'œuvre | D8: =IF(DonnéesProjet!$B$21="O",DonnéesParDéfaut!D18,DonnéesProjet!B30) -> 41121360 | E8: =IF(DonnéesProjet!$B$21="O",DonnéesParDéfaut!F18,DonnéesProjet!E30) -> 1 | G8: =D8*E8 -> 41121360 | AB8: Labour | AC8: 41121360 | AD8: 1
C9: Sous-total (ensemble des coûts sans les taxes) | D9: =D7+D8 -> 91380800 | E9: =IF(DonnéesProjet!$B$21="O",DonnéesParDéfaut!F19,DonnéesProjet!E31) -> 1 | G9: =D9*E9 -> 91380800 | AB9: Subtotal All Costs (without sales tax) | AC9: 91380800 | AD9: 1
C10: Taxes de vente | D10: =IF(DonnéesProjet!$B$21="O",DonnéesParDéfaut!D20,DonnéesProjet!B32) -> 7310464 | E10: =IF(DonnéesProjet!$B$21="O",DonnéesParDéfaut!F20,DonnéesProjet!E32) -> 1 | G10: =D10*E10 -> 7310464 | AB10: Sales Tax | AC10: 7310464 | AD10: 1
C11: TOTAL | D11: =D9+D10 -> 98691264 | G11: =SUM(G7:G10) -> 190072064 | AB11: TOTAL PROJECT COST | AC11: =D11 -> 98691264
C15: Coût de maintenance annuelle | AG15: Local Economic Impacts - Summary Results
C16: Main d'œuvre | D16: =IF(DonnéesProjet!$B$21="O",DonnéesParDéfaut!D27,DonnéesProjet!B38) -> 1250000 | E16: =IF(DonnéesProjet!$B$21="O",DonnéesParDéfaut!F27,DonnéesProjet!E27) -> 1 | G16: =D16*E16 -> 1250000 | AB16: Annual Maintenance Costs | AH16: Jobs | AI16: Earnings | AJ16: Output | AK16: Value Added
C17: Taxes de vente | D17: =IF(DonnéesProjet!$B$21="O",DonnéesParDéfaut!D28,DonnéesProjet!B39) -> 0 | E17: =IF(DonnéesProjet!$B$21="O",DonnéesParDéfaut!F28,DonnéesProjet!E28) -> 1 | G17: =SUM(G16:G16) -> 1250000 | AG17: During construction period
C18: TOTAL | D18: =D16+D17 -> 1250000 | G18: =G11+G17 -> 191322064 | AB18: Variable Costs | AG18: Direct Impacts | AH18: =I45 -> 777.118155 | AI18: =M45*G60 -> 41.12136 | AJ18: =Q45*$G60 -> 41.12136 | AK18: =U45*$G60 -> 25.94166753
AB19: Personnel | AG19: Indirect Impacts | AH19: =I34+I37+J57 -> 422.8318693 | AI19: =M34+M37+N60 -> 14.71213426 | AJ19: =+Q34+Q37+R60 -> 103.2948854 | AK19: =+U34+U37+V60 -> 40.65814668
AB20: Maintenance labour | AC20: =D16 -> 1250000 | AD20: =E16 -> 1 | AG20: Induced Impacts | AH20: =K57 -> 154.9437281 | AI20: =O60 -> 8.0803578 | AJ20: =S60 -> 29.62349246 | AK20: =W60 -> 17.37352971
D21: Demande | AB21: Personnel Subtotal | AC21: =AC20 -> 1250000 | AD21: =E17 -> 1 | AG21: Total Impacts (Direct, Indirect, Induced) | AH21: =AH20+AH19+AH18 -> 1354.893752 | AI21: =AI20+AI19+AI18 -> 63.91385206 | AJ21: =AJ20+AJ19+AJ18 -> 174.0397379 | AK21: =AK20+AK19+AK18 -> 83.97334392
D22: Installation | E22: Maintenance
C23: Agriculture | D23: 0 | E23: 0 | AB23: Total | AC23: =D18 -> 1250000 | AG23: During operating years (annual)
C24: Exploitation minière | D24: 0 | E24: 0 | AB24: Payroll Parameters | AC24: Base Wage per Hour | AD24: Annual Wage | AE24: Employer Payroll Costs
C25: Construction | D25: =IF(DonnéesParDéfaut!AV30<=2,G8+0.3*G7,G8+G7) -> 56199192 | E25: 0 | AB25: Installation Labour | AC25: =IF(DonnéesProjet!$B$21="O",DonnéesParDéfaut!F37,DonnéesProjet!B49) -> 24.64663983 | AD25: =AC25*40*52 -> 51265.01084 | AE25: =IF(DonnéesProjet!$B$21="O",DonnéesParDéfaut!H37,DonnéesProjet!D49) -> 0.2983 | AG25: Direct impact | AH25: =L115 -> 18.78079198 | AI25: =P117 -> 0.9625 | AJ25: =T117 -> 0.9625 | AK25: =X117 -> 0.9625
C26: Secteur manufacturier | D26: 0 | E26: 0 | AB26: Maintenance labour | AC26: =IF(DonnéesProjet!$B$21="O",DonnéesParDéfaut!F38,DonnéesProjet!B51) -> 24.64663983 | AD26: =AC26*40*52 -> 51265.01084 | AE26: =IF(DonnéesProjet!$B$21="O",DonnéesParDéfaut!H38,DonnéesProjet!D51) -> 0.2983 | AG26: Indirect Impacts | AH26: =(L137-AH25)+M137 -> 2.05219371 | AI26: =P138-AI25+Q138 -> 0.1288849121 | AJ26: =T138-AJ25+U138 -> 0.4099180587 | AK26: =X138-AK25+Y138 -> 0.2160276345
C27: Machinerie et équipement | D27: =IF(DonnéesParDéfaut!AV30<=2,G7*0.7,0) -> 35181608 | E27: 0 | AG27: Induced Impacts | AH27: =N137 -> 1.555023227 | AI27: =R138 -> 0.08100229369 | AJ27: =V138 -> 0.2970711048 | AK27: =Z138 -> 0.174382292
C28: TCSP | D28: 0 | E28: 0 | AG28: Total Impacts (Direct, Indirect, Induced) | AH28: =SUM(AH25:AH27) -> 22.38800892 | AI28: =SUM(AI25:AI27) -> 1.172387206 | AJ28: =SUM(AJ25:AJ27) -> 1.669489164 | AK28: =SUM(AK25:AK27) -> 1.352909927
C29: Commerce de gros | D29: 0 | E29: 0
C30: Commerce de détail | D30: 0 | E30: 0
C31: FAI | D31: 0 | E31: 0
C32: Services divers | D32: 0 | E32: 0 | M32: =CONCATENATE("En $",Déflateurs!E5) -> En $2020
C33: Réparation et maintenance | D33: 0 | E33: 0 | H33: Ing. & Svcs Prof. & Interconnexion | I33: =I54*C60 -> 0 | J33: =I45-DonnéesParDéfaut!I40 -> 159.2847885 | L33: Ing. & Svcs Prof. & Interconnexion | M33: =M54*G60 -> 0 | N33: =M45-H45 -> 0 | P33: Ing. & Svcs Prof. & Interconnexion | Q33: =Q54*G60 -> 0 | R33: =(Q57-Q45-Q33)*G60 -> 42.492072 | T33: Ing. & Svcs Prof. & Interconnexion | U33: =U54*G60 -> 0 | V33: =(U57-U33-U45)*K60 -> 0
C34: Services professioniels | D34: 0 | E34: 0 | H34: Autres secteurs (sauf construction) | I34: =((I57-I45)*G60)-I37-I33 -> 37.47735418 | L34: Autres secteurs (sauf construction) | M34: =((M57-M45)*G60)-M37-M33 -> 0.04014654085 | P34: Autres secteurs (sauf construction) | Q34: =(Q57-Q45)*G60-Q33-Q37 -> 7.310464 | T34: Autres secteurs (sauf construction) | U34: =(U57-U45)*G60-U33-U37 -> 3.994423981
C35: Gouvernement | D35: =D10 -> 7310464 | E35: 0
C36: Total | D36: =SUM(D23:D35) -> 98691264 | E36: =SUM(E23:E35) -> 0
H37: Emplois manufacturiers | I37: =I46+I47 -> 113.8225177 | J37: =J46+J47 -> 57.10442618 | L37: Manuf. Salaires & Revenus | M37: =(M46+M47)*$G60 -> 0 | P37: Production manuf. | Q37: =(Q46+Q47)*$G60 -> 35.181608 | R37: =(R46+R47)*$G60 -> 13.6737707 | T37: Production manuf. | U37: =(U46+U47)*$G60 -> 13.63579178 | V37: =(V46+V47)*$G60 -> 6.638515548
I38: =I39/DonnéesProjet!$B12 -> 0.02276450353 | J38: =J39/DonnéesProjet!$B12 -> 0.01142088524 | K38: =K39/DonnéesProjet!$B12 -> 0.009915856135 | L38: =L39/DonnéesProjet!$B12 -> 0.04410124491 | P38: =P39*G60 -> 6.710525462 | T38: =T39*G60 -> 58.33306596 | X38: =X39*G60 -> 25.83074219
C39: Année | D39: =DonnéesProjet!B$17 -> 2020 | F39: =CONCATENATE("Convertir en dollards de ",Déflateurs!E$4) -> Convertir en dollards de 2017 | G39: =Déflateurs!J$4 -> 0.9489051095 | I39: =SUM(I46:I49) -> 113.8225177 | J39: =SUM(J46:J47) -> 57.10442618 | K39: =SUM(K46:K47) -> 49.57928068 | L39: =SUM(L46:L47) -> 220.5062245 | M39: 0 | N39: 3.916012044 | O39: 2.451639854 | P39: 6.367651898 | Q39: 33.38400759 | R39: 12.97511089 | S39: 8.993425861 | T39: 55.35254434 | U39: 12.93907249 | V39: 6.299321323 | W39: 5.272529431 | X39: 24.51092324
C40: Coûts d'installation | F40: =SUM(F3:F39) -> 0 | I40: =(M45*10^6)/I45 -> 50211.50048 | M40: =CONCATENATE("In $",Déflateurs!E4) -> In $2017
D41: Demande | F41: Total | G41: Demande ajustée | I41: Emplois | M41: Revenus d'emploi | Q41: Extrant | U41: Valeur ajoutée
G42: =CONCATENATE("Millions de dollards de ",Déflateurs!E4) -> Millions de dollards de 2017 | I42: Direct | J42: Indirect | K42: Induit | L42: Total | M42: Direct | N42: Indirect | O42: Induit | P42: Total | Q42: Direct | R42: Indirect | S42: Induit | T42: Total | U42: Direct | V42: Indirect | W42: Induit | X42: Total
C43: Agriculture | D43: =D23 -> 0 | F43: =D43 -> 0 | G43: =F43*G$39/10^6 -> 0 | I43: =$G43*Multiplicateurs!D8 -> 0 | J43: =$G43*Multiplicateurs!E8 -> 0 | K43: =$G43*Multiplicateurs!F8 -> 0 | L43: =I43+J43+K43 -> 0 | M43: =$G43*Multiplicateurs!G8 -> 0 | N43: =$G43*Multiplicateurs!H8 -> 0 | O43: =$G43*Multiplicateurs!I8 -> 0 | P43: =M43+N43+O43 -> 0 | Q43: =+$G43*Multiplicateurs!J8 -> 0 | R43: =$G43*Multiplicateurs!K8 -> 0 | S43: =$G43*Multiplicateurs!L8 -> 0 | T43: =Q43+R43+S43 -> 0 | U43: =$G43*Multiplicateurs!M8 -> 0 | V43: =$G43*Multiplicateurs!N8 -> 0 | W43: =$G43*Multiplicateurs!O8 -> 0 | X43: =U43+V43+W43 -> 0
C44: Exploitation minière | D44: =D24 -> 0 | F44: =D44 -> 0 | G44: =F44*G$39/10^6 -> 0 | I44: =$G44*Multiplicateurs!D9 -> 0 | J44: =$G44*Multiplicateurs!E9 -> 0 | K44: =$G44*Multiplicateurs!F9 -> 0 | L44: =I44+J44+K44 -> 0 | M44: =$G44*Multiplicateurs!G9 -> 0 | N44: =$G44*Multiplicateurs!H9 -> 0 | O44: =$G44*Multiplicateurs!I9 -> 0 | P44: =M44+N44+O44 -> 0 | Q44: =+$G44*Multiplicateurs!J9 -> 0 | R44: =$G44*Multiplicateurs!K9 -> 0 | S44: =$G44*Multiplicateurs!L9 -> 0 | T44: =Q44+R44+S44 -> 0 | U44: =$G44*Multiplicateurs!M9 -> 0 | V44: =$G44*Multiplicateurs!N9 -> 0 | W44: =$G44*Multiplicateurs!O9 -> 0 | X44: =U44+V44+W44 -> 0
C45: Construction | D45: 56199192 | F45: 56199192 | G45: 53.32770044 | H45: =G8*G39/10^6 -> 39.02026861 | I45: =$H45*Multiplicateurs!D10+DonnéesParDéfaut!I40 -> 777.118155 | J45: =($G45*Multiplicateurs!E10)+(H46*Multiplicateurs!D10) -> 193.7179237 | K45: =$G45*Multiplicateurs!F10 -> 90.66589041 | L45: 1061.501969 | M45: =H45 -> 39.02026861 | N45: =(G45*Multiplicateurs!H10)+(H46*Multiplicateurs!G10) -> 8.708946926 | O45: =$G45*Multiplicateurs!I10 -> 4.490756332 | P45: 52.21997187 | Q45: =(H45*Multiplicateurs!J10) -> 39.02026861 | R45: =G45*Multiplicateurs!K10+H46*Multiplicateurs!J10 -> 41.23453349 | S45: =$G45*Multiplicateurs!L10 -> 16.45243246 | T45: 96.70723456 | U45: =$G45*Multiplicateurs!M10 -> 24.61618087 | V45: =$G45*Multiplicateurs!N10 -> 13.44687368 | W45: =$G45*Multiplicateurs!O10 -> 9.649283181 | X45: 47.71233774
C46: Secteur manufacturier | D46: 0 | F46: 0 | G46: 0 | H46: =G45-H45 -> 14.30743182 | I46: =$G46*Multiplicateurs!D11 -> 0 | J46: =$G46*Multiplicateurs!E11 -> 0 | K46: =$G46*Multiplicateurs!F11 -> 0 | L46: 0 | M46: =$G46*Multiplicateurs!G11 -> 0 | N46: =$G46*Multiplicateurs!H11 -> 0 | O46: =$G46*Multiplicateurs!I11 -> 0 | P46: 0 | Q46: =+$G46*Multiplicateurs!J11 -> 0 | R46: =$G46*Multiplicateurs!K11 -> 0 | S46: =$G46*Multiplicateurs!L11 -> 0 | T46: 0 | U46: =$G46*Multiplicateurs!M11 -> 0 | V46: =$G46*Multiplicateurs!N11 -> 0 | W46: =$G46*Multiplicateurs!O11 -> 0 | X46: 0
C47: Machinerie et équipement | D47: 35181608 | F47: 35181608 | G47: 33.38400759 | I47: =$G47*Multiplicateurs!D12 -> 113.8225177 | J47: =$G47*Multiplicateurs!E12 -> 57.10442618 | K47: =$G47*Multiplicateurs!F12 -> 49.57928068 | L47: 220.5062245 | M47: =$G47*Multiplicateurs!G12 -> 0 | N47: =$G47*Multiplicateurs!H12 -> 3.916012044 | O47: =$G47*Multiplicateurs!I12 -> 2.451639854 | P47: 6.367651898 | Q47: =+$G47*Multiplicateurs!J12 -> 33.38400759 | R47: =$G47*Multiplicateurs!K12 -> 12.97511089 | S47: =$G47*Multiplicateurs!L12 -> 8.993425861 | T47: 55.35254434 | U47: =$G47*Multiplicateurs!M12 -> 12.93907249 | V47: =$G47*Multiplicateurs!N12 -> 6.299321323 | W47: =$G47*Multiplicateurs!O12 -> 5.272529431 | X47: 24.51092324
C48: TCSP | D48: 0 | F48: 0 | G48: 0 | I48: =$G48*Multiplicateurs!D13 -> 0 | J48: =$G48*Multiplicateurs!E13 -> 0 | K48: =$G48*Multiplicateurs!F13 -> 0 | L48: 0 | M48: =$G48*Multiplicateurs!G13 -> 0 | N48: =$G48*Multiplicateurs!H13 -> 0 | O48: =$G48*Multiplicateurs!I13 -> 0 | P48: 0 | Q48: =+$G48*Multiplicateurs!J13 -> 0 | R48: =$G48*Multiplicateurs!K13 -> 0 | S48: =$G48*Multiplicateurs!L13 -> 0 | T48: 0 | U48: =$G48*Multiplicateurs!M13 -> 0 | V48: =$G48*Multiplicateurs!N13 -> 0 | W48: =$G48*Multiplicateurs!O13 -> 0 | X48: 0
C49: Commerce de gros | D49: 0 | F49: 0 | G49: 0 | I49: =$G49*Multiplicateurs!D14 -> 0 | J49: =$G49*Multiplicateurs!E14 -> 0 | K49: =$G49*Multiplicateurs!F14 -> 0 | L49: 0 | M49: =$G49*Multiplicateurs!G14 -> 0 | N49: =$G49*Multiplicateurs!H14 -> 0 | O49: =$G49*Multiplicateurs!I14 -> 0 | P49: 0 | Q49: =+$G49*Multiplicateurs!J14 -> 0 | R49: =$G49*Multiplicateurs!K14 -> 0 | S49: =$G49*Multiplicateurs!L14 -> 0 | T49: 0 | U49: =$G49*Multiplicateurs!M14 -> 0 | V49: =$G49*Multiplicateurs!N14 -> 0 | W49: =$G49*Multiplicateurs!O14 -> 0 | X49: 0
C50: Commerce de détail | D50: 0 | F50: 0 | G50: 0 | I50: =$G50*Multiplicateurs!D15 -> 0 | J50: =$G50*Multiplicateurs!E15 -> 0 | K50: =$G50*Multiplicateurs!F15 -> 0 | L50: 0 | M50: =$G50*Multiplicateurs!G15 -> 0 | N50: =$G50*Multiplicateurs!H15 -> 0 | O50: =$G50*Multiplicateurs!I15 -> 0 | P50: 0 | Q50: =+$G50*Multiplicateurs!J15 -> 0 | R50: =$G50*Multiplicateurs!K15 -> 0 | S50: =$G50*Multiplicateurs!L15 -> 0 | T50: 0 | U50: =$G50*Multiplicateurs!M15 -> 0 | V50: =$G50*Multiplicateurs!N15 -> 0 | W50: =$G50*Multiplicateurs!O15 -> 0 | X50: 0
C51: FAI | D51: 0 | F51: 0 | G51: 0 | I51: =$G51*Multiplicateurs!D16 -> 0 | J51: =$G51*Multiplicateurs!E16 -> 0 | K51: =$G51*Multiplicateurs!F16 -> 0 | L51: 0 | M51: =$G51*Multiplicateurs!G16 -> 0 | N51: =$G51*Multiplicateurs!H16 -> 0 | O51: =$G51*Multiplicateurs!I16 -> 0 | P51: 0 | Q51: =+$G51*Multiplicateurs!J16 -> 0 | R51: =$G51*Multiplicateurs!K16 -> 0 | S51: =$G51*Multiplicateurs!L16 -> 0 | T51: 0 | U51: =$G51*Multiplicateurs!M16 -> 0 | V51: =$G51*Multiplicateurs!N16 -> 0 | W51: =$G51*Multiplicateurs!O16 -> 0 | X51: 0
C52: Services divers | D52: 0 | F52: 0 | G52: 0 | I52: =$G52*Multiplicateurs!D17 -> 0 | J52: =$G52*Multiplicateurs!E17 -> 0 | K52: =$G52*Multiplicateurs!F17 -> 0 | L52: 0 | M52: =$G52*Multiplicateurs!G17 -> 0 | N52: =$G52*Multiplicateurs!H17 -> 0 | O52: =$G52*Multiplicateurs!I17 -> 0 | P52: 0 | Q52: =+$G52*Multiplicateurs!J17 -> 0 | R52: =$G52*Multiplicateurs!K17 -> 0 | S52: =$G52*Multiplicateurs!L17 -> 0 | T52: 0 | U52: =$G52*Multiplicateurs!M17 -> 0 | V52: =$G52*Multiplicateurs!N17 -> 0 | W52: =$G52*Multiplicateurs!O17 -> 0 | X52: 0
C53: Réparation et maintenance | D53: 0 | F53: 0 | G53: 0 | I53: =$G53*Multiplicateurs!D18 -> 0 | J53: =$G53*Multiplicateurs!E18 -> 0 | K53: =$G53*Multiplicateurs!F18 -> 0 | L53: 0 | M53: =$G53*Multiplicateurs!G18 -> 0 | N53: =$G53*Multiplicateurs!H18 -> 0 | O53: =$G53*Multiplicateurs!I18 -> 0 | P53: 0 | Q53: =+$G53*Multiplicateurs!J18 -> 0 | R53: =$G53*Multiplicateurs!K18 -> 0 | S53: =$G53*Multiplicateurs!L18 -> 0 | T53: 0 | U53: =$G53*Multiplicateurs!M18 -> 0 | V53: =$G53*Multiplicateurs!N18 -> 0 | W53: =$G53*Multiplicateurs!O18 -> 0 | X53: 0
C54: Services professioniels | D54: 0 | F54: 0 | G54: 0 | I54: =$G54*Multiplicateurs!D19 -> 0 | J54: =$G54*Multiplicateurs!E19 -> 0 | K54: =$G54*Multiplicateurs!F19 -> 0 | L54: 0 | M54: =$G54*Multiplicateurs!G19 -> 0 | N54: =$G54*Multiplicateurs!H19 -> 0 | O54: =$G54*Multiplicateurs!I19 -> 0 | P54: 0 | Q54: =+$G54*Multiplicateurs!J19 -> 0 | R54: =$G54*Multiplicateurs!K19 -> 0 | S54: =$G54*Multiplicateurs!L19 -> 0 | T54: 0 | U54: =$G54*Multiplicateurs!M19 -> 0 | V54: =$G54*Multiplicateurs!N19 -> 0 | W54: =$G54*Multiplicateurs!O19 -> 0 | X54: 0
C55: Gouvernement | D55: 7310464 | F55: 7310464 | G55: 6.936936642 | I55: =$G55*Multiplicateurs!D20 -> 29.7467038 | J55: =$G55*Multiplicateurs!E20 -> 20.70964757 | K55: =$G55*Multiplicateurs!F20 -> 14.69855697 | L55: 65.15490833 | M55: =$G55*Multiplicateurs!G20 -> 0.03809525774 | N55: =$G55*Multiplicateurs!H20 -> 1.297365139 | O55: =$G55*Multiplicateurs!I20 -> 0.7250966158 | P55: 2.060557013 | Q55: =+$G55*Multiplicateurs!J20 -> 6.936936642 | R55: =$G55*Multiplicateurs!K20 -> 3.486455953 | S55: =$G55*Multiplicateurs!L20 -> 2.664025037 | T55: 13.08741763 | U55: =$G55*Multiplicateurs!M20 -> 3.790329325 | V55: =$G55*Multiplicateurs!N20 -> 2.105126306 | W55: =$G55*Multiplicateurs!O20 -> 1.564018499 | X55: 7.45947413
C57: Total | D57: =SUM(D43:D56) -> 98691264 | F57: =SUM(F43:F56) -> 98691264 | G57: =SUM(G43:G56) -> 93.64864467 | H57: Total | I57: =SUM(I43:I56) -> 920.6873765 | J57: 271.5319974 | K57: 154.9437281 | L57: 1347.163102 | M57: 39.05836387 | N57: 13.92232411 | O57: 7.667492803 | P57: 60.64818078 | Q57: 79.34121285 | R57: 57.69610033 | S57: 28.10988335 | T57: 165.1471965 | U57: 41.34558269 | V57: 21.85132131 | W57: 16.48583111 | X57: 79.68273511
F59: Inflator to | G59: =D39 -> 2020 | H59: Dollars | M59: =CONCATENATE("↓ Conversion of totals into ", G59," dollars ↓") -> ↓ Conversion of totals into 2020 dollars ↓
G60: =Déflateurs!J5 -> 1.053846154 | M60: =M57*$G60 -> 41.16150654 | N60: =N57*$G60 -> 14.67198772 | O60: 8.0803578 | P60: 63.91385206 | Q60: 83.613432 | R60: 60.80281342 | S60: 29.62349246 | T60: 174.0397379 | U60: 43.57188329 | V60: 23.02793092 | W60: 17.37352971 | X60: 83.97334392
C62: Coûts de maintenance | H62: Bénéfices brutes
D63: Coût | E63: Part locale | F63: Revenus employ. | G63: Dépenses locales | H63: Revenus employ. | I63: Part gouvernementale | J63: Part pour santé, ass., autres
C65: Personnel
C66: Main d'œuvre maintenance | D66: =IF(DonnéesProjet!$B$21="O",DonnéesParDéfaut!D27,DonnéesProjet!B38) -> 1250000 | E66: =IF(DonnéesProjet!$B$21="O",DonnéesParDéfaut!F27,DonnéesProjet!E38) -> 1 | F66: =D66*(1-DonnéesParDéfaut!K$32) -> 877125 | G66: =E66*F66 -> 877125 | H66: =D66*(1-DonnéesParDéfaut!K$30) -> 962500 | I66: =D66*E66*DonnéesParDéfaut!K$30 -> 287500 | J66: =E66*D66*DonnéesParDéfaut!K$31 -> 85375
C69: Sous-total | D69: =SUM(D66:D68) -> 1250000 | F69: =SUM(F66:F68) -> 877125 | G69: =SUM(G66:G68) -> 877125 | H69: =SUM(H66:H68) -> 962500 | I69: =SUM(I66:I68) -> 287500 | J69: =SUM(J66:J68) -> 85375 | K69: =G69+I69+J69 -> 1250000
C71: Total | D71: =D69+D70 -> 1250000
L72: Sans employés
C73: Demande locale - Maintenance annuelle - avec marges | O73: =Déflateurs!E4 -> 2017 | P73: Dollars
D74: Demande | G74: Total | H74: Demande ajustée - Million | L74: Emplois | P74: Revenus d'emploi | T74: Extrant | X74: Valeur ajoutée
G75: w/o Plant Empl | H75: =Déflateurs!E4 -> 2017 | I75: Dollars | L75: Direct | M75: Indirect | N75: Induit | O75: Total | P75: Direct | Q75: Indirect | R75: Induit | S75: Total | T75: Direct | U75: Indirect | V75: Induit | W75: Total | X75: Direct | Y75: Indirect | Z75: Induit | AA75: Total
C76: Agriculture | D76: =MMULT(TRANSPOSE(DemandOM),MarginsAGR) -> 0 | G76: =D76+E76+F76 -> 0 | H76: =G76*G$39/10^6 -> 0 | L76: =$H76*Multiplicateurs!D8 -> 0 | M76: =$H76*Multiplicateurs!E8 -> 0 | N76: =$H76*Multiplicateurs!F8 -> 0 | O76: =L76+M76+N76 -> 0 | P76: =$H76*Multiplicateurs!G8 -> 0 | Q76: =$H76*Multiplicateurs!H8 -> 0 | R76: =$H76*Multiplicateurs!I8 -> 0 | S76: =P76+Q76+R76 -> 0 | T76: =$H76*Multiplicateurs!J8 -> 0 | U76: =$H76*Multiplicateurs!K8 -> 0 | V76: =$H76*Multiplicateurs!L8 -> 0 | W76: =T76+U76+V76 -> 0 | X76: =$H76*Multiplicateurs!M8 -> 0 | Y76: =$H76*Multiplicateurs!N8 -> 0 | Z76: =$H76*Multiplicateurs!O8 -> 0 | AA76: =X76+Y76+Z76 -> 0
C77: Exploitation minière | D77: =MMULT(TRANSPOSE(DemandOM),MarginsMIN) -> 0 | G77: =D77+E77+F77 -> 0 | H77: =G77*G$39/10^6 -> 0 | L77: =$H77*Multiplicateurs!D9 -> 0 | M77: =$H77*Multiplicateurs!E9 -> 0 | N77: =$H77*Multiplicateurs!F9 -> 0 | O77: =L77+M77+N77 -> 0 | P77: =$H77*Multiplicateurs!G9 -> 0 | Q77: =$H77*Multiplicateurs!H9 -> 0 | R77: =$H77*Multiplicateurs!I9 -> 0 | S77: =P77+Q77+R77 -> 0 | T77: =$H77*Multiplicateurs!J9 -> 0 | U77: =$H77*Multiplicateurs!K9 -> 0 | V77: =$H77*Multiplicateurs!L9 -> 0 | W77: =T77+U77+V77 -> 0 | X77: =$H77*Multiplicateurs!M9 -> 0 | Y77: =$H77*Multiplicateurs!N9 -> 0 | Z77: =$H77*Multiplicateurs!O9 -> 0 | AA77: =X77+Y77+Z77 -> 0
C78: Construction | D78: =MMULT(TRANSPOSE(DemandOM),MarginsCON) -> 0 | G78: 0 | H78: 0 | L78: =$H78*Multiplicateurs!D10 -> 0 | M78: =$H78*Multiplicateurs!E10 -> 0 | N78: =$H78*Multiplicateurs!F10 -> 0 | O78: 0 | P78: =$H78*Multiplicateurs!G10 -> 0 | Q78: =$H78*Multiplicateurs!H10 -> 0 | R78: =$H78*Multiplicateurs!I10 -> 0 | S78: 0 | T78: =$H78*Multiplicateurs!J10 -> 0 | U78: =$H78*Multiplicateurs!K10 -> 0 | V78: =$H78*Multiplicateurs!L10 -> 0 | W78: 0 | X78: =$H78*Multiplicateurs!M10 -> 0 | Y78: =$H78*Multiplicateurs!N10 -> 0 | Z78: =$H78*Multiplicateurs!O10 -> 0 | AA78: 0
C79: Secteur manufacturier | D79: =MMULT(TRANSPOSE(DemandOM),MarginsMFG) -> 0 | G79: 0 | H79: 0 | L79: =$H79*Multiplicateurs!D11 -> 0 | M79: =$H79*Multiplicateurs!E11 -> 0 | N79: =$H79*Multiplicateurs!F11 -> 0 | O79: 0 | P79: =$H79*Multiplicateurs!G11 -> 0 | Q79: =$H79*Multiplicateurs!H11 -> 0 | R79: =$H79*Multiplicateurs!I11 -> 0 | S79: 0 | T79: =$H79*Multiplicateurs!J11 -> 0 | U79: =$H79*Multiplicateurs!K11 -> 0 | V79: =$H79*Multiplicateurs!L11 -> 0 | W79: 0 | X79: =$H79*Multiplicateurs!M11 -> 0 | Y79: =$H79*Multiplicateurs!N11 -> 0 | Z79: =$H79*Multiplicateurs!O11 -> 0 | AA79: 0
C80: Machinerie et équipement | D80: =MMULT(TRANSPOSE(DemandOM),MarginsMAC) -> 0 | G80: 0 | H80: 0 | L80: =$H80*Multiplicateurs!D12 -> 0 | M80: =$H80*Multiplicateurs!E12 -> 0 | N80: =$H80*Multiplicateurs!F12 -> 0 | O80: 0 | P80: =$H80*Multiplicateurs!G12 -> 0 | Q80: =$H80*Multiplicateurs!H12 -> 0 | R80: =$H80*Multiplicateurs!I12 -> 0 | S80: 0 | T80: =$H80*Multiplicateurs!J12 -> 0 | U80: =$H80*Multiplicateurs!K12 -> 0 | V80: =$H80*Multiplicateurs!L12 -> 0 | W80: 0 | X80: =$H80*Multiplicateurs!M12 -> 0 | Y80: =$H80*Multiplicateurs!N12 -> 0 | Z80: =$H80*Multiplicateurs!O12 -> 0 | AA80: 0
C81: TCSP | D81: =MMULT(TRANSPOSE(DemandOM),MarginsTCPU) -> 0 | G81: 0 | H81: 0 | L81: =$H81*Multiplicateurs!D13 -> 0 | M81: =$H81*Multiplicateurs!E13 -> 0 | N81: =$H81*Multiplicateurs!F13 -> 0 | O81: 0 | P81: =$H81*Multiplicateurs!G13 -> 0 | Q81: =$H81*Multiplicateurs!H13 -> 0 | R81: =$H81*Multiplicateurs!I13 -> 0 | S81: 0 | T81: =$H81*Multiplicateurs!J13 -> 0 | U81: =$H81*Multiplicateurs!K13 -> 0 | V81: =$H81*Multiplicateurs!L13 -> 0 | W81: 0 | X81: =$H81*Multiplicateurs!M13 -> 0 | Y81: =$H81*Multiplicateurs!N13 -> 0 | Z81: =$H81*Multiplicateurs!O13 -> 0 | AA81: 0
C82: Commerce de gros | D82: =MMULT(TRANSPOSE(DemandOM),MarginsWHO) -> 0 | G82: 0 | H82: 0 | L82: =$H82*Multiplicateurs!D14 -> 0 | M82: =$H82*Multiplicateurs!E14 -> 0 | N82: =$H82*Multiplicateurs!F14 -> 0 | O82: 0 | P82: =$H82*Multiplicateurs!G14 -> 0 | Q82: =$H82*Multiplicateurs!H14 -> 0 | R82: =$H82*Multiplicateurs!I14 -> 0 | S82: 0 | T82: =$H82*Multiplicateurs!J14 -> 0 | U82: =$H82*Multiplicateurs!K14 -> 0 | V82: =$H82*Multiplicateurs!L14 -> 0 | W82: 0 | X82: =$H82*Multiplicateurs!M14 -> 0 | Y82: =$H82*Multiplicateurs!N14 -> 0 | Z82: =$H82*Multiplicateurs!O14 -> 0 | AA82: 0
C83: Commerce de détail | D83: =MMULT(TRANSPOSE(DemandOM),MarginsRET) -> 0 | G83: 0 | H83: 0 | L83: =$H83*Multiplicateurs!D15 -> 0 | M83: =$H83*Multiplicateurs!E15 -> 0 | N83: =$H83*Multiplicateurs!F15 -> 0 | O83: 0 | P83: =$H83*Multiplicateurs!G15 -> 0 | Q83: =$H83*Multiplicateurs!H15 -> 0 | R83: =$H83*Multiplicateurs!I15 -> 0 | S83: 0 | T83: =$H83*Multiplicateurs!J15 -> 0 | U83: =$H83*Multiplicateurs!K15 -> 0 | V83: =$H83*Multiplicateurs!L15 -> 0 | W83: 0 | X83: =$H83*Multiplicateurs!M15 -> 0 | Y83: =$H83*Multiplicateurs!N15 -> 0 | Z83: =$H83*Multiplicateurs!O15 -> 0 | AA83: 0
C84: FAI | D84: =MMULT(TRANSPOSE(DemandOM),MarginsFIRE) -> 0 | G84: 0 | H84: 0 | L84: =$H84*Multiplicateurs!D16 -> 0 | M84: =$H84*Multiplicateurs!E16 -> 0 | N84: =$H84*Multiplicateurs!F16 -> 0 | O84: 0 | P84: =$H84*Multiplicateurs!G16 -> 0 | Q84: =$H84*Multiplicateurs!H16 -> 0 | R84: =$H84*Multiplicateurs!I16 -> 0 | S84: 0 | T84: =$H84*Multiplicateurs!J16 -> 0 | U84: =$H84*Multiplicateurs!K16 -> 0 | V84: =$H84*Multiplicateurs!L16 -> 0 | W84: 0 | X84: =$H84*Multiplicateurs!M16 -> 0 | Y84: =$H84*Multiplicateurs!N16 -> 0 | Z84: =$H84*Multiplicateurs!O16 -> 0 | AA84: 0
C85: Services divers | D85: =MMULT(TRANSPOSE(DemandOM),MarginsOTH) -> 0 | G85: 0 | H85: 0 | L85: =$H85*Multiplicateurs!D17 -> 0 | M85: =$H85*Multiplicateurs!E17 -> 0 | N85: =$H85*Multiplicateurs!F17 -> 0 | O85: 0 | P85: =$H85*Multiplicateurs!G17 -> 0 | Q85: =$H85*Multiplicateurs!H17 -> 0 | R85: =$H85*Multiplicateurs!I17 -> 0 | S85: 0 | T85: =$H85*Multiplicateurs!J17 -> 0 | U85: =$H85*Multiplicateurs!K17 -> 0 | V85: =$H85*Multiplicateurs!L17 -> 0 | W85: 0 | X85: =$H85*Multiplicateurs!M17 -> 0 | Y85: =$H85*Multiplicateurs!N17 -> 0 | Z85: =$H85*Multiplicateurs!O17 -> 0 | AA85: 0
C86: Réparation et maintenance | D86: =MMULT(TRANSPOSE(DemandOM),MarginsREP) -> 0 | G86: 0 | H86: 0 | L86: =$H86*Multiplicateurs!D18 -> 0 | M86: =$H86*Multiplicateurs!E18 -> 0 | N86: =$H86*Multiplicateurs!F18 -> 0 | O86: 0 | P86: =$H86*Multiplicateurs!G18 -> 0 | Q86: =$H86*Multiplicateurs!H18 -> 0 | R86: =$H86*Multiplicateurs!I18 -> 0 | S86: 0 | T86: =$H86*Multiplicateurs!J18 -> 0 | U86: =$H86*Multiplicateurs!K18 -> 0 | V86: =$H86*Multiplicateurs!L18 -> 0 | W86: 0 | X86: =$H86*Multiplicateurs!M18 -> 0 | Y86: =$H86*Multiplicateurs!N18 -> 0 | Z86: =$H86*Multiplicateurs!O18 -> 0 | AA86: 0
C87: Services professioniels | D87: =MMULT(TRANSPOSE(DemandOM),MarginsPRO) -> 0 | G87: 0 | H87: 0 | L87: =$H87*Multiplicateurs!D19 -> 0 | M87: =$H87*Multiplicateurs!E19 -> 0 | N87: =$H87*Multiplicateurs!F19 -> 0 | O87: 0 | P87: =$H87*Multiplicateurs!G19 -> 0 | Q87: =$H87*Multiplicateurs!H19 -> 0 | R87: =$H87*Multiplicateurs!I19 -> 0 | S87: 0 | T87: =$H87*Multiplicateurs!J19 -> 0 | U87: =$H87*Multiplicateurs!K19 -> 0 | V87: =$H87*Multiplicateurs!L19 -> 0 | W87: 0 | X87: =$H87*Multiplicateurs!M19 -> 0 | Y87: =$H87*Multiplicateurs!N19 -> 0 | Z87: =$H87*Multiplicateurs!O19 -> 0 | AA87: 0
C88: Gouvernement | D88: =MMULT(TRANSPOSE(DemandOM),MarginsGOV) -> 0 | G88: 0 | H88: 0 | L88: =$H88*Multiplicateurs!D20 -> 0 | M88: =$H88*Multiplicateurs!E20 -> 0 | N88: =$H88*Multiplicateurs!F20 -> 0 | O88: 0 | P88: =$H88*Multiplicateurs!G20 -> 0 | Q88: =$H88*Multiplicateurs!H20 -> 0 | R88: =$H88*Multiplicateurs!I20 -> 0 | S88: 0 | T88: =$H88*Multiplicateurs!J20 -> 0 | U88: =$H88*Multiplicateurs!K20 -> 0 | V88: =$H88*Multiplicateurs!L20 -> 0 | W88: 0 | X88: =$H88*Multiplicateurs!M20 -> 0 | Y88: =$H88*Multiplicateurs!N20 -> 0 | Z88: =$H88*Multiplicateurs!O20 -> 0 | AA88: 0
L89: =$H89*Multiplicateurs!D21 -> 0 | M89: =$H89*Multiplicateurs!E21 -> 0 | N89: =$H89*Multiplicateurs!F21 -> 0 | O89: 0 | P89: =$H89*Multiplicateurs!G21 -> 0 | Q89: =$H89*Multiplicateurs!H21 -> 0 | R89: =$H89*Multiplicateurs!I21 -> 0 | S89: 0 | T89: =$H89*Multiplicateurs!J21 -> 0 | U89: =$H89*Multiplicateurs!K21 -> 0 | V89: =$H89*Multiplicateurs!L21 -> 0 | W89: 0 | X89: =$H89*Multiplicateurs!M21 -> 0 | Y89: =$H89*Multiplicateurs!N21 -> 0 | Z89: =$H89*Multiplicateurs!O21 -> 0 | AA89: 0
C90: Total | D90: =SUM(D76:D89) -> 0 | G90: =SUM(G76:G89) -> 0 | H90: =SUM(H76:H89) -> 0 | K90: Total | L90: =SUM(L76:L89) -> 0 | M90: =SUM(M76:M89) -> 0 | N90: 0 | O90: 0 | P90: 0 | Q90: 0 | R90: 0 | S90: 0 | T90: 0 | U90: 0 | V90: 0 | W90: 0 | X90: 0 | Y90: 0 | Z90: 0 | AA90: 0
E92: Revenus - Bruts | G92: =K69 -> 1250000
E93: Employés - (Ass, etc.) | F93: =DonnéesParDéfaut!K30 -> 0.23 | G93: =F93*G$92 -> 287500 | H93: 0 | P93: Convertir en dollards de | Q93: =D39 -> 2020
E94: Autres avantages | F94: =DonnéesParDéfaut!K31 -> 0.0683 | G94: =F94*G$92 -> 85375 | H94: =IF(DonnéesProjet!B9="MyRegion",0,1) -> 1 | J94: Sans les employés de centrale | L94: =L90 -> 0 | M94: =M90 -> 0 | N94: =N90 -> 0 | O94: =O90 -> 0 | P94: =P90*$G60 -> 0 | Q94: =Q90*$G60 -> 0 | R94: =R90*$G60 -> 0 | S94: =P94+Q94+R94 -> 0 | T94: =T90*$G60 -> 0 | U94: 0 | V94: 0 | W94: 0 | X94: 0 | Y94: 0 | Z94: 0 | AA94: 0
E95: Revenus (moins les taxes, avantages, etc) | G95: =G92-G93-G94 -> 877125 | J95: Avec les employés de centrale | L95: =L94+L115 -> 18.78079198 | M95: =M94+M115 -> 2.05219371 | N95: =N94+N115 -> 1.555023227 | O95: =O94+O115 -> 22.38800892 | P95: =(P90+P115)*$G60 -> 0.9625 | Q95: 0.1288849121 | R95: 0.08100229369 | S95: 1.172387206 | T95: 0.9625 | U95: 0.4099180587 | V95: 0.2970711048 | W95: 1.669489164 | X95: 0.9625 | Y95: 0.2160276345 | Z95: 0.174382292 | AA95: 1.352909927
C97: Employés maintenance | D97: =DonnéesParDéfaut!I41 -> 18.78079198
L98: Employés
C99: Employee Spending | F99: DPC | H99: Demande ajustée - Million | L99: Emplois | P99: Revenus d'emploi | T99: Extrant | X99: Valeur ajoutée
F100: Emp | H100: =H75 -> 2017 | I100: Dollars | L100: Direct | M100: Indirect | N100: Induit | O100: Total | P100: Direct | Q100: Indirect | R100: Induit | S100: Total | T100: Direct | U100: Indirect | V100: Induit | W100: Total | X100: Direct | Y100: Indirect | Z100: Induit | AA100: Total
C101: Agriculture | F101: =G$95*Multiplicateurs!D25 -> 13464.65161 | H101: =F101*G$39/10^6 -> 0.01277667671 | M101: =$H101*Multiplicateurs!E8 -> 0.03229756746 | N101: =$H101*Multiplicateurs!F8 -> 0.01491861229 | O101: =M101+N101 -> 0.04721617975 | Q101: =$H101*Multiplicateurs!H8 -> 0.001816471696 | R101: =$H101*Multiplicateurs!I8 -> 0.0007363870101 | S101: =Q101+R101 -> 0.002552858706 | T101: =$H101*Multiplicateurs!J8 -> 0.01277667671 | U101: =$H101*Multiplicateurs!K8 -> 0.006849333903 | V101: =$H101*Multiplicateurs!L8 -> 0.002711050278 | W101: =T101+U101+V101 -> 0.0223370609 | Y101: =$H101*Multiplicateurs!N8 -> 0.003441703829 | Z101: =$H101*Multiplicateurs!O8 -> 0.001584753733 | AA101: =Y101+Z101 -> 0.005026457562
C102: Exploitation minière | F102: =G$95*Multiplicateurs!D26 -> 3328.773695 | H102: =F102*G$39/10^6 -> 0.003158690368 | M102: =$H102*Multiplicateurs!E9 -> 0.004874614546 | N102: =$H102*Multiplicateurs!F9 -> 0.004428125159 | O102: =M102+N102 -> 0.009302739705 | Q102: =$H102*Multiplicateurs!H9 -> 0.0003404018756 | R102: =$H102*Multiplicateurs!I9 -> 0.0002194657394 | S102: =Q102+R102 -> 0.0005598676151 | T102: =$H102*Multiplicateurs!J9 -> 0.003158690368 | U102: =$H102*Multiplicateurs!K9 -> 0.001021126118 | V102: =$H102*Multiplicateurs!L9 -> 0.0008037438179 | W102: =T102+U102+V102 -> 0.004983560304 | Y102: =$H102*Multiplicateurs!N9 -> 0.0005560442934 | Z102: =$H102*Multiplicateurs!O9 -> 0.0004711679524 | AA102: =Y102+Z102 -> 0.001027212246
C103: Construction | F103: =G$95*Multiplicateurs!D27 -> 373.8246419 | H103: 0.0003547241127 | M103: =$H103*Multiplicateurs!E10 -> 0.0009000755942 | N103: =$H103*Multiplicateurs!F10 -> 0.0006030895251 | O103: 0.001503165119 | Q103: =$H103*Multiplicateurs!H10 -> 5.792999596e-05 | R103: =$H103*Multiplicateurs!I10 -> 2.98715216e-05 | S103: 8.780151756e-05 | T103: =$H103*Multiplicateurs!J10 -> 0.0003547241127 | U103: =$H103*Multiplicateurs!K10 -> 0.000179113147 | V103: =$H103*Multiplicateurs!L10 -> 0.0001094379555 | W103: 0.0006432752152 | Y103: =$H103*Multiplicateurs!N10 -> 8.944564078e-05 | Z103: =$H103*Multiplicateurs!O10 -> 6.418490553e-05 | AA103: 0.0001536305463
C104: Secteur manufacturier | F104: =G$95*Multiplicateurs!D28 -> 173136.0021 | H104: 0.1642896371 | M104: =$H104*Multiplicateurs!E11 -> 0.2956910695 | N104: =$H104*Multiplicateurs!F11 -> 0.154607668 | O104: 0.4502987376 | Q104: =$H104*Multiplicateurs!H11 -> 0.01941382408 | R104: =$H104*Multiplicateurs!I11 -> 0.007664147439 | S104: 0.02707797152 | T104: =$H104*Multiplicateurs!J11 -> 0.1642896371 | U104: =$H104*Multiplicateurs!K11 -> 0.07832346154 | V104: =$H104*Multiplicateurs!L11 -> 0.02809654654 | W104: 0.2707096451 | Y104: =$H104*Multiplicateurs!N11 -> 0.0343097846 | Z104: =$H104*Multiplicateurs!O11 -> 0.01646431569 | AA104: 0.05077410029
C105: Machinerie et équipement | F105: =G$95*Multiplicateurs!D29 -> 5971.787059 | H105: 0.005666659253 | M105: =$H105*Multiplicateurs!E12 -> 0.009693004177 | N105: =$H105*Multiplicateurs!F12 -> 0.008415672949 | O105: 0.01810867713 | Q105: =$H105*Multiplicateurs!H12 -> 0.0006647106648 | R105: =$H105*Multiplicateurs!I12 -> 0.0004161455939 | S105: 0.001080856259 | T105: =$H105*Multiplicateurs!J12 -> 0.005666659253 | U105: =$H105*Multiplicateurs!K12 -> 0.002202417788 | V105: =$H105*Multiplicateurs!L12 -> 0.001526559678 | W105: 0.009395636719 | Y105: =$H105*Multiplicateurs!N12 -> 0.001069257709 | Z105: =$H105*Multiplicateurs!O12 -> 0.0008949682749 | AA105: 0.001964225984
C106: TCSP | F106: =G$95*Multiplicateurs!D30 -> 43363.5102 | H106: 0.0411478564 | M106: =$H106*Multiplicateurs!E13 -> 0.1085434188 | N106: =$H106*Multiplicateurs!F13 -> 0.06971346692 | O106: 0.1782568857 | Q106: =$H106*Multiplicateurs!H13 -> 0.006479506178 | R106: =$H106*Multiplicateurs!I13 -> 0.003447997668 | S106: 0.009927503845 | T106: =$H106*Multiplicateurs!J13 -> 0.0411478564 | U106: =$H106*Multiplicateurs!K13 -> 0.02214193267 | V106: =$H106*Multiplicateurs!L13 -> 0.01265408711 | W106: 0.07594387617 | Y106: =$H106*Multiplicateurs!N13 -> 0.01085710626 | Z106: =$H106*Multiplicateurs!O13 -> 0.007421090832 | AA106: 0.01827819709
C107: Commerce de gros | F107: =G$95*Multiplicateurs!D31 -> 35144.51924 | H107: 0.03334881388 | M107: =$H107*Multiplicateurs!E14 -> 0.08662055602 | N107: =$H107*Multiplicateurs!F14 -> 0.06055329113 | O107: 0.1471738472 | Q107: =$H107*Multiplicateurs!H14 -> 0.005016661136 | R107: =$H107*Multiplicateurs!I14 -> 0.002992897333 | S107: 0.00800955847 | T107: =$H107*Multiplicateurs!J14 -> 0.03334881388 | U107: =$H107*Multiplicateurs!K14 -> 0.0154859059 | V107: =$H107*Multiplicateurs!L14 -> 0.01097226745 | W107: 0.05980698723 | Y107: =$H107*Multiplicateurs!N14 -> 0.008212955071 | Z107: =$H107*Multiplicateurs!O14 -> 0.006438822908 | AA107: 0.01465177798
C108: Commerce de détail | F108: =G$95*Multiplicateurs!D32 -> 104834.8218 | H108: 0.09947829801 | M108: =$H108*Multiplicateurs!E15 -> 0.2690414861 | N108: =$H108*Multiplicateurs!F15 -> 0.2347737634 | O108: 0.5038152495 | Q108: =$H108*Multiplicateurs!H15 -> 0.01580711552 | R108: =$H108*Multiplicateurs!I15 -> 0.01159626046 | S108: 0.02740337599 | T108: =$H108*Multiplicateurs!J15 -> 0.09947829801 | U108: =$H108*Multiplicateurs!K15 -> 0.051416396 | V108: =$H108*Multiplicateurs!L15 -> 0.04253791162 | W108: 0.1934326056 | Y108: =$H108*Multiplicateurs!N15 -> 0.02852170244 | Z108: =$H108*Multiplicateurs!O15 -> 0.02497329108 | AA108: 0.05349499352
C109: FAI | F109: =G$95*Multiplicateurs!D33 -> 133068.1173 | H109: 0.1262690164 | M109: =$H109*Multiplicateurs!E16 -> 0.375823362 | N109: =$H109*Multiplicateurs!F16 -> 0.205286013 | O109: 0.581109375 | Q109: =$H109*Multiplicateurs!H16 -> 0.02389861984 | R109: =$H109*Multiplicateurs!I16 -> 0.01016498926 | S109: 0.0340636091 | T109: =$H109*Multiplicateurs!J16 -> 0.1262690164 | U109: =$H109*Multiplicateurs!K16 -> 0.0665705944 | V109: =$H109*Multiplicateurs!L16 -> 0.03723978674 | W109: 0.2300793975 | Y109: =$H109*Multiplicateurs!N16 -> 0.03757124202 | Z109: =$H109*Multiplicateurs!O16 -> 0.02183175597 | AA109: 0.05940299799
C110: Services divers | F110: =G$95*Multiplicateurs!D34 -> 335465.5588 | H110: 0.3183249828 | M110: =$H110*Multiplicateurs!E17 -> 0.6023797581 | N110: =$H110*Multiplicateurs!F17 -> 0.5576246401 | O110: 1.160004398 | Q110: =$H110*Multiplicateurs!H17 -> 0.03346587687 | R110: =$H110*Multiplicateurs!I17 -> 0.02754486037 | S110: 0.06101073723 | T110: =$H110*Multiplicateurs!J17 -> 0.3183249828 | U110: =$H110*Multiplicateurs!K17 -> 0.09679309628 | V110: =$H110*Multiplicateurs!L17 -> 0.1010198411 | W110: 0.5161379203 | Y110: =$H110*Multiplicateurs!N17 -> 0.05419622458 | Z110: =$H110*Multiplicateurs!O17 -> 0.0593911309 | AA110: 0.1135873555
C111: Réparation et maintenance | F111: =G$95*Multiplicateurs!D35+(G94*H94) -> 87612.1797 | H111: 0.08313564497 | M111: =$H111*Multiplicateurs!E18 -> 0.1970314786 | N111: =$H111*Multiplicateurs!F18 -> 0.1886347784 | O111: 0.385666257 | Q111: =$H111*Multiplicateurs!H18 -> 0.01114017643 | R111: =$H111*Multiplicateurs!I18 -> 0.009311192237 | S111: 0.02045136866 | T111: =$H111*Multiplicateurs!J18 -> 0.08313564497 | U111: =$H111*Multiplicateurs!K18 -> 0.0364134125 | V111: =$H111*Multiplicateurs!L18 -> 0.03416875008 | W111: 0.1537178076 | Y111: =$H111*Multiplicateurs!N18 -> 0.01937060528 | Z111: =$H111*Multiplicateurs!O18 -> 0.02003569044 | AA111: 0.03940629572
C112: Services professioniels | F112: =G$95*Multiplicateurs!D36 -> 11969.96992 | H112: 0.01135836562 | M112: =$H112*Multiplicateurs!E19 -> 0.02746624854 | N112: =$H112*Multiplicateurs!F19 -> 0.02577473698 | O112: 0.05324098552 | Q112: =$H112*Multiplicateurs!H19 -> 0.001577731216 | R112: =$H112*Multiplicateurs!I19 -> 0.001274665212 | S112: 0.002852396428 | T112: =$H112*Multiplicateurs!J19 -> 0.01135836562 | U112: =$H112*Multiplicateurs!K19 -> 0.004534316086 | V112: =$H112*Multiplicateurs!L19 -> 0.004671287215 | W112: 0.02056396892 | Y112: =$H112*Multiplicateurs!N19 -> 0.002541545066 | Z112: =$H112*Multiplicateurs!O19 -> 0.002741940445 | AA112: 0.005283485511
C113: Gouvernement | F113: =G$95*Multiplicateurs!D37 -> 14766.28393 | H113: 0.01401180227 | M113: =$H113*Multiplicateurs!E20 -> 0.04183107064 | N113: =$H113*Multiplicateurs!F20 -> 0.02968936932 | O113: 0.07152043996 | Q113: =$H113*Multiplicateurs!H20 -> 0.00262052614 | R113: =$H113*Multiplicateurs!I20 -> 0.001464610523 | S113: 0.004085136663 | T113: =$H113*Multiplicateurs!J20 -> 0.01401180227 | U113: =$H113*Multiplicateurs!K20 -> 0.00704223405 | V113: =$H113*Multiplicateurs!L20 -> 0.005381019602 | W113: 0.02643505592 | Y113: =$H113*Multiplicateurs!N20 -> 0.004252109406 | Z113: =$H113*Multiplicateurs!O20 -> 0.003159134801 | AA113: 0.007411244207
C115: Total | F115: =SUM(F101:F114) -> 962500 | H115: =SUM(H101:H114) -> 0.9133211679 | L115: =IF(L117=0,0,D97) -> 18.78079198 | M115: =SUM(M101:M114) -> 2.05219371 | N115: =SUM(N101:N114) -> 1.555023227 | O115: =L115+M115+N115 -> 22.38800892 | P115: =H115 -> 0.9133211679 | Q115: =SUM(Q101:Q114) -> 0.1222995516 | R115: =SUM(R101:R114) -> 0.07686349036 | S115: =R115+Q115+P115 -> 1.11248421 | T115: =SUM(T101:T114) -> 0.9133211679 | U115: =SUM(U101:U114) -> 0.3889733404 | V115: =SUM(V101:V114) -> 0.2818922892 | W115: =T115+U115+V115 -> 1.584186797 | X115: =P115 -> 0.9133211679 | Y115: =SUM(Y101:Y114) -> 0.2049897262 | Z115: =SUM(Z101:Z114) -> 0.1654722479 | AA115: =X115+Y115+Z115 -> 1.283783142
P116: Convertir en dollards de | Q116: =Q93 -> 2020
L117: =SUM(M122:M135) -> 2.05219371 | P117: =P115*$G60 -> 0.9625 | Q117: 0.1288849121 | R117: 0.08100229369 | S117: 1.172387206 | T117: 0.9625 | U117: 0.4099180587 | V117: 0.2970711048 | W117: 1.669489164 | X117: 0.9625 | Y117: 0.2160276345 | Z117: 0.174382292 | AA117: 1.352909927
L119: Total Maintenance
L120: Emplois | P120: Revenus d'emploi | T120: Extrant | X120: Valeur ajoutée
L121: Direct | M121: Indirect | N121: Induit | O121: Total | P121: Direct | Q121: Indirect | R121: Induit | S121: Total | T121: Direct | U121: Indirect | V121: Induit | W121: Total | X121: Direct | Y121: Indirect | Z121: Induit | AA121: Total
J122: Agriculture | L122: =L76+L101 -> 0 | M122: 0.03229756746 | N122: 0.01491861229 | O122: =L122+M122+N122 -> 0.04721617975 | P122: =P76+P101 -> 0 | Q122: 0.001816471696 | R122: 0.0007363870101 | S122: =P122+Q122+R122 -> 0.002552858706 | T122: =T76+T101 -> 0.01277667671 | U122: 0.006849333903 | V122: 0.002711050278 | W122: =T122+U122+V122 -> 0.0223370609 | X122: =X76+X101 -> 0 | Y122: 0.003441703829 | Z122: 0.001584753733 | AA122: =X122+Y122+Z122 -> 0.005026457562
J123: Exploitation minière | L123: 0 | M123: 0.004874614546 | N123: 0.004428125159 | O123: =L123+M123+N123 -> 0.009302739705 | P123: 0 | Q123: 0.0003404018756 | R123: 0.0002194657394 | S123: =P123+Q123+R123 -> 0.0005598676151 | T123: 0.003158690368 | U123: 0.001021126118 | V123: 0.0008037438179 | W123: =T123+U123+V123 -> 0.004983560304 | X123: 0 | Y123: 0.0005560442934 | Z123: 0.0004711679524 | AA123: =X123+Y123+Z123 -> 0.001027212246
J124: Construction | L124: 0 | M124: 0.0009000755942 | N124: 0.0006030895251 | O124: 0.001503165119 | P124: 0 | Q124: 5.792999596e-05 | R124: 2.98715216e-05 | S124: 8.780151756e-05 | T124: 0.0003547241127 | U124: 0.000179113147 | V124: 0.0001094379555 | W124: 0.0006432752152 | X124: 0 | Y124: 8.944564078e-05 | Z124: 6.418490553e-05 | AA124: 0.0001536305463
J125: Secteur manufacturier | L125: 0 | M125: 0.2956910695 | N125: 0.154607668 | O125: 0.4502987376 | P125: 0 | Q125: 0.01941382408 | R125: 0.007664147439 | S125: 0.02707797152 | T125: 0.1642896371 | U125: 0.07832346154 | V125: 0.02809654654 | W125: 0.2707096451 | X125: 0 | Y125: 0.0343097846 | Z125: 0.01646431569 | AA125: 0.05077410029
J126: Machinerie et équipement | L126: 0 | M126: 0.009693004177 | N126: 0.008415672949 | O126: 0.01810867713 | P126: 0 | Q126: 0.0006647106648 | R126: 0.0004161455939 | S126: 0.001080856259 | T126: 0.005666659253 | U126: 0.002202417788 | V126: 0.001526559678 | W126: 0.009395636719 | X126: 0 | Y126: 0.001069257709 | Z126: 0.0008949682749 | AA126: 0.001964225984
J127: TCSP | L127: 0 | M127: 0.1085434188 | N127: 0.06971346692 | O127: 0.1782568857 | P127: 0 | Q127: 0.006479506178 | R127: 0.003447997668 | S127: 0.009927503845 | T127: 0.0411478564 | U127: 0.02214193267 | V127: 0.01265408711 | W127: 0.07594387617 | X127: 0 | Y127: 0.01085710626 | Z127: 0.007421090832 | AA127: 0.01827819709
J128: Commerce de gros | L128: 0 | M128: 0.08662055602 | N128: 0.06055329113 | O128: 0.1471738472 | P128: 0 | Q128: 0.005016661136 | R128: 0.002992897333 | S128: 0.00800955847 | T128: 0.03334881388 | U128: 0.0154859059 | V128: 0.01097226745 | W128: 0.05980698723 | X128: 0 | Y128: 0.008212955071 | Z128: 0.006438822908 | AA128: 0.01465177798
J129: Commerce de détail | L129: 0 | M129: 0.2690414861 | N129: 0.2347737634 | O129: 0.5038152495 | P129: 0 | Q129: 0.01580711552 | R129: 0.01159626046 | S129: 0.02740337599 | T129: 0.09947829801 | U129: 0.051416396 | V129: 0.04253791162 | W129: 0.1934326056 | X129: 0 | Y129: 0.02852170244 | Z129: 0.02497329108 | AA129: 0.05349499352
J130: FAI | L130: 0 | M130: 0.375823362 | N130: 0.205286013 | O130: 0.581109375 | P130: 0 | Q130: 0.02389861984 | R130: 0.01016498926 | S130: 0.0340636091 | T130: 0.1262690164 | U130: 0.0665705944 | V130: 0.03723978674 | W130: 0.2300793975 | X130: 0 | Y130: 0.03757124202 | Z130: 0.02183175597 | AA130: 0.05940299799
J131: Services divers | L131: 0 | M131: 0.6023797581 | N131: 0.5576246401 | O131: 1.160004398 | P131: 0 | Q131: 0.03346587687 | R131: 0.02754486037 | S131: 0.06101073723 | T131: 0.3183249828 | U131: 0.09679309628 | V131: 0.1010198411 | W131: 0.5161379203 | X131: 0 | Y131: 0.05419622458 | Z131: 0.0593911309 | AA131: 0.1135873555
J132: Réparation et maintenance | L132: 0 | M132: 0.1970314786 | N132: 0.1886347784 | O132: 0.385666257 | P132: 0 | Q132: 0.01114017643 | R132: 0.009311192237 | S132: 0.02045136866 | T132: 0.08313564497 | U132: 0.0364134125 | V132: 0.03416875008 | W132: 0.1537178076 | X132: 0 | Y132: 0.01937060528 | Z132: 0.02003569044 | AA132: 0.03940629572
J133: Services professioniels | L133: 0 | M133: 0.02746624854 | N133: 0.02577473698 | O133: 0.05324098552 | P133: 0 | Q133: 0.001577731216 | R133: 0.001274665212 | S133: 0.002852396428 | T133: 0.01135836562 | U133: 0.004534316086 | V133: 0.004671287215 | W133: 0.02056396892 | X133: 0 | Y133: 0.002541545066 | Z133: 0.002741940445 | AA133: 0.005283485511
J134: Gouvernement | L134: 0 | M134: 0.04183107064 | N134: 0.02968936932 | O134: 0.07152043996 | P134: 0 | Q134: 0.00262052614 | R134: 0.001464610523 | S134: 0.004085136663 | T134: 0.01401180227 | U134: 0.00704223405 | V134: 0.005381019602 | W134: 0.02643505592 | X134: 0 | Y134: 0.004252109406 | Z134: 0.003159134801 | AA134: 0.007411244207
J136: Employés | L136: =L115 -> 18.78079198 | O136: 18.78079198 | P136: =P115 -> 0.9133211679 | S136: 0.9133211679 | W136: 0 | X136: =X115 -> 0.9133211679 | AA136: 0.9133211679
J137: Total | L137: =SUM(L122:L136) -> 18.78079198 | M137: =SUM(M122:M135) -> 2.05219371 | N137: =SUM(N122:N135) -> 1.555023227 | O137: =SUM(O122:O136) -> 22.38800892 | P137: 0.9133211679 | Q137: 0.1222995516 | R137: 0.07686349036 | S137: 1.11248421 | T137: 0.9133211679 | U137: 0.3889733404 | V137: 0.2818922892 | W137: 1.584186797 | X137: 0.9133211679 | Y137: 0.2049897262 | Z137: 0.1654722479 | AA137: 1.283783142
J138: Convertir en dollards de | K138: =Q116 -> 2020 | P138: =P137*$G60 -> 0.9625 | Q138: 0.1288849121 | R138: 0.08100229369 | S138: 1.172387206 | T138: 0.9625 | U138: 0.4099180587 | V138: 0.2970711048 | W138: 1.669489164 | X138: 0.9625 | Y138: 0.2160276345 | Z138: 0.174382292 | AA138: 1.352909927

Sheet Déflateurs
A1: *** AVERTISSEMENT *** Cette feuille de calcul contient des données et des formules qui font partie intégrante du modèle EI2. Bien que ces données et formules soient consultables pour examen, elles ne doivent pas être modifiées. Toute modification des données ou des formules affectera l'analyse et pourrait invalider les résultats du modèle. Pour les visualiser, faites simplement défiler les colonnes vers la droite. | C1: Déflateurs / Inflateurs
C2: Pour assurer la consistance entre les multiplicateurs et les données projet
C4: Année des multiplicateurs | E4: 2017 | I4: Déflateur | J4: =HLOOKUP($E$5,D9:AW51,$D$60) -> 0.9489051095
C5: Dollars de l'année | E5: =DonnéesProjet!B17 -> 2020 | I5: Inflateur | J5: =HLOOKUP($E$5,D9:AW51,$D$59) -> 1.053846154
D9: 2005 | E9: 2006 | F9: 2007 | G9: 2008 | H9: 2009 | I9: 2010 | J9: 2011 | K9: 2012 | L9: 2013 | M9: 2014 | N9: 2015 | O9: 2016 | P9: 2017 | Q9: 2018 | R9: 2019 | S9: 2020 | T9: 2021 | U9: 2022 | V9: 2023 | W9: 2024 | X9: 2025 | Y9: 2026 | Z9: 2027 | AA9: 2028 | AB9: 2029 | AC9: 2030 | AD9: 2031 | AE9: 2032 | AF9: 2033 | AG9: 2034 | AH9: 2035 | AI9: 2036 | AJ9: 2037 | AK9: 2038 | AL9: 2039 | AM9: 2040 | AN9: 2041 | AO9: 2042 | AP9: 2043 | AQ9: 2044 | AR9: 2045 | AS9: 2046 | AT9: 2047 | AU9: 2048 | AV9: 2049 | AW9: 2050
C10: 2005 | D10: 1 | E10: 1.018691589 | F10: 1.046728972 | G10: 1.065420561 | H10: 1.065420561 | I10: 1.093457944 | J10: 1.121495327 | K10: 1.140186916 | L10: 1.14953271 | M10: 1.168224299 | N10: 1.186915888 | O10: 1.196261682 | P10: 1.214953271 | Q10: 1.242990654 | R10: 1.271028037 | S10: 1.280373832 | T10: 1.299065421 | U10: 1.327102804 | V10: 1.345794393 | W10: 1.373831776 | X10: 1.392523364 | Y10: 1.420560748 | Z10: 1.448598131 | AA10: 1.485981308 | AB10: 1.514018692 | AC10: 1.551401869 | AD10: 1.579439252 | AE10: 1.61682243 | AF10: 1.654205607 | AG10: 1.682242991 | AH10: 1.719626168 | AI10: 1.757009346 | AJ10: 1.794392523 | AK10: 1.822429907 | AL10: 1.859813084 | AM10: 1.897196262 | AN10: 1.934579439 | AO10: 1.981308411 | AP10: 2.018691589 | AQ10: 2.056074766 | AR10: 2.102803738 | AS10: 2.14953271 | AT10: 2.186915888 | AU10: 2.23364486 | AV10: 2.280373832 | AW10: 2.336448598
D11: 1 | E11: 0.9816513761 | F11: 0.9553571429 | G11: 0.9385964912 | H11: 0.9385964912 | I11: 0.9145299145 | J11: 0.8916666667 | K11: 0.8770491803 | L11: 0.8699186992 | M11: 0.856 | N11: 0.842519685 | O11: 0.8359375 | P11: 0.8230769231 | Q11: 0.8045112782 | R11: 0.7867647059 | S11: 0.7810218978 | T11: 0.7697841727 | U11: 0.7535211268 | V11: 0.7430555556 | W11: 0.7278911565 | X11: 0.7181208054 | Y11: 0.7039473684 | Z11: 0.6903225806 | AA11: 0.6729559748 | AB11: 0.6604938272 | AC11: 0.6445783133 | AD11: 0.6331360947 | AE11: 0.6184971098 | AF11: 0.604519774 | AG11: 0.5944444444 | AH11: 0.5815217391 | AI11: 0.5691489362 | AJ11: 0.5572916667 | AK11: 0.5487179487 | AL11: 0.5376884422 | AM11: 0.5270935961 | AN11: 0.5169082126 | AO11: 0.5047169811 | AP11: 0.4953703704 | AQ11: 0.4863636364 | AR11: 0.4755555556 | AS11: 0.4652173913 | AT11: 0.4572649573 | AU11: 0.4476987448 | AV11: 0.4385245902 | AW11: 0.428
C12: 2006 | D12: 0.9816513761 | E12: 1 | F12: 1.027522936 | G12: 1.04587156 | H12: 1.04587156 | I12: 1.073394495 | J12: 1.100917431 | K12: 1.119266055 | L12: 1.128440367 | M12: 1.146788991 | N12: 1.165137615 | O12: 1.174311927 | P12: 1.19266055 | Q12: 1.220183486 | R12: 1.247706422 | S12: 1.256880734 | T12: 1.275229358 | U12: 1.302752294 | V12: 1.321100917 | W12: 1.348623853 | X12: 1.366972477 | Y12: 1.394495413 | Z12: 1.422018349 | AA12: 1.458715596 | AB12: 1.486238532 | AC12: 1.52293578 | AD12: 1.550458716 | AE12: 1.587155963 | AF12: 1.623853211 | AG12: 1.651376147 | AH12: 1.688073394 | AI12: 1.724770642 | AJ12: 1.76146789 | AK12: 1.788990826 | AL12: 1.825688073 | AM12: 1.862385321 | AN12: 1.899082569 | AO12: 1.944954128 | AP12: 1.981651376 | AQ12: 2.018348624 | AR12: 2.064220183 | AS12: 2.110091743 | AT12: 2.146788991 | AU12: 2.19266055 | AV12: 2.23853211 | AW12: 2.293577982
D13: 1.018691589 | E13: 1 | F13: 0.9732142857 | G13: 0.9561403509 | H13: 0.9561403509 | I13: 0.9316239316 | J13: 0.9083333333 | K13: 0.893442623 | L13: 0.8861788618 | M13: 0.872 | N13: 0.8582677165 | O13: 0.8515625 | P13: 0.8384615385 | Q13: 0.8195488722 | R13: 0.8014705882 | S13: 0.795620438 | T13: 0.7841726619 | U13: 0.7676056338 | V13: 0.7569444444 | W13: 0.7414965986 | X13: 0.7315436242 | Y13: 0.7171052632 | Z13: 0.7032258065 | AA13: 0.6855345912 | AB13: 0.6728395062 | AC13: 0.656626506 | AD13: 0.6449704142 | AE13: 0.6300578035 | AF13: 0.615819209 | AG13: 0.6055555556 | AH13: 0.5923913043 | AI13: 0.579787234 | AJ13: 0.5677083333 | AK13: 0.558974359 | AL13: 0.5477386935 | AM13: 0.5369458128 | AN13: 0.5265700483 | AO13: 0.5141509434 | AP13: 0.5046296296 | AQ13: 0.4954545455 | AR13: 0.4844444444 | AS13: 0.4739130435 | AT13: 0.4658119658 | AU13: 0.4560669456 | AV13: 0.4467213115 | AW13: 0.436
C14: 2007 | D14: 0.9553571429 | E14: 0.9732142857 | F14: 1 | G14: 1.017857143 | H14: 1.017857143 | I14: 1.044642857 | J14: 1.071428571 | K14: 1.089285714 | L14: 1.098214286 | M14: 1.116071429 | N14: 1.133928571 | O14: 1.142857143 | P14: 1.160714286 | Q14: 1.1875 | R14: 1.214285714 | S14: 1.223214286 | T14: 1.241071429 | U14: 1.267857143 | V14: 1.285714286 | W14: 1.3125 | X14: 1.330357143 | Y14: 1.357142857 | Z14: 1.383928571 | AA14: 1.419642857 | AB14: 1.446428571 | AC14: 1.482142857 | AD14: 1.508928571 | AE14: 1.544642857 | AF14: 1.580357143 | AG14: 1.607142857 | AH14: 1.642857143 | AI14: 1.678571429 | AJ14: 1.714285714 | AK14: 1.741071429 | AL14: 1.776785714 | AM14: 1.8125 | AN14: 1.848214286 | AO14: 1.892857143 | AP14: 1.928571429 | AQ14: 1.964285714 | AR14: 2.008928571 | AS14: 2.053571429 | AT14: 2.089285714 | AU14: 2.133928571 | AV14: 2.178571429 | AW14: 2.232142857
D15: 1.046728972 | E15: 1.027522936 | F15: 1 | G15: 0.9824561404 | H15: 0.9824561404 | I15: 0.9572649573 | J15: 0.9333333333 | K15: 0.9180327869 | L15: 0.9105691057 | M15: 0.896 | N15: 0.8818897638 | O15: 0.875 | P15: 0.8615384615 | Q15: 0.8421052632 | R15: 0.8235294118 | S15: 0.8175182482 | T15: 0.8057553957 | U15: 0.7887323944 | V15: 0.7777777778 | W15: 0.7619047619 | X15: 0.7516778523 | Y15: 0.7368421053 | Z15: 0.7225806452 | AA15: 0.7044025157 | AB15: 0.6913580247 | AC15: 0.6746987952 | AD15: 0.6627218935 | AE15: 0.6473988439 | AF15: 0.6327683616 | AG15: 0.6222222222 | AH15: 0.6086956522 | AI15: 0.5957446809 | AJ15: 0.5833333333 | AK15: 0.5743589744 | AL15: 0.5628140704 | AM15: 0.5517241379 | AN15: 0.5410628019 | AO15: 0.5283018868 | AP15: 0.5185185185 | AQ15: 0.5090909091 | AR15: 0.4977777778 | AS15: 0.4869565217 | AT15: 0.4786324786 | AU15: 0.4686192469 | AV15: 0.4590163934 | AW15: 0.448
C16: 2008 | D16: 0.9385964912 | E16: 0.9561403509 | F16: 0.9824561404 | G16: 1 | H16: 1 | I16: 1.026315789 | J16: 1.052631579 | K16: 1.070175439 | L16: 1.078947368 | M16: 1.096491228 | N16: 1.114035088 | O16: 1.122807018 | P16: 1.140350877 | Q16: 1.166666667 | R16: 1.192982456 | S16: 1.201754386 | T16: 1.219298246 | U16: 1.245614035 | V16: 1.263157895 | W16: 1.289473684 | X16: 1.307017544 | Y16: 1.333333333 | Z16: 1.359649123 | AA16: 1.394736842 | AB16: 1.421052632 | AC16: 1.456140351 | AD16: 1.48245614 | AE16: 1.51754386 | AF16: 1.552631579 | AG16: 1.578947368 | AH16: 1.614035088 | AI16: 1.649122807 | AJ16: 1.684210526 | AK16: 1.710526316 | AL16: 1.745614035 | AM16: 1.780701754 | AN16: 1.815789474 | AO16: 1.859649123 | AP16: 1.894736842 | AQ16: 1.929824561 | AR16: 1.973684211 | AS16: 2.01754386 | AT16: 2.052631579 | AU16: 2.096491228 | AV16: 2.140350877 | AW16: 2.192982456
D17: 1.065420561 | E17: 1.04587156 | F17: 1.017857143 | G17: 1 | H17: 1 | I17: 0.9743589744 | J17: 0.95 | K17: 0.9344262295 | L17: 0.9268292683 | M17: 0.912 | N17: 0.8976377953 | O17: 0.890625 | P17: 0.8769230769 | Q17: 0.8571428571 | R17: 0.8382352941 | S17: 0.8321167883 | T17: 0.8201438849 | U17: 0.8028169014 | V17: 0.7916666667 | W17: 0.7755102041 | X17: 0.7651006711 | Y17: 0.75 | Z17: 0.735483871 | AA17: 0.7169811321 | AB17: 0.7037037037 | AC17: 0.686746988 | AD17: 0.674556213 | AE17: 0.6589595376 | AF17: 0.6440677966 | AG17: 0.6333333333 | AH17: 0.6195652174 | AI17: 0.6063829787 | AJ17: 0.59375 | AK17: 0.5846153846 | AL17: 0.5728643216 | AM17: 0.5615763547 | AN17: 0.5507246377 | AO17: 0.5377358491 | AP17: 0.5277777778 | AQ17: 0.5181818182 | AR17: 0.5066666667 | AS17: 0.4956521739 | AT17: 0.4871794872 | AU17: 0.4769874477 | AV17: 0.4672131148 | AW17: 0.456
C18: 2009 | D18: 0.9385964912 | E18: 0.9561403509 | F18: 0.9824561404 | G18: 1 | H18: 1 | I18: 1.026315789 | J18: 1.052631579 | K18: 1.070175439 | L18: 1.078947368 | M18: 1.096491228 | N18: 1.114035088 | O18: 1.122807018 | P18: 1.140350877 | Q18: 1.166666667 | R18: 1.192982456 | S18: 1.201754386 | T18: 1.219298246 | U18: 1.245614035 | V18: 1.263157895 | W18: 1.289473684 | X18: 1.307017544 | Y18: 1.333333333 | Z18: 1.359649123 | AA18: 1.394736842 | AB18: 1.421052632 | AC18: 1.456140351 | AD18: 1.48245614 | AE18: 1.51754386 | AF18: 1.552631579 | AG18: 1.578947368 | AH18: 1.614035088 | AI18: 1.649122807 | AJ18: 1.684210526 | AK18: 1.710526316 | AL18: 1.745614035 | AM18: 1.780701754 | AN18: 1.815789474 | AO18: 1.859649123 | AP18: 1.894736842 | AQ18: 1.929824561 | AR18: 1.973684211 | AS18: 2.01754386 | AT18: 2.052631579 | AU18: 2.096491228 | AV18: 2.140350877 | AW18: 2.192982456
D19: 1.065420561 | E19: 1.04587156 | F19: 1.017857143 | G19: 1 | H19: 1 | I19: 0.9743589744 | J19: 0.95 | K19: 0.9344262295 | L19: 0.9268292683 | M19: 0.912 | N19: 0.8976377953 | O19: 0.890625 | P19: 0.8769230769 | Q19: 0.8571428571 | R19: 0.8382352941 | S19: 0.8321167883 | T19: 0.8201438849 | U19: 0.8028169014 | V19: 0.7916666667 | W19: 0.7755102041 | X19: 0.7651006711 | Y19: 0.75 | Z19: 0.735483871 | AA19: 0.7169811321 | AB19: 0.7037037037 | AC19: 0.686746988 | AD19: 0.674556213 | AE19: 0.6589595376 | AF19: 0.6440677966 | AG19: 0.6333333333 | AH19: 0.6195652174 | AI19: 0.6063829787 | AJ19: 0.59375 | AK19: 0.5846153846 | AL19: 0.5728643216 | AM19: 0.5615763547 | AN19: 0.5507246377 | AO19: 0.5377358491 | AP19: 0.5277777778 | AQ19: 0.5181818182 | AR19: 0.5066666667 | AS19: 0.4956521739 | AT19: 0.4871794872 | AU19: 0.4769874477 | AV19: 0.4672131148 | AW19: 0.456
C20: 2010 | D20: 0.9145299145 | E20: 0.9316239316 | F20: 0.9572649573 | G20: 0.9743589744 | H20: 0.9743589744 | I20: 1 | J20: 1.025641026 | K20: 1.042735043 | L20: 1.051282051 | M20: 1.068376068 | N20: 1.085470085 | O20: 1.094017094 | P20: 1.111111111 | Q20: 1.136752137 | R20: 1.162393162 | S20: 1.170940171 | T20: 1.188034188 | U20: 1.213675214 | V20: 1.230769231 | W20: 1.256410256 | X20: 1.273504274 | Y20: 1.299145299 | Z20: 1.324786325 | AA20: 1.358974359 | AB20: 1.384615385 | AC20: 1.418803419 | AD20: 1.444444444 | AE20: 1.478632479 | AF20: 1.512820513 | AG20: 1.538461538 | AH20: 1.572649573 | AI20: 1.606837607 | AJ20: 1.641025641 | AK20: 1.666666667 | AL20: 1.700854701 | AM20: 1.735042735 | AN20: 1.769230769 | AO20: 1.811965812 | AP20: 1.846153846 | AQ20: 1.88034188 | AR20: 1.923076923 | AS20: 1.965811966 | AT20: 2 | AU20: 2.042735043 | AV20: 2.085470085 | AW20: 2.136752137
D21: 1.093457944 | E21: 1.073394495 | F21: 1.044642857 | G21: 1.026315789 | H21: 1.026315789 | I21: 1 | J21: 0.975 | K21: 0.9590163934 | L21: 0.9512195122 | M21: 0.936 | N21: 0.9212598425 | O21: 0.9140625 | P21: 0.9 | Q21: 0.8796992481 | R21: 0.8602941176 | S21: 0.8540145985 | T21: 0.8417266187 | U21: 0.823943662 | V21: 0.8125 | W21: 0.7959183673 | X21: 0.7852348993 | Y21: 0.7697368421 | Z21: 0.7548387097 | AA21: 0.7358490566 | AB21: 0.7222222222 | AC21: 0.7048192771 | AD21: 0.6923076923 | AE21: 0.676300578 | AF21: 0.6610169492 | AG21: 0.65 | AH21: 0.6358695652 | AI21: 0.6223404255 | AJ21: 0.609375 | AK21: 0.6 | AL21: 0.5879396985 | AM21: 0.5763546798 | AN21: 0.5652173913 | AO21: 0.5518867925 | AP21: 0.5416666667 | AQ21: 0.5318181818 | AR21: 0.52 | AS21: 0.5086956522 | AT21: 0.5 | AU21: 0.489539749 | AV21: 0.4795081967 | AW21: 0.468
C22: 2011 | D22: 0.8916666667 | E22: 0.9083333333 | F22: 0.9333333333 | G22: 0.95 | H22: 0.95 | I22: 0.975 | J22: 1 | K22: 1.016666667 | L22: 1.025 | M22: 1.041666667 | N22: 1.058333333 | O22: 1.066666667 | P22: 1.083333333 | Q22: 1.108333333 | R22: 1.133333333 | S22: 1.141666667 | T22: 1.158333333 | U22: 1.183333333 | V22: 1.2 | W22: 1.225 | X22: 1.241666667 | Y22: 1.266666667 | Z22: 1.291666667 | AA22: 1.325 | AB22: 1.35 | AC22: 1.383333333 | AD22: 1.408333333 | AE22: 1.441666667 | AF22: 1.475 | AG22: 1.5 | AH22: 1.533333333 | AI22: 1.566666667 | AJ22: 1.6 | AK22: 1.625 | AL22: 1.658333333 | AM22: 1.691666667 | AN22: 1.725 | AO22: 1.766666667 | AP22: 1.8 | AQ22: 1.833333333 | AR22: 1.875 | AS22: 1.916666667 | AT22: 1.95 | AU22: 1.991666667 | AV22: 2.033333333 | AW22: 2.083333333
D23: 1.121495327 | E23: 1.100917431 | F23: 1.071428571 | G23: 1.052631579 | H23: 1.052631579 | I23: 1.025641026 | J23: 1 | K23: 0.9836065574 | L23: 0.9756097561 | M23: 0.96 | N23: 0.9448818898 | O23: 0.9375 | P23: 0.9230769231 | Q23: 0.9022556391 | R23: 0.8823529412 | S23: 0.8759124088 | T23: 0.8633093525 | U23: 0.8450704225 | V23: 0.8333333333 | W23: 0.8163265306 | X23: 0.8053691275 | Y23: 0.7894736842 | Z23: 0.7741935484 | AA23: 0.7547169811 | AB23: 0.7407407407 | AC23: 0.7228915663 | AD23: 0.7100591716 | AE23: 0.6936416185 | AF23: 0.6779661017 | AG23: 0.6666666667 | AH23: 0.652173913 | AI23: 0.6382978723 | AJ23: 0.625 | AK23: 0.6153846154 | AL23: 0.6030150754 | AM23: 0.5911330049 | AN23: 0.5797101449 | AO23: 0.5660377358 | AP23: 0.5555555556 | AQ23: 0.5454545455 | AR23: 0.5333333333 | AS23: 0.5217391304 | AT23: 0.5128205128 | AU23: 0.5020920502 | AV23: 0.4918032787 | AW23: 0.48
C24: 2012 | D24: 0.8770491803 | E24: 0.893442623 | F24: 0.9180327869 | G24: 0.9344262295 | H24: 0.9344262295 | I24: 0.9590163934 | J24: 0.9836065574 | K24: 1 | L24: 1.008196721 | M24: 1.024590164 | N24: 1.040983607 | O24: 1.049180328 | P24: 1.06557377 | Q24: 1.090163934 | R24: 1.114754098 | S24: 1.12295082 | T24: 1.139344262 | U24: 1.163934426 | V24: 1.180327869 | W24: 1.204918033 | X24: 1.221311475 | Y24: 1.245901639 | Z24: 1.270491803 | AA24: 1.303278689 | AB24: 1.327868852 | AC24: 1.360655738 | AD24: 1.385245902 | AE24: 1.418032787 | AF24: 1.450819672 | AG24: 1.475409836 | AH24: 1.508196721 | AI24: 1.540983607 | AJ24: 1.573770492 | AK24: 1.598360656 | AL24: 1.631147541 | AM24: 1.663934426 | AN24: 1.696721311 | AO24: 1.737704918 | AP24: 1.770491803 | AQ24: 1.803278689 | AR24: 1.844262295 | AS24: 1.885245902 | AT24: 1.918032787 | AU24: 1.959016393 | AV24: 2 | AW24: 2.049180328
D25: 1.140186916 | E25: 1.119266055 | F25: 1.089285714 | G25: 1.070175439 | H25: 1.070175439 | I25: 1.042735043 | J25: 1.016666667 | K25: 1 | L25: 0.9918699187 | M25: 0.976 | N25: 0.9606299213 | O25: 0.953125 | P25: 0.9384615385 | Q25: 0.9172932331 | R25: 0.8970588235 | S25: 0.8905109489 | T25: 0.8776978417 | U25: 0.8591549296 | V25: 0.8472222222 | W25: 0.8299319728 | X25: 0.8187919463 | Y25: 0.8026315789 | Z25: 0.7870967742 | AA25: 0.7672955975 | AB25: 0.7530864198 | AC25: 0.734939759 | AD25: 0.7218934911 | AE25: 0.7052023121 | AF25: 0.6892655367 | AG25: 0.6777777778 | AH25: 0.6630434783 | AI25: 0.6489361702 | AJ25: 0.6354166667 | AK25: 0.6256410256 | AL25: 0.6130653266 | AM25: 0.6009852217 | AN25: 0.5893719807 | AO25: 0.5754716981 | AP25: 0.5648148148 | AQ25: 0.5545454545 | AR25: 0.5422222222 | AS25: 0.5304347826 | AT25: 0.5213675214 | AU25: 0.510460251 | AV25: 0.5 | AW25: 0.488
C26: 2013 | D26: 0.8699186992 | E26: 0.8861788618 | F26: 0.9105691057 | G26: 0.9268292683 | H26: 0.9268292683 | I26: 0.9512195122 | J26: 0.9756097561 | K26: 0.9918699187 | L26: 1 | M26: 1.016260163 | N26: 1.032520325 | O26: 1.040650407 | P26: 1.056910569 | Q26: 1.081300813 | R26: 1.105691057 | S26: 1.113821138 | T26: 1.130081301 | U26: 1.154471545 | V26: 1.170731707 | W26: 1.195121951 | X26: 1.211382114 | Y26: 1.235772358 | Z26: 1.260162602 | AA26: 1.292682927 | AB26: 1.317073171 | AC26: 1.349593496 | AD26: 1.37398374 | AE26: 1.406504065 | AF26: 1.43902439 | AG26: 1.463414634 | AH26: 1.495934959 | AI26: 1.528455285 | AJ26: 1.56097561 | AK26: 1.585365854 | AL26: 1.617886179 | AM26: 1.650406504 | AN26: 1.682926829 | AO26: 1.723577236 | AP26: 1.756097561 | AQ26: 1.788617886 | AR26: 1.829268293 | AS26: 1.869918699 | AT26: 1.902439024 | AU26: 1.943089431 | AV26: 1.983739837 | AW26: 2.032520325
D27: 1.14953271 | E27: 1.128440367 | F27: 1.098214286 | G27: 1.078947368 | H27: 1.078947368 | I27: 1.051282051 | J27: 1.025 | K27: 1.008196721 | L27: 1 | M27: 0.984 | N27: 0.968503937 | O27: 0.9609375 | P27: 0.9461538462 | Q27: 0.9248120301 | R27: 0.9044117647 | S27: 0.897810219 | T27: 0.8848920863 | U27: 0.8661971831 | V27: 0.8541666667 | W27: 0.8367346939 | X27: 0.8255033557 | Y27: 0.8092105263 | Z27: 0.7935483871 | AA27: 0.7735849057 | AB27: 0.7592592593 | AC27: 0.7409638554 | AD27: 0.7278106509 | AE27: 0.710982659 | AF27: 0.6949152542 | AG27: 0.6833333333 | AH27: 0.6684782609 | AI27: 0.6542553191 | AJ27: 0.640625 | AK27: 0.6307692308 | AL27: 0.6180904523 | AM27: 0.60591133 | AN27: 0.5942028986 | AO27: 0.5801886792 | AP27: 0.5694444444 | AQ27: 0.5590909091 | AR27: 0.5466666667 | AS27: 0.5347826087 | AT27: 0.5256410256 | AU27: 0.5146443515 | AV27: 0.5040983607 | AW27: 0.492
C28: 2014 | D28: 0.856 | E28: 0.872 | F28: 0.896 | G28: 0.912 | H28: 0.912 | I28: 0.936 | J28: 0.96 | K28: 0.976 | L28: 0.984 | M28: 1 | N28: 1.016 | O28: 1.024 | P28: 1.04 | Q28: 1.064 | R28: 1.088 | S28: 1.096 | T28: 1.112 | U28: 1.136 | V28: 1.152 | W28: 1.176 | X28: 1.192 | Y28: 1.216 | Z28: 1.24 | AA28: 1.272 | AB28: 1.296 | AC28: 1.328 | AD28: 1.352 | AE28: 1.384 | AF28: 1.416 | AG28: 1.44 | AH28: 1.472 | AI28: 1.504 | AJ28: 1.536 | AK28: 1.56 | AL28: 1.592 | AM28: 1.624 | AN28: 1.656 | AO28: 1.696 | AP28: 1.728 | AQ28: 1.76 | AR28: 1.8 | AS28: 1.84 | AT28: 1.872 | AU28: 1.912 | AV28: 1.952 | AW28: 2
D29: 1.168224299 | E29: 1.146788991 | F29: 1.116071429 | G29: 1.096491228 | H29: 1.096491228 | I29: 1.068376068 | J29: 1.041666667 | K29: 1.024590164 | L29: 1.016260163 | M29: 1 | N29: 0.9842519685 | O29: 0.9765625 | P29: 0.9615384615 | Q29: 0.9398496241 | R29: 0.9191176471 | S29: 0.9124087591 | T29: 0.8992805755 | U29: 0.8802816901 | V29: 0.8680555556 | W29: 0.8503401361 | X29: 0.8389261745 | Y29: 0.8223684211 | Z29: 0.8064516129 | AA29: 0.786163522 | AB29: 0.7716049383 | AC29: 0.7530120482 | AD29: 0.7396449704 | AE29: 0.7225433526 | AF29: 0.7062146893 | AG29: 0.6944444444 | AH29: 0.6793478261 | AI29: 0.664893617 | AJ29: 0.6510416667 | AK29: 0.641025641 | AL29: 0.6281407035 | AM29: 0.6157635468 | AN29: 0.6038647343 | AO29: 0.5896226415 | AP29: 0.5787037037 | AQ29: 0.5681818182 | AR29: 0.5555555556 | AS29: 0.5434782609 | AT29: 0.5341880342 | AU29: 0.5230125523 | AV29: 0.512295082 | AW29: 0.5
C30: 2015 | D30: 0.842519685 | E30: 0.8582677165 | F30: 0.8818897638 | G30: 0.8976377953 | H30: 0.8976377953 | I30: 0.9212598425 | J30: 0.9448818898 | K30: 0.9606299213 | L30: 0.968503937 | M30: 0.9842519685 | N30: 1 | O30: 1.007874016 | P30: 1.023622047 | Q30: 1.047244094 | R30: 1.070866142 | S30: 1.078740157 | T30: 1.094488189 | U30: 1.118110236 | V30: 1.133858268 | W30: 1.157480315 | X30: 1.173228346 | Y30: 1.196850394 | Z30: 1.220472441 | AA30: 1.251968504 | AB30: 1.275590551 | AC30: 1.307086614 | AD30: 1.330708661 | AE30: 1.362204724 | AF30: 1.393700787 | AG30: 1.417322835 | AH30: 1.448818898 | AI30: 1.480314961 | AJ30: 1.511811024 | AK30: 1.535433071 | AL30: 1.566929134 | AM30: 1.598425197 | AN30: 1.62992126 | AO30: 1.669291339 | AP30: 1.700787402 | AQ30: 1.732283465 | AR30: 1.771653543 | AS30: 1.811023622 | AT30: 1.842519685 | AU30: 1.881889764 | AV30: 1.921259843 | AW30: 1.968503937
D31: 1.186915888 | E31: 1.165137615 | F31: 1.133928571 | G31: 1.114035088 | H31: 1.114035088 | I31: 1.085470085 | J31: 1.058333333 | K31: 1.040983607 | L31: 1.032520325 | M31: 1.016 | N31: 1 | O31: 0.9921875 | P31: 0.9769230769 | Q31: 0.954887218 | R31: 0.9338235294 | S31: 0.9270072993 | T31: 0.9136690647 | U31: 0.8943661972 | V31: 0.8819444444 | W31: 0.8639455782 | X31: 0.8523489933 | Y31: 0.8355263158 | Z31: 0.8193548387 | AA31: 0.7987421384 | AB31: 0.7839506173 | AC31: 0.765060241 | AD31: 0.7514792899 | AE31: 0.7341040462 | AF31: 0.7175141243 | AG31: 0.7055555556 | AH31: 0.6902173913 | AI31: 0.6755319149 | AJ31: 0.6614583333 | AK31: 0.6512820513 | AL31: 0.6381909548 | AM31: 0.6256157635 | AN31: 0.61352657 | AO31: 0.5990566038 | AP31: 0.587962963 | AQ31: 0.5772727273 | AR31: 0.5644444444 | AS31: 0.552173913 | AT31: 0.5427350427 | AU31: 0.5313807531 | AV31: 0.5204918033 | AW31: 0.508
C32: 2016 | D32: 0.8359375 | E32: 0.8515625 | F32: 0.875 | G32: 0.890625 | H32: 0.890625 | I32: 0.9140625 | J32: 0.9375 | K32: 0.953125 | L32: 0.9609375 | M32: 0.9765625 | N32: 0.9921875 | O32: 1 | P32: 1.015625 | Q32: 1.0390625 | R32: 1.0625 | S32: 1.0703125 | T32: 1.0859375 | U32: 1.109375 | V32: 1.125 | W32: 1.1484375 | X32: 1.1640625 | Y32: 1.1875 | Z32: 1.2109375 | AA32: 1.2421875 | AB32: 1.265625 | AC32: 1.296875 | AD32: 1.3203125 | AE32: 1.3515625 | AF32: 1.3828125 | AG32: 1.40625 | AH32: 1.4375 | AI32: 1.46875 | AJ32: 1.5 | AK32: 1.5234375 | AL32: 1.5546875 | AM32: 1.5859375 | AN32: 1.6171875 | AO32: 1.65625 | AP32: 1.6875 | AQ32: 1.71875 | AR32: 1.7578125 | AS32: 1.796875 | AT32: 1.828125 | AU32: 1.8671875 | AV32: 1.90625 | AW32: 1.953125
D33: 1.196261682 | E33: 1.174311927 | F33: 1.142857143 | G33: 1.122807018 | H33: 1.122807018 | I33: 1.094017094 | J33: 1.066666667 | K33: 1.049180328 | L33: 1.040650407 | M33: 1.024 | N33: 1.007874016 | O33: 1 | P33: 0.9846153846 | Q33: 0.962406015 | R33: 0.9411764706 | S33: 0.9343065693 | T33: 0.9208633094 | U33: 0.9014084507 | V33: 0.8888888889 | W33: 0.8707482993 | X33: 0.8590604027 | Y33: 0.8421052632 | Z33: 0.8258064516 | AA33: 0.8050314465 | AB33: 0.7901234568 | AC33: 0.7710843373 | AD33: 0.7573964497 | AE33: 0.7398843931 | AF33: 0.7231638418 | AG33: 0.7111111111 | AH33: 0.6956521739 | AI33: 0.6808510638 | AJ33: 0.6666666667 | AK33: 0.6564102564 | AL33: 0.6432160804 | AM33: 0.6305418719 | AN33: 0.6183574879 | AO33: 0.6037735849 | AP33: 0.5925925926 | AQ33: 0.5818181818 | AR33: 0.5688888889 | AS33: 0.5565217391 | AT33: 0.547008547 | AU33: 0.5355648536 | AV33: 0.5245901639 | AW33: 0.512
C34: 2017 | D34: 0.8230769231 | E34: 0.8384615385 | F34: 0.8615384615 | G34: 0.8769230769 | H34: 0.8769230769 | I34: 0.9 | J34: 0.9230769231 | K34: 0.9384615385 | L34: 0.9461538462 | M34: 0.9615384615 | N34: 0.9769230769 | O34: 0.9846153846 | P34: 1 | Q34: 1.023076923 | R34: 1.046153846 | S34: 1.053846154 | T34: 1.069230769 | U34: 1.092307692 | V34: 1.107692308 | W34: 1.130769231 | X34: 1.146153846 | Y34: 1.169230769 | Z34: 1.192307692 | AA34: 1.223076923 | AB34: 1.246153846 | AC34: 1.276923077 | AD34: 1.3 | AE34: 1.330769231 | AF34: 1.361538462 | AG34: 1.384615385 | AH34: 1.415384615 | AI34: 1.446153846 | AJ34: 1.476923077 | AK34: 1.5 | AL34: 1.530769231 | AM34: 1.561538462 | AN34: 1.592307692 | AO34: 1.630769231 | AP34: 1.661538462 | AQ34: 1.692307692 | AR34: 1.730769231 | AS34: 1.769230769 | AT34: 1.8 | AU34: 1.838461538 | AV34: 1.876923077 | AW34: 1.923076923
D35: 1.214953271 | E35: 1.19266055 | F35: 1.160714286 | G35: 1.140350877 | H35: 1.140350877 | I35: 1.111111111 | J35: 1.083333333 | K35: 1.06557377 | L35: 1.056910569 | M35: 1.04 | N35: 1.023622047 | O35: 1.015625 | P35: 1 | Q35: 0.977443609 | R35: 0.9558823529 | S35: 0.9489051095 | T35: 0.9352517986 | U35: 0.9154929577 | V35: 0.9027777778 | W35: 0.8843537415 | X35: 0.8724832215 | Y35: 0.8552631579 | Z35: 0.8387096774 | AA35: 0.8176100629 | AB35: 0.8024691358 | AC35: 0.7831325301 | AD35: 0.7692307692 | AE35: 0.7514450867 | AF35: 0.7344632768 | AG35: 0.7222222222 | AH35: 0.7065217391 | AI35: 0.6914893617 | AJ35: 0.6770833333 | AK35: 0.6666666667 | AL35: 0.6532663317 | AM35: 0.6403940887 | AN35: 0.6280193237 | AO35: 0.6132075472 | AP35: 0.6018518519 | AQ35: 0.5909090909 | AR35: 0.5777777778 | AS35: 0.5652173913 | AT35: 0.5555555556 | AU35: 0.5439330544 | AV35: 0.5327868852 | AW35: 0.52
C36: 2018 | D36: 0.8045112782 | E36: 0.8195488722 | F36: 0.8421052632 | G36: 0.8571428571 | H36: 0.8571428571 | I36: 0.8796992481 | J36: 0.9022556391 | K36: 0.9172932331 | L36: 0.9248120301 | M36: 0.9398496241 | N36: 0.954887218 | O36: 0.962406015 | P36: 0.977443609 | Q36: 1 | R36: 1.022556391 | S36: 1.030075188 | T36: 1.045112782 | U36: 1.067669173 | V36: 1.082706767 | W36: 1.105263158 | X36: 1.120300752 | Y36: 1.142857143 | Z36: 1.165413534 | AA36: 1.195488722 | AB36: 1.218045113 | AC36: 1.248120301 | AD36: 1.270676692 | AE36: 1.30075188 | AF36: 1.330827068 | AG36: 1.353383459 | AH36: 1.383458647 | AI36: 1.413533835 | AJ36: 1.443609023 | AK36: 1.466165414 | AL36: 1.496240602 | AM36: 1.526315789 | AN36: 1.556390977 | AO36: 1.593984962 | AP36: 1.62406015 | AQ36: 1.654135338 | AR36: 1.691729323 | AS36: 1.729323308 | AT36: 1.759398496 | AU36: 1.796992481 | AV36: 1.834586466 | AW36: 1.879699248
D37: 1.242990654 | E37: 1.220183486 | F37: 1.1875 | G37: 1.166666667 | H37: 1.166666667 | I37: 1.136752137 | J37: 1.108333333 | K37: 1.090163934 | L37: 1.081300813 | M37: 1.064 | N37: 1.047244094 | O37: 1.0390625 | P37: 1.023076923 | Q37: 1 | R37: 0.9779411765 | S37: 0.9708029197 | T37: 0.9568345324 | U37: 0.9366197183 | V37: 0.9236111111 | W37: 0.9047619048 | X37: 0.8926174497 | Y37: 0.875 | Z37: 0.8580645161 | AA37: 0.8364779874 | AB37: 0.8209876543 | AC37: 0.8012048193 | AD37: 0.7869822485 | AE37: 0.7687861272 | AF37: 0.7514124294 | AG37: 0.7388888889 | AH37: 0.722826087 | AI37: 0.7074468085 | AJ37: 0.6927083333 | AK37: 0.6820512821 | AL37: 0.6683417085 | AM37: 0.6551724138 | AN37: 0.6425120773 | AO37: 0.6273584906 | AP37: 0.6157407407 | AQ37: 0.6045454545 | AR37: 0.5911111111 | AS37: 0.5782608696 | AT37: 0.5683760684 | AU37: 0.5564853556 | AV37: 0.5450819672 | AW37: 0.532
C38: 2019 | D38: 0.7867647059 | E38: 0.8014705882 | F38: 0.8235294118 | G38: 0.8382352941 | H38: 0.8382352941 | I38: 0.8602941176 | J38: 0.8823529412 | K38: 0.8970588235 | L38: 0.9044117647 | M38: 0.9191176471 | N38: 0.9338235294 | O38: 0.9411764706 | P38: 0.9558823529 | Q38: 0.9779411765 | R38: 1 | S38: 1.007352941 | T38: 1.022058824 | U38: 1.044117647 | V38: 1.058823529 | W38: 1.080882353 | X38: 1.095588235 | Y38: 1.117647059 | Z38: 1.139705882 | AA38: 1.169117647 | AB38: 1.191176471 | AC38: 1.220588235 | AD38: 1.242647059 | AE38: 1.272058824 | AF38: 1.301470588 | AG38: 1.323529412 | AH38: 1.352941176 | AI38: 1.382352941 | AJ38: 1.411764706 | AK38: 1.433823529 | AL38: 1.463235294 | AM38: 1.492647059 | AN38: 1.522058824 | AO38: 1.558823529 | AP38: 1.588235294 | AQ38: 1.617647059 | AR38: 1.654411765 | AS38: 1.691176471 | AT38: 1.720588235 | AU38: 1.757352941 | AV38: 1.794117647 | AW38: 1.838235294
D39: 1.271028037 | E39: 1.247706422 | F39: 1.214285714 | G39: 1.192982456 | H39: 1.192982456 | I39: 1.162393162 | J39: 1.133333333 | K39: 1.114754098 | L39: 1.105691057 | M39: 1.088 | N39: 1.070866142 | O39: 1.0625 | P39: 1.046153846 | Q39: 1.022556391 | R39: 1 | S39: 0.9927007299 | T39: 0.9784172662 | U39: 0.9577464789 | V39: 0.9444444444 | W39: 0.925170068 | X39: 0.9127516779 | Y39: 0.8947368421 | Z39: 0.8774193548 | AA39: 0.8553459119 | AB39: 0.8395061728 | AC39: 0.8192771084 | AD39: 0.8047337278 | AE39: 0.7861271676 | AF39: 0.7683615819 | AG39: 0.7555555556 | AH39: 0.7391304348 | AI39: 0.7234042553 | AJ39: 0.7083333333 | AK39: 0.6974358974 | AL39: 0.6834170854 | AM39: 0.6699507389 | AN39: 0.6570048309 | AO39: 0.641509434 | AP39: 0.6296296296 | AQ39: 0.6181818182 | AR39: 0.6044444444 | AS39: 0.5913043478 | AT39: 0.5811965812 | AU39: 0.5690376569 | AV39: 0.5573770492 | AW39: 0.544
C40: 2020 | D40: 0.7810218978 | E40: 0.795620438 | F40: 0.8175182482 | G40: 0.8321167883 | H40: 0.8321167883 | I40: 0.8540145985 | J40: 0.8759124088 | K40: 0.8905109489 | L40: 0.897810219 | M40: 0.9124087591 | N40: 0.9270072993 | O40: 0.9343065693 | P40: 0.9489051095 | Q40: 0.9708029197 | R40: 0.9927007299 | S40: 1 | T40: 1.01459854 | U40: 1.03649635 | V40: 1.051094891 | W40: 1.072992701 | X40: 1.087591241 | Y40: 1.109489051 | Z40: 1.131386861 | AA40: 1.160583942 | AB40: 1.182481752 | AC40: 1.211678832 | AD40: 1.233576642 | AE40: 1.262773723 | AF40: 1.291970803 | AG40: 1.313868613 | AH40: 1.343065693 | AI40: 1.372262774 | AJ40: 1.401459854 | AK40: 1.423357664 | AL40: 1.452554745 | AM40: 1.481751825 | AN40: 1.510948905 | AO40: 1.547445255 | AP40: 1.576642336 | AQ40: 1.605839416 | AR40: 1.642335766 | AS40: 1.678832117 | AT40: 1.708029197 | AU40: 1.744525547 | AV40: 1.781021898 | AW40: 1.824817518
D41: 1.280373832 | E41: 1.256880734 | F41: 1.223214286 | G41: 1.201754386 | H41: 1.201754386 | I41: 1.170940171 | J41: 1.141666667 | K41: 1.12295082 | L41: 1.113821138 | M41: 1.096 | N41: 1.078740157 | O41: 1.0703125 | P41: 1.053846154 | Q41: 1.030075188 | R41: 1.007352941 | S41: 1 | T41: 0.9856115108 | U41: 0.9647887324 | V41: 0.9513888889 | W41: 0.9319727891 | X41: 0.9194630872 | Y41: 0.9013157895 | Z41: 0.8838709677 | AA41: 0.8616352201 | AB41: 0.8456790123 | AC41: 0.8253012048 | AD41: 0.8106508876 | AE41: 0.7919075145 | AF41: 0.7740112994 | AG41: 0.7611111111 | AH41: 0.7445652174 | AI41: 0.7287234043 | AJ41: 0.7135416667 | AK41: 0.7025641026 | AL41: 0.6884422111 | AM41: 0.6748768473 | AN41: 0.6618357488 | AO41: 0.6462264151 | AP41: 0.6342592593 | AQ41: 0.6227272727 | AR41: 0.6088888889 | AS41: 0.5956521739 | AT41: 0.5854700855 | AU41: 0.5732217573 | AV41: 0.5614754098 | AW41: 0.548
C42: 2021 | D42: 0.7697841727 | E42: 0.7841726619 | F42: 0.8057553957 | G42: 0.8201438849 | H42: 0.8201438849 | I42: 0.8417266187 | J42: 0.8633093525 | K42: 0.8776978417 | L42: 0.8848920863 | M42: 0.8992805755 | N42: 0.9136690647 | O42: 0.9208633094 | P42: 0.9352517986 | Q42: 0.9568345324 | R42: 0.9784172662 | S42: 0.9856115108 | T42: 1 | U42: 1.021582734 | V42: 1.035971223 | W42: 1.057553957 | X42: 1.071942446 | Y42: 1.09352518 | Z42: 1.115107914 | AA42: 1.143884892 | AB42: 1.165467626 | AC42: 1.194244604 | AD42: 1.215827338 | AE42: 1.244604317 | AF42: 1.273381295 | AG42: 1.294964029 | AH42: 1.323741007 | AI42: 1.352517986 | AJ42: 1.381294964 | AK42: 1.402877698 | AL42: 1.431654676 | AM42: 1.460431655 | AN42: 1.489208633 | AO42: 1.525179856 | AP42: 1.553956835 | AQ42: 1.582733813 | AR42: 1.618705036 | AS42: 1.654676259 | AT42: 1.683453237 | AU42: 1.71942446 | AV42: 1.755395683 | AW42: 1.798561151
D43: 1.299065421 | E43: 1.275229358 | F43: 1.241071429 | G43: 1.219298246 | H43: 1.219298246 | I43: 1.188034188 | J43: 1.158333333 | K43: 1.139344262 | L43: 1.130081301 | M43: 1.112 | N43: 1.094488189 | O43: 1.0859375 | P43: 1.069230769 | Q43: 1.045112782 | R43: 1.022058824 | S43: 1.01459854 | T43: 1 | U43: 0.9788732394 | V43: 0.9652777778 | W43: 0.9455782313 | X43: 0.932885906 | Y43: 0.9144736842 | Z43: 0.8967741935 | AA43: 0.8742138365 | AB43: 0.8580246914 | AC43: 0.8373493976 | AD43: 0.8224852071 | AE43: 0.8034682081 | AF43: 0.7853107345 | AG43: 0.7722222222 | AH43: 0.7554347826 | AI43: 0.7393617021 | AJ43: 0.7239583333 | AK43: 0.7128205128 | AL43: 0.6984924623 | AM43: 0.684729064 | AN43: 0.6714975845 | AO43: 0.6556603774 | AP43: 0.6435185185 | AQ43: 0.6318181818 | AR43: 0.6177777778 | AS43: 0.6043478261 | AT43: 0.594017094 | AU43: 0.5815899582 | AV43: 0.5696721311 | AW43: 0.556
C44: 2022 | D44: 0.7535211268 | E44: 0.7676056338 | F44: 0.7887323944 | G44: 0.8028169014 | H44: 0.8028169014 | I44: 0.823943662 | J44: 0.8450704225 | K44: 0.8591549296 | L44: 0.8661971831 | M44: 0.8802816901 | N44: 0.8943661972 | O44: 0.9014084507 | P44: 0.9154929577 | Q44: 0.9366197183 | R44: 0.9577464789 | S44: 0.9647887324 | T44: 0.9788732394 | U44: 1 | V44: 1.014084507 | W44: 1.035211268 | X44: 1.049295775 | Y44: 1.070422535 | Z44: 1.091549296 | AA44: 1.11971831 | AB44: 1.14084507 | AC44: 1.169014085 | AD44: 1.190140845 | AE44: 1.218309859 | AF44: 1.246478873 | AG44: 1.267605634 | AH44: 1.295774648 | AI44: 1.323943662 | AJ44: 1.352112676 | AK44: 1.373239437 | AL44: 1.401408451 | AM44: 1.429577465 | AN44: 1.457746479 | AO44: 1.492957746 | AP44: 1.521126761 | AQ44: 1.549295775 | AR44: 1.584507042 | AS44: 1.61971831 | AT44: 1.647887324 | AU44: 1.683098592 | AV44: 1.718309859 | AW44: 1.76056338
D45: 1.327102804 | E45: 1.302752294 | F45: 1.267857143 | G45: 1.245614035 | H45: 1.245614035 | I45: 1.213675214 | J45: 1.183333333 | K45: 1.163934426 | L45: 1.154471545 | M45: 1.136 | N45: 1.118110236 | O45: 1.109375 | P45: 1.092307692 | Q45: 1.067669173 | R45: 1.044117647 | S45: 1.03649635 | T45: 1.021582734 | U45: 1 | V45: 0.9861111111 | W45: 0.9659863946 | X45: 0.9530201342 | Y45: 0.9342105263 | Z45: 0.9161290323 | AA45: 0.893081761 | AB45: 0.8765432099 | AC45: 0.8554216867 | AD45: 0.8402366864 | AE45: 0.8208092486 | AF45: 0.802259887 | AG45: 0.7888888889 | AH45: 0.7717391304 | AI45: 0.7553191489 | AJ45: 0.7395833333 | AK45: 0.7282051282 | AL45: 0.7135678392 | AM45: 0.6995073892 | AN45: 0.6859903382 | AO45: 0.6698113208 | AP45: 0.6574074074 | AQ45: 0.6454545455 | AR45: 0.6311111111 | AS45: 0.6173913043 | AT45: 0.6068376068 | AU45: 0.5941422594 | AV45: 0.5819672131 | AW45: 0.568
C46: 2023 | D46: 0.7430555556 | E46: 0.7569444444 | F46: 0.7777777778 | G46: 0.7916666667 | H46: 0.7916666667 | I46: 0.8125 | J46: 0.8333333333 | K46: 0.8472222222 | L46: 0.8541666667 | M46: 0.8680555556 | N46: 0.8819444444 | O46: 0.8888888889 | P46: 0.9027777778 | Q46: 0.9236111111 | R46: 0.9444444444 | S46: 0.9513888889 | T46: 0.9652777778 | U46: 0.9861111111 | V46: 1 | W46: 1.020833333 | X46: 1.034722222 | Y46: 1.055555556 | Z46: 1.076388889 | AA46: 1.104166667 | AB46: 1.125 | AC46: 1.152777778 | AD46: 1.173611111 | AE46: 1.201388889 | AF46: 1.229166667 | AG46: 1.25 | AH46: 1.277777778 | AI46: 1.305555556 | AJ46: 1.333333333 | AK46: 1.354166667 | AL46: 1.381944444 | AM46: 1.409722222 | AN46: 1.4375 | AO46: 1.472222222 | AP46: 1.5 | AQ46: 1.527777778 | AR46: 1.5625 | AS46: 1.597222222 | AT46: 1.625 | AU46: 1.659722222 | AV46: 1.694444444 | AW46: 1.736111111
D47: 1.345794393 | E47: 1.321100917 | F47: 1.285714286 | G47: 1.263157895 | H47: 1.263157895 | I47: 1.230769231 | J47: 1.2 | K47: 1.180327869 | L47: 1.170731707 | M47: 1.152 | N47: 1.133858268 | O47: 1.125 | P47: 1.107692308 | Q47: 1.082706767 | R47: 1.058823529 | S47: 1.051094891 | T47: 1.035971223 | U47: 1.014084507 | V47: 1 | W47: 0.9795918367 | X47: 0.966442953 | Y47: 0.9473684211 | Z47: 0.9290322581 | AA47: 0.9056603774 | AB47: 0.8888888889 | AC47: 0.8674698795 | AD47: 0.8520710059 | AE47: 0.8323699422 | AF47: 0.813559322 | AG47: 0.8 | AH47: 0.7826086957 | AI47: 0.7659574468 | AJ47: 0.75 | AK47: 0.7384615385 | AL47: 0.7236180905 | AM47: 0.7093596059 | AN47: 0.6956521739 | AO47: 0.679245283 | AP47: 0.6666666667 | AQ47: 0.6545454545 | AR47: 0.64 | AS47: 0.6260869565 | AT47: 0.6153846154 | AU47: 0.6025104603 | AV47: 0.5901639344 | AW47: 0.576
C48: 2024 | D48: 0.7278911565 | E48: 0.7414965986 | F48: 0.7619047619 | G48: 0.7755102041 | H48: 0.7755102041 | I48: 0.7959183673 | J48: 0.8163265306 | K48: 0.8299319728 | L48: 0.8367346939 | M48: 0.8503401361 | N48: 0.8639455782 | O48: 0.8707482993 | P48: 0.8843537415 | Q48: 0.9047619048 | R48: 0.925170068 | S48: 0.9319727891 | T48: 0.9455782313 | U48: 0.9659863946 | V48: 0.9795918367 | W48: 1 | X48: 1.013605442 | Y48: 1.034013605 | Z48: 1.054421769 | AA48: 1.081632653 | AB48: 1.102040816 | AC48: 1.129251701 | AD48: 1.149659864 | AE48: 1.176870748 | AF48: 1.204081633 | AG48: 1.224489796 | AH48: 1.25170068 | AI48: 1.278911565 | AJ48: 1.306122449 | AK48: 1.326530612 | AL48: 1.353741497 | AM48: 1.380952381 | AN48: 1.408163265 | AO48: 1.442176871 | AP48: 1.469387755 | AQ48: 1.496598639 | AR48: 1.530612245 | AS48: 1.56462585 | AT48: 1.591836735 | AU48: 1.62585034 | AV48: 1.659863946 | AW48: 1.700680272
D49: 1.373831776 | E49: 1.348623853 | F49: 1.3125 | G49: 1.289473684 | H49: 1.289473684 | I49: 1.256410256 | J49: 1.225 | K49: 1.204918033 | L49: 1.195121951 | M49: 1.176 | N49: 1.157480315 | O49: 1.1484375 | P49: 1.130769231 | Q49: 1.105263158 | R49: 1.080882353 | S49: 1.072992701 | T49: 1.057553957 | U49: 1.035211268 | V49: 1.020833333 | W49: 1 | X49: 0.9865771812 | Y49: 0.9671052632 | Z49: 0.9483870968 | AA49: 0.9245283019 | AB49: 0.9074074074 | AC49: 0.8855421687 | AD49: 0.8698224852 | AE49: 0.8497109827 | AF49: 0.8305084746 | AG49: 0.8166666667 | AH49: 0.7989130435 | AI49: 0.7819148936 | AJ49: 0.765625 | AK49: 0.7538461538 | AL49: 0.7386934673 | AM49: 0.724137931 | AN49: 0.7101449275 | AO49: 0.6933962264 | AP49: 0.6805555556 | AQ49: 0.6681818182 | AR49: 0.6533333333 | AS49: 0.6391304348 | AT49: 0.6282051282 | AU49: 0.6150627615 | AV49: 0.6024590164 | AW49: 0.588
C50: 2025 | D50: 0.7181208054 | E50: 0.7315436242 | F50: 0.7516778523 | G50: 0.7651006711 | H50: 0.7651006711 | I50: 0.7852348993 | J50: 0.8053691275 | K50: 0.8187919463 | L50: 0.8255033557 | M50: 0.8389261745 | N50: 0.8523489933 | O50: 0.8590604027 | P50: 0.8724832215 | Q50: 0.8926174497 | R50: 0.9127516779 | S50: 0.9194630872 | T50: 0.932885906 | U50: 0.9530201342 | V50: 0.966442953 | W50: 0.9865771812 | X50: 1 | Y50: 1.020134228 | Z50: 1.040268456 | AA50: 1.067114094 | AB50: 1.087248322 | AC50: 1.11409396 | AD50: 1.134228188 | AE50: 1.161073826 | AF50: 1.187919463 | AG50: 1.208053691 | AH50: 1.234899329 | AI50: 1.261744966 | AJ50: 1.288590604 | AK50: 1.308724832 | AL50: 1.33557047 | AM50: 1.362416107 | AN50: 1.389261745 | AO50: 1.422818792 | AP50: 1.44966443 | AQ50: 1.476510067 | AR50: 1.510067114 | AS50: 1.543624161 | AT50: 1.570469799 | AU50: 1.604026846 | AV50: 1.637583893 | AW50: 1.677852349
D51: 1.392523364 | E51: 1.366972477 | F51: 1.330357143 | G51: 1.307017544 | H51: 1.307017544 | I51: 1.273504274 | J51: 1.241666667 | K51: 1.221311475 | L51: 1.211382114 | M51: 1.192 | N51: 1.173228346 | O51: 1.1640625 | P51: 1.146153846 | Q51: 1.120300752 | R51: 1.095588235 | S51: 1.087591241 | T51: 1.071942446 | U51: 1.049295775 | V51: 1.034722222 | W51: 1.013605442 | X51: 1 | Y51: 0.9802631579 | Z51: 0.9612903226 | AA51: 0.9371069182 | AB51: 0.9197530864 | AC51: 0.8975903614 | AD51: 0.8816568047 | AE51: 0.8612716763 | AF51: 0.8418079096 | AG51: 0.8277777778 | AH51: 0.8097826087 | AI51: 0.7925531915 | AJ51: 0.7760416667 | AK51: 0.7641025641 | AL51: 0.7487437186 | AM51: 0.7339901478 | AN51: 0.7198067633 | AO51: 0.7028301887 | AP51: 0.6898148148 | AQ51: 0.6772727273 | AR51: 0.6622222222 | AS51: 0.647826087 | AT51: 0.6367521368 | AU51: 0.6234309623 | AV51: 0.6106557377 | AW51: 0.596
C54: Source : Régie de l’énergie du Canada. Avenir énergétique du Canada données des annexes.
C55: DOI: | D55: https://doi.org/10.35002/zjr8-8x75
C56: (CPI)
E58: 2005 | F58: 2006 | G58: 2007 | H58: 2008 | I58: 2009 | J58: 2010 | K58: 2011 | L58: 2012 | M58: 2013 | N58: 2014 | O58: 2015 | P58: 2016 | Q58: 2017 | R58: 2018 | S58: 2019 | T58: 2020 | U58: 2021 | V58: 2022 | W58: 2023 | X58: 2024 | Y58: 2025
C59: Inf. ligne | D59: =HLOOKUP($E$4,E58:Y60,2) -> 26 | E59: 2 | F59: 4 | G59: 6 | H59: 8 | I59: 10 | J59: 12 | K59: 14 | L59: 16 | M59: 18 | N59: 20 | O59: 22 | P59: 24 | Q59: 26 | R59: 28 | S59: 30 | T59: 32 | U59: 34 | V59: 36 | W59: 38 | X59: 40 | Y59: 42
C60: Def. ligne | D60: =HLOOKUP($E$4,E58:Y60,3) -> 27 | E60: 3 | F60: 5 | G60: 7 | H60: 9 | I60: 11 | J60: 13 | K60: 15 | L60: 17 | M60: 19 | N60: 21 | O60: 23 | P60: 25 | Q60: 27 | R60: 29 | S60: 31 | T60: 33 | U60: 35 | V60: 37 | W60: 39 | X60: 41 | Y60: 43

Sheet Multiplicateurs
A1: *** AVERTISSEMENT *** Cette feuille de calcul contient des données et des formules qui font partie intégrante du modèle EI2. Bien que ces données et formules soient consultables pour examen, elles ne doivent pas être modifiées. Toute modification des données ou des formules affectera l'analyse et pourrait invalider les résultats du modèle. Pour les visualiser, faites simplement défiler les colonnes vers la droite. | C1: =DonnéesProjet!B9 -> Ontario
C5: Multiplicateurs
D6: Emplois | G6: Revenus d'emploi | J6: Extrant | M6: Valeur ajoutée
D7: Direct | E7: Indirect | F7: Induit | G7: Direct | H7: Indirect | I7: Induit | J7: Direct | K7: Indirect | L7: Induit | M7: Direct | N7: Indirect | O7: Induit | T7: Facteur taux horaire | U7: Impôts sur le revenu | X7: CPP + EI | Y7: 0.0683
C8: Agriculture | D8: =IF(C1=D44,M_CA,IF(C1=E44,M_AB,IF(C1=F44,M_BC,IF(C1=G44,M_MB,IF(C1=H44,M_NB,IF(C1=I44,M_NL,IF(C1=J44,M_NT,IF(C1=K44,M_NS,IF(C1=L44,M_NU,IF(C1=M44,M_ON,IF(C1=N44,M_PE,IF(C1=O44,M_QC,IF(C1=P44,M_SK,IF(C1=Q44,M_YK,IF(C1=R44,M_MR,M_0))))))))))))))) -> 5.592289968 | E8: 2.52785354 | F8: 1.167644187 | G8: 0.1702889005 | H8: 0.1421709053 | I8: 0.05763525419 | J8: 1 | K8: 0.5360810213 | L8: 0.2121874364 | M8: 0.4524022106 | N8: 0.2693739464 | O8: 0.1240348933 | S8: Canada | T8: 1 | U8: 0.16 | X8: QPP + EI | Y8: 0.0748 | Z8: Québec
C9: Exploitation minière | D9: 2.335252208 | E9: 1.543239121 | F9: 1.401886429 | G9: 0.001083058304 | H9: 0.1077667755 | I9: 0.06947997869 | J9: 1 | K9: 0.3232751551 | L9: 0.2544547659 | M9: 0.6198667831 | N9: 0.1760363406 | O9: 0.1491656027 | S9: Alberta | T9: 1.114896253 | U9: 0.27
C10: Construction | D10: 4.082103844 | E10: 2.537396139 | F10: 1.700165011 | G10: 0 | H10: 0.1633100031 | I10: 0.08421057528 | J10: 1 | K10: 0.504936486 | L10: 0.308515693 | M10: 0.4616021443 | N10: 0.2521555134 | O10: 0.1809431703 | S10: British Columbia | T10: 0.9910188913 | U10: 0.22
C11: Secteur manufacturier | D11: 1.684518849 | E11: 1.799815709 | F11: 0.9410676827 | G11: 0.06907448234 | H11: 0.1181682815 | I11: 0.04665021834 | J11: 1 | K11: 0.4767401215 | L11: 0.1710183737 | M11: 0.2353346754 | N11: 0.2088371806 | O11: 0.1002151808 | S11: Manitoba | T11: 0.9290802106 | U11: 0.28
C12: Machinerie et équipement | D12: 3.409492325 | E12: 1.710532387 | F12: 1.485120699 | G12: 0 | H12: 0.1173020355 | I12: 0.07343755383 | J12: 1 | K12: 0.3886624711 | L12: 0.2693932368 | M12: 0.3875829603 | N12: 0.1886927837 | O12: 0.1579357846 | S12: New Brunswick | T12: 0.8052028492 | U12: 0.26
C13: TCSP | D13: 4.13800192 | E13: 2.637887567 | F13: 1.694218679 | G13: 0.2158953851 | H13: 0.1574688634 | I13: 0.08379531693 | J13: 1 | K13: 0.5381065894 | L13: 0.3075272497 | M13: 0.5350085261 | N13: 0.2638559384 | O13: 0.180351821 | S13: Newfoundland and Labrador | T13: 0.8052028492 | U13: 0.28
C14: Commerce de gros | D14: 3.928811784 | E14: 2.597410401 | F14: 1.815755467 | G14: 0 | H14: 0.1504299719 | I14: 0.08974524084 | J14: 1 | K14: 0.4643615198 | L14: 0.3290152234 | M14: 0.5849952103 | N14: 0.2462742783 | O14: 0.19307502 | S14: Northwest Territories | T14: 1.071428571 | U14: 0.22
C15: Commerce de détail | D15: 12.56151659 | E15: 2.704524418 | F15: 2.360050063 | G15: 0 | H15: 0.1589001404 | I15: 0.1165707566 | J15: 1 | K15: 0.5168604312 | L15: 0.4276099659 | M15: 0.5800115963 | N15: 0.2867128109 | O15: 0.251042605 | S15: Nova Scotia | T15: 0.8052028492 | U15: 0.28
C16: FAI | D16: 3.075720658 | E16: 2.976370394 | F16: 1.625782942 | G16: 0.240968266 | H16: 0.1892674904 | I16: 0.08050264069 | J16: 1 | K16: 0.5272124256 | L16: 0.2949241849 | M16: 0.5430449137 | N16: 0.2975491779 | O16: 0.1728987569 | S16: Nunavut | T16: 1.19047619 | U16: 0.2
C17: Services divers | D17: 7.116652393 | E17: 1.892342074 | F17: 1.751746392 | G17: 0.3395320234 | H17: 0.1051311668 | I17: 0.08653062704 | J17: 1 | K17: 0.3040700589 | L17: 0.3173481398 | M17: 0.6973190815 | N17: 0.1702543862 | O17: 0.1865738918 | S17: Ontario | T17: 0.9910188913 | U17: 0.23
C18: Réparation et maintenance | D18: 9.843 | E18: 2.37 | F18: 2.269 | G18: 0.486 | H18: 0.134 | I18: 0.112 | J18: 1 | K18: 0.438 | L18: 0.411 | M18: 0.573 | N18: 0.233 | O18: 0.241 | S18: Prince Edward Island | T18: 0.8052028492 | U18: 0.27
C19: Services professioniels | D19: 6.336225178 | E19: 2.418151472 | F19: 2.269229381 | G19: 0 | H19: 0.1389047746 | I19: 0.1122225904 | J19: 1 | K19: 0.3992049771 | L19: 0.4112640297 | M19: 0.6262839648 | N19: 0.2237597514 | O19: 0.2414027279 | S19: Quebec | T19: 1.083926912 | U19: 0.33
C20: Gouvernement | D20: 4.288161379 | E20: 2.985416854 | F20: 2.118882978 | G20: 0.005491654271 | H20: 0.1870227748 | I20: 0.1045269192 | J20: 1 | K20: 0.5025930223 | L20: 0.3840347943 | M20: 0.5463981467 | N20: 0.3034662725 | O20: 0.2254624166 | S20: Saskatchewan | T20: 1.083926912 | U20: 0.28
S21: Yukon | T21: 1.178571429 | U21: 0.22
C24: DPC Ménage
C25: Agriculture | D25: =IF(C1=D44,HFCE_CA,IF(C1=E44,HFCE_AB,IF(C1=F44,HFCE_BC,IF(C1=G44,HFCE_MB,IF(C1=H44,HFCE_NB,IF(C1=I44,HFCE_NL,IF(C1=J44,HFCE_NT,IF(C1=K44,HFCE_NS,IF(C1=L44,HFCE_NU,IF(C1=M44,HFCE_ON,IF(C1=N44,HFCE_PE,IF(C1=O44,HFCE_QC,IF(C1=P44,HFCE_SK,IF(C1=Q44,HFCE_YK,IF(C1=R44,HFCE_MR,HFCE_0))))))))))))))) -> 0.01535089254
C26: Exploitation minière | D26: 0.003795096132
C27: Construction | D27: 0.0004261931217
C28: Secteur manufacturier | D28: 0.1973903402
C29: Machinerie et équipement | D29: 0.006808364896
C30: TCSP | D30: 0.04943823309
C31: Commerce de gros | D31: 0.04006785719
C32: Commerce de détail | D32: 0.1195209597
C33: FAI | D33: 0.1517094112
C34: Services divers | D34: 0.3824603778
C35: Réparation et maintenance | D35: 0.002550582533
C36: Services professioniels | D36: 0.01364682334
C37: Gouvernement | D37: 0.01683486838
C41: Modèle de dépenses personnelles de consommation (DPC)
C42: National, provincial et territorial
C43: 2017
D44: Canada | E44: Alberta | F44: Colombie-Britannique | G44: Manitoba | H44: Nouveau-Brunswick | I44: Terre-Neuve-et-Labrador | J44: Territoires du Nord-Ouest | K44: Nouvelle-Écosse | L44: Nunavut | M44: Ontario | N44: Île-du-Prince-Édouard | O44: Québec | P44: Saskatchewan | Q44: Yukon
C45: Agriculture | D45: 0.014435171 | E45: 0.0128267514 | F45: 0.01313641116 | G45: 0.01328299111 | H45: 0.01551098449 | I45: 0.01192369149 | J45: 0.01521097334 | K45: 0.01453487123 | L45: 0.01263646045 | M45: 0.01535089254 | N45: 0.01512345904 | O45: 0.01498308955 | P45: 0.0118115328 | Q45: 0.01064339943 | S45: 0
C46: Exploitation minière | D46: 0.002455430148 | E46: 0.00319551136 | F46: 0.00113078951 | G46: 0.002202024175 | H46: 0.001059979488 | I46: 0.0004080837514 | J46: 0.0005280505065 | K46: 0.001350900137 | L46: 0.0005520890902 | M46: 0.003795096132 | N46: 0.000614766595 | O46: 0.0006500363006 | P46: 0.004045092916 | Q46: 0.0003082767043 | S46: 0
C47: Construction | D47: 0.0004602745268 | E47: 0.0005466998467 | F47: 0.0004654106184 | G47: 0.000554384163 | H47: 0.0005273812129 | I47: 0.0005732207689 | J47: 0.0005608536326 | K47: 0.001732043376 | L47: 0.0004196789792 | M47: 0.0004261931217 | N47: 0.000442517893 | O47: 0.0004003981502 | P47: 0.0004966839008 | Q47: 0.000476346593 | S47: 0
C48: Secteur manufacturier | D48: 0.1978285892 | E48: 0.1905785116 | F48: 0.1710657467 | G48: 0.1972989394 | H48: 0.2305664866 | I48: 0.2219115399 | J48: 0.2054396424 | K48: 0.1907251818 | L48: 0.1821031677 | M48: 0.1973903402 | N48: 0.2229545165 | O48: 0.2191845727 | P48: 0.1929147964 | Q48: 0.1485784086 | S48: 0
C49: Machinerie et équipement | D49: 0.006724339335 | E49: 0.007032290322 | F49: 0.00627391967 | G49: 0.006703634729 | H49: 0.006989842565 | I49: 0.005903642107 | J49: 0.005676697344 | K49: 0.00664418856 | L49: 0.006567487553 | M49: 0.006808364896 | N49: 0.005675933709 | O49: 0.006953792976 | P49: 0.007282710786 | Q49: 0.005780241874 | S49: 0
C50: TCSP | D50: 0.04895580805 | E50: 0.0465998638 | F50: 0.04558201188 | G50: 0.05060887244 | H50: 0.05813814514 | I50: 0.06520767237 | J50: 0.05344549416 | K50: 0.07729691798 | L50: 0.06078872351 | M50: 0.04943823309 | N50: 0.04885622478 | O50: 0.04964484045 | P50: 0.04637111355 | Q50: 0.0679966534 | S50: 0
C51: Commerce de gros | D51: 0.04130474105 | E51: 0.03950743456 | F51: 0.03717043797 | G51: 0.04226484993 | H51: 0.04990541996 | I51: 0.04833580125 | J51: 0.04590276363 | K51: 0.04263289195 | L51: 0.03918152569 | M51: 0.04006785719 | N51: 0.04806165884 | O51: 0.04571822914 | P51: 0.04233530758 | Q51: 0.03525851378 | S51: 0
C52: Commerce de détail | D52: 0.1252065311 | E52: 0.1260110155 | F52: 0.1211230628 | G52: 0.1277857391 | H52: 0.1308338253 | I52: 0.1383569565 | J52: 0.1256648069 | K52: 0.1207417323 | L52: 0.1533720545 | M52: 0.1195209597 | N52: 0.1264141844 | O52: 0.1361832333 | P52: 0.1304500053 | Q52: 0.1354170008 | S52: 0
C53: FAI | D53: 0.1493961492 | E53: 0.1423623487 | F53: 0.1584313385 | G53: 0.1352377405 | H53: 0.1202950468 | I53: 0.1113530359 | J53: 0.1252027781 | K53: 0.192021706 | L53: 0.1975682642 | M53: 0.1517094112 | N53: 0.1232768999 | O53: 0.1559089446 | P53: 0.1337905003 | Q53: 0.1333011902 | S53: 0
C54: Services divers | D54: 0.3823821344 | E54: 0.3955439006 | F54: 0.4160839334 | G54: 0.3912655838 | H54: 0.3566501514 | I54: 0.3720744897 | J54: 0.393155279 | K54: 0.3171861871 | L54: 0.259883743 | M54: 0.3824603778 | N54: 0.3816962426 | O54: 0.347025952 | P54: 0.393492065 | Q54: 0.4308823615 | S54: 0
C55: Réparation et maintenance | D55: 0.003032056936 | E55: 0.004532483919 | F55: 0.002837978913 | G55: 0.002758028006 | H55: 0.003083042829 | I55: 0.004404055022 | J55: 0.002200310182 | K55: 0.002192958909 | L55: 0.001076231624 | M55: 0.002550582533 | N55: 0.00175516672 | O55: 0.003140644686 | P55: 0.003210797355 | Q55: 0.002294505278 | S55: 0
C56: Services professioniels | D56: 0.01254995589 | E56: 0.01418244489 | F56: 0.01243919458 | G56: 0.01046738884 | H56: 0.0106275528 | I56: 0.007344458873 | J56: 0.01208474944 | K56: 0.008427508337 | L56: 0.005603023946 | M56: 0.01364682334 | N56: 0.008468771788 | O56: 0.01097145702 | P56: 0.009385441692 | Q56: 0.009345360258 | S56: 0
C57: Gouvernement | D57: 0.01526881905 | E57: 0.0170807435 | F57: 0.01425976428 | G57: 0.01956982368 | H57: 0.01581214142 | I57: 0.01220335243 | J57: 0.01492760138 | K57: 0.02451291232 | L57: 0.08024754982 | M57: 0.01683486838 | N57: 0.01665965727 | O57: 0.009234809168 | P57: 0.02441395236 | Q57: 0.01971774158 | S57: 0
C61: Multiplicateurs
C62: Nationaux, provinciaux et territoriaux
C63: 2017
E64: Emplois | H64: Revenus d'emploi | K64: Extrant | N64: Valeur ajoutée
E65: Direct | F65: Indirect | G65: Induit | H65: Direct | I65: Indirect | J65: Induit | K65: Direct | L65: Indirect | M65: Induit | N65: Direct | O65: Indirect | P65: Induit
C66: Canada | D66: Agriculture | E66: 3.408185773 | F66: 2.731663937 | G66: 1.160459726 | H66: 0.1615207104 | I66: 0.1610368018 | J66: 0.05673959542 | K66: 1 | L66: 0.6919326675 | M66: 0.2103154809 | N66: 0.4872287518 | O66: 0.3349492763 | P66: 0.1219152553
D67: Exploitation minière | E67: 0.8291715357 | F67: 2.37458453 | G67: 1.373433504 | H67: 0.1328265275 | I67: 0.167348453 | J67: 0.06693690177 | K67: 1 | L67: 0.5162231021 | M67: 0.2492728645 | N67: 0.5758765376 | O67: 0.2837518172 | P67: 0.1444905213
D68: Construction | E68: 3.937854252 | F68: 3.319654044 | G68: 2.249441499 | H68: 0.2916492249 | I68: 0.2192296302 | J68: 0.1094665348 | K68: 1 | L68: 0.6900082569 | M68: 0.4079510788 | N68: 0.4296123562 | O68: 0.3485399759 | P68: 0.2365151381
D69: Secteur manufacturier | E69: 1.962037391 | F69: 2.73942141 | G69: 1.38566995 | H69: 0.1515285526 | I69: 0.1738064502 | J69: 0.0673583603 | K69: 1 | L69: 0.7463988444 | M69: 0.2513008561 | N69: 0.2681898097 | O69: 0.3350336488 | P69: 0.1458009079
D70: Machinerie et équipement | E70: 3.533287849 | F70: 2.372886303 | G70: 1.971763365 | H70: 0.2783076408 | I70: 0.160382059 | J70: 0.09609051114 | K70: 1 | L70: 0.54098785 | M70: 0.3576932627 | N70: 0.4036630666 | O70: 0.261163207 | P70: 0.2075509469
D71: TCSP | E71: 3.725952584 | F71: 2.882326609 | G71: 1.993962215 | H71: 0.2771423165 | I71: 0.1768975167 | J71: 0.09699029604 | K71: 1 | L71: 0.6410191402 | M71: 0.3617657725 | N71: 0.5738359249 | O71: 0.3106612336 | P71: 0.2096260718
D72: Commerce de gros | E72: 4.735695263 | F72: 2.88792407 | G72: 2.403216557 | H72: 0.3490379845 | I72: 0.1687584229 | J72: 0.116882671 | K72: 1 | L72: 0.5302342114 | M72: 0.4361460563 | N72: 0.6117613274 | O72: 0.2817770797 | P72: 0.2528497263
D73: Commerce de détail | E73: 12.34275518 | F73: 2.97163242 | G73: 2.818033032 | H73: 0.4335869438 | I73: 0.1726203499 | J73: 0.1370563863 | K73: 1 | L73: 0.567046704 | M73: 0.5112823469 | N73: 0.6042239674 | O73: 0.3123781153 | P73: 0.2964121196
D74: FAI | E74: 2.933191343 | F74: 3.5762317 | G74: 1.931354986 | H74: 0.2186029238 | I74: 0.2192049969 | J74: 0.09396817269 | K74: 1 | L74: 0.6298037001 | M74: 0.3504925193 | N74: 0.5461109125 | O74: 0.3494508356 | P74: 0.2031682645
D75: Services divers | E75: 7.580782843 | F75: 2.185852483 | G75: 2.131851772 | H75: 0.4073054113 | I75: 0.1247985479 | J75: 0.1036591486 | K75: 1 | L75: 0.3762080478 | M75: 0.3868513816 | N75: 0.7033840978 | O75: 0.203720538 | P75: 0.2243516466
D76: Réparation et maintenance | E76: 8.736 | F76: 2.602 | G76: 2.699 | H76: 0.461 | I76: 0.147 | J76: 0.131 | K76: 1 | L76: 0.497 | M76: 0.49 | N76: 0.596 | O76: 0.265 | P76: 0.284
D77: Services professioniels | E77: 6.349664089 | F77: 2.926126634 | G77: 2.769799875 | H77: 0.4420890184 | I77: 0.1678179925 | J77: 0.1348630983 | K77: 1 | L77: 0.4885415808 | M77: 0.5024048292 | N77: 0.6270988654 | O77: 0.2735971385 | P77: 0.2912589121
D78: Gouvernement | E78: 4.474281446 | F78: 3.429871637 | G78: 2.54809559 | H78: 0.3867983074 | I78: 0.208750791 | J78: 0.1241838916 | K78: 1 | L78: 0.5816677903 | M78: 0.46263483 | N78: 0.5389934501 | O78: 0.3471514731 | P78: 0.2679796986
E82: Emplois | H82: Revenus d'emploi | K82: Extrant | N82: Valeur ajoutée
E83: Direct | F83: Indirect | G83: Induit | H83: Direct | I83: Indirect | J83: Induit | K83: Direct | L83: Indirect | M83: Induit | N83: Direct | O83: Indirect | P83: Induit
C84: Alberta | D84: Agriculture | E84: 2.294052739 | F84: 1.975042596 | G84: 0.5159391389 | H84: 0.07307913579 | I84: 0.118759976 | J84: 0.02617364795 | K84: 1 | L84: 0.5875195149 | M84: 0.1020461954 | N84: 0.4621109809 | O84: 0.259654594 | P84: 0.06312052612
D85: Exploitation minière | E85: 0.7139441613 | F85: 1.660984685 | G85: 0.8052381934 | H85: 0.1332470019 | I85: 0.1372198999 | J85: 0.0402383805 | K85: 1 | L85: 0.4175383697 | M85: 0.1586286027 | N85: 0.5416547573 | O85: 0.2336313253 | P85: 0.09813695042
D86: Construction | E86: 3.486580851 | F86: 2.078952632 | G86: 1.356334624 | H86: 0.2945700775 | I86: 0.1610435224 | J86: 0.06757569946 | K86: 1 | L86: 0.4973758143 | M86: 0.2662843305 | N86: 0.4102387011 | O86: 0.2710939404 | P86: 0.165464768
D87: Secteur manufacturier | E87: 1.46506138 | F87: 2.180175845 | G87: 0.7565580682 | H87: 0.1202914134 | I87: 0.1457935595 | J87: 0.03767567782 | K87: 1 | L87: 0.7993639251 | M87: 0.1488803754 | N87: 0.322595932 | O87: 0.3498931225 | P87: 0.09247421467
D88: Machinerie et équipement | E88: 2.786867962 | F88: 1.417568471 | G88: 1.050975812 | H88: 0.2387624875 | I88: 0.1076303309 | J88: 0.05255497112 | K88: 1 | L88: 0.3434945815 | M88: 0.2065119525 | N88: 0.4039123514 | O88: 0.1787542789 | P88: 0.1280932625
D89: TCSP | E89: 3.065784397 | F89: 1.63704603 | G89: 1.140947251 | H89: 0.2729871582 | I89: 0.1193551551 | J89: 0.05694392216 | K89: 1 | L89: 0.4546857869 | M89: 0.2240224738 | N89: 0.6033480502 | O89: 0.2208968957 | P89: 0.1389337676
D90: Commerce de gros | E90: 4.69314927 | F90: 1.532826713 | G90: 1.500489479 | H90: 0.3899448264 | I90: 0.1045232692 | J90: 0.07499944155 | K90: 1 | L90: 0.3511778299 | M90: 0.2943248077 | N90: 0.6308450161 | O90: 0.1933147395 | P90: 0.1828485807
D91: Commerce de détail | E91: 11.21718231 | F91: 1.777368148 | G91: 1.617641818 | H91: 0.4121462806 | I91: 0.1163874945 | J91: 0.0808103244 | K91: 1 | L91: 0.4097209757 | M91: 0.3172631115 | N91: 0.6113986622 | O91: 0.2327620499 | P91: 0.1971605303
D92: FAI | E92: 2.738772117 | F92: 2.260651606 | G92: 1.075670833 | H92: 0.2185500136 | I92: 0.1518215045 | J92: 0.05388326011 | K92: 1 | L92: 0.4581902223 | M92: 0.2110141364 | N92: 0.5717901424 | O92: 0.2501085388 | P92: 0.131242656
D93: Services divers | E93: 6.828340465 | F93: 1.449573247 | G93: 1.244518886 | H93: 0.3452571075 | I93: 0.08472220988 | J93: 0.06234053061 | K93: 1 | L93: 0.2581148783 | M93: 0.244111019 | N93: 0.7152447585 | O93: 0.1424863244 | P93: 0.1516236361
D94: Réparation et maintenance | E94: 5.978 | F94: 1.57 | G94: 1.536 | H94: 0.419 | I94: 0.098 | J94: 0.077 | K94: 1 | L94: 0.343 | M94: 0.301 | N94: 0.629 | O94: 0.19 | P94: 0.187
D95: Services professioniels | E95: 5.158043239 | F95: 1.817912747 | G95: 1.524390852 | H95: 0.3977882904 | I95: 0.1120434382 | J95: 0.07606880159 | K95: 1 | L95: 0.3538702578 | M95: 0.2989551199 | N95: 0.6152420275 | O95: 0.2013756152 | P95: 0.186003923
D96: Gouvernement | E96: 3.613752507 | F96: 2.847426685 | G96: 1.476524737 | H96: 0.3404248049 | I96: 0.1844955471 | J96: 0.07339717112 | K96: 1 | L96: 0.5087861128 | M96: 0.2895756814 | N96: 0.5161421065 | O96: 0.3178210374 | P96: 0.1798267718
E100: Emplois | H100: Revenus d'emploi | K100: Extrant | N100: Valeur ajoutée
E101: Direct | F101: Indirect | G101: Induit | H101: Direct | I101: Indirect | J101: Induit | K101: Direct | L101: Indirect | M101: Induit | N101: Direct | O101: Indirect | P101: Induit
C102: Colombie-Britannique | D102: Agriculture | E102: 3.119852041 | F102: 1.927414833 | G102: 0.8416110698 | H102: 0.128776065 | I102: 0.1151140244 | J102: 0.03990498488 | K102: 1 | L102: 0.4414655961 | M102: 0.1538101915 | N102: 0.5480874408 | O102: 0.2458358412 | P102: 0.09873984993
D103: Exploitation minière | E103: 0.9712965795 | F103: 1.424456583 | G103: 0.8162560134 | H103: 0.1320318292 | I103: 0.09671775637 | J103: 0.03900255058 | K103: 1 | L103: 0.2916720775 | M103: 0.1492826366 | N103: 0.5967969661 | O103: 0.1643974601 | P103: 0.09575107396
D104: Construction | E104: 3.781447152 | F104: 2.22519904 | G104: 1.412295649 | H104: 0.2624926694 | I104: 0.1501344342 | J104: 0.06740762489 | K104: 1 | L104: 0.4381944351 | M104: 0.2582156488 | N104: 0.4012972966 | O104: 0.2301740584 | P104: 0.165917052
D105: Secteur manufacturier | E105: 2.591578024 | F105: 2.432729816 | G105: 1.226564557 | H105: 0.2042425188 | I105: 0.1614873085 | J105: 0.05838028997 | K105: 1 | L105: 0.5972531084 | M105: 0.2242755251 | N105: 0.3187260669 | O105: 0.2790062548 | P105: 0.1440559964
D106: Machinerie et équipement | E106: 3.714022003 | F106: 1.462429601 | G106: 1.456800079 | H106: 0.3177448264 | I106: 0.09347365657 | J106: 0.06955016596 | K106: 1 | L106: 0.2722187721 | M106: 0.2664418061 | N106: 0.4063342546 | O106: 0.1467472072 | P106: 0.1712381504
D107: TCSP | E107: 3.276579133 | F107: 2.146907531 | G107: 1.368496235 | H107: 0.2547969654 | I107: 0.134821504 | J107: 0.06511287576 | K107: 1 | L107: 0.4212406235 | M107: 0.250415582 | N107: 0.5478923474 | O107: 0.2186778801 | P107: 0.1609118085
D108: Commerce de gros | E108: 6.49912182 | F108: 1.905247701 | G108: 2.109465214 | H108: 0.456046223 | I108: 0.1123542282 | J108: 0.1003468285 | K108: 1 | L108: 0.3381339579 | M108: 0.3859119192 | N108: 0.6425615029 | O108: 0.1886700735 | P108: 0.2479651872
D109: Commerce de détail | E109: 11.14086676 | F109: 2.118449956 | G109: 2.068985048 | H109: 0.4404023777 | I109: 0.1206939023 | J109: 0.09855226024 | K109: 1 | L109: 0.3959515872 | M109: 0.3784891131 | N109: 0.6142263582 | O109: 0.2277970728 | P109: 0.2433107875
D110: FAI | E110: 2.496182012 | F110: 2.839888458 | G110: 1.197832278 | H110: 0.1863399577 | I110: 0.1656430429 | J110: 0.05686513682 | K110: 1 | L110: 0.4803078932 | M110: 0.2188749222 | N110: 0.5633766045 | O110: 0.2644423727 | P110: 0.1408150729
D111: Services divers | E111: 7.06310913 | F111: 1.736060082 | G111: 1.464908199 | H111: 0.3233487469 | I111: 0.09478234476 | J111: 0.0696069076 | K111: 1 | L111: 0.2603832317 | M111: 0.2681394525 | N111: 0.6976893445 | O111: 0.1497721865 | P111: 0.1723495654
D112: Réparation et maintenance | E112: 8.285 | F112: 2.002 | G112: 2.009 | H112: 0.476 | I112: 0.111 | J112: 0.096 | K112: 1 | L112: 0.344 | M112: 0.367 | N112: 0.555 | O112: 0.195 | P112: 0.236
D113: Services professioniels | E113: 6.169272038 | F113: 1.942420136 | G113: 1.963475111 | H113: 0.4532205274 | I113: 0.1090559508 | J113: 0.09345855421 | K113: 1 | L113: 0.3050193735 | M113: 0.3591294762 | N113: 0.6531899694 | O113: 0.1767352337 | P113: 0.2307861194
D114: Gouvernement | E114: 4.569588983 | F114: 3.092877285 | G114: 1.897007417 | H114: 0.3774282006 | I114: 0.1958783712 | J114: 0.0904531444 | K114: 1 | L114: 0.5102064468 | M114: 0.3469979058 | N114: 0.5109612871 | O114: 0.3117727461 | P114: 0.2230600279
E118: Emplois | H118: Revenus d'emploi | K118: Extrant | N118: Valeur ajoutée
E119: Direct | F119: Indirect | G119: Induit | H119: Direct | I119: Indirect | J119: Induit | K119: Direct | L119: Indirect | M119: Induit | N119: Direct | O119: Indirect | P119: Induit
C120: Manitoba | D120: Agriculture | E120: 2.565810925 | F120: 1.610601733 | G120: 0.4560240963 | H120: 0.0787300635 | I120: 0.08331969722 | J120: 0.01999317443 | K120: 1 | L120: 0.3608812456 | M120: 0.07490333269 | N120: 0.4587140579 | O120: 0.1849830618 | P120: 0.04918883186
D121: Exploitation minière | E121: 0.715626436 | F121: 0.8183876082 | G121: 0.4334435418 | H121: 0.07869309666 | I121: 0.05545085462 | J121: 0.01880421262 | K121: 1 | L121: 0.1481610044 | M121: 0.07140540878 | N121: 0.7542614045 | O121: 0.08902485803 | P121: 0.04726145028
D122: Construction | E122: 3.734328103 | F122: 2.048646606 | G122: 1.185615692 | H122: 0.2632212286 | I122: 0.1213926463 | J122: 0.05164056666 | K122: 1 | L122: 0.3433594099 | M122: 0.1950133242 | N122: 0.3643131644 | O122: 0.1859478329 | P122: 0.1282329575
D123: Secteur manufacturier | E123: 2.918945282 | F123: 1.660736755 | G123: 0.8707515844 | H123: 0.2001156425 | I123: 0.09076082892 | J123: 0.03786987264 | K123: 0.9999635501 | L123: 0.3986076693 | M123: 0.1433818455 | N123: 0.3349294104 | O123: 0.193689947 | P123: 0.09428776129
D124: Machinerie et équipement | E124: 3.285017708 | F124: 1.416800615 | G124: 0.9656670997 | H124: 0.2309758152 | I124: 0.0854005918 | J124: 0.04212270831 | K124: 1 | L124: 0.2953714814 | M124: 0.1589267097 | N124: 0.4099827704 | O124: 0.1505168805 | P124: 0.1044780575
D125: TCSP | E125: 3.645829608 | F125: 1.572343909 | G125: 1.093203208 | H125: 0.278417292 | I125: 0.08684812462 | J125: 0.04753086078 | K125: 1 | L125: 0.2636817615 | M125: 0.1798115394 | N125: 0.6304195339 | O125: 0.1360244431 | P125: 0.118385519
D126: Commerce de gros | E126: 5.20804994 | F126: 1.55638761 | G126: 1.375207031 | H126: 0.3382630697 | I126: 0.08410842561 | J126: 0.0598996756 | K126: 1 | L126: 0.260030156 | M126: 0.2262126996 | N126: 0.639595601 | O126: 0.1483308801 | P126: 0.1491264885
D127: Commerce de détail | E127: 11.85451979 | F127: 1.787377965 | G127: 1.595255679 | H127: 0.3988914667 | I127: 0.09286024609 | J127: 0.06952685597 | K127: 1 | L127: 0.3040093374 | M127: 0.2621187681 | N127: 0.6468751417 | O127: 0.1765154775 | P127: 0.1727796255
D128: FAI | E128: 2.601972641 | F128: 2.579440243 | G128: 1.055898183 | H128: 0.1942995762 | I128: 0.1524012215 | J128: 0.04592622748 | K128: 1 | L128: 0.4189159274 | M128: 0.1737197958 | N128: 0.5259484113 | O128: 0.2417293087 | P128: 0.1143951033
D129: Services divers | E129: 8.624459865 | F129: 1.380573902 | G129: 1.446496424 | H129: 0.3939053159 | I129: 0.07211361066 | J129: 0.06300534939 | K129: 1 | L129: 0.1930599289 | M129: 0.2379667217 | N129: 0.7223520362 | O129: 0.1159980232 | P129: 0.1566301244
D130: Réparation et maintenance | E130: 12.59 | F130: 1.633 | G130: 1.654 | H130: 0.519 | I130: 0.081 | J130: 0.072 | K130: 1 | L130: 0.263 | M130: 0.272 | N130: 0.601 | O130: 0.157 | P130: 0.179
D131: Services professioniels | E131: 7.288885688 | F131: 1.832100862 | G131: 1.595204992 | H131: 0.425364449 | I131: 0.08889725322 | J131: 0.06974823795 | K131: 1 | L131: 0.2621731171 | M131: 0.2624554227 | N131: 0.6352191695 | O131: 0.1526121991 | P131: 0.1728200357
D132: Gouvernement | E132: 5.614301025 | F132: 2.81827136 | G132: 1.623523725 | H132: 0.3907194355 | I132: 0.1495960783 | J132: 0.07083840202 | K132: 1 | L132: 0.4089234183 | M132: 0.2672214829 | N132: 0.5323085232 | O132: 0.2541165718 | P132: 0.1757416963
E136: Emplois | H136: Revenus d'emploi | K136: Extrant | N136: Valeur ajoutée
E137: Direct | F137: Indirect | G137: Induit | H137: Direct | I137: Indirect | J137: Induit | K137: Direct | L137: Indirect | M137: Induit | N137: Direct | O137: Indirect | P137: Induit
C138: Nouveau-Brunswick | D138: Agriculture | E138: 4.300107413 | F138: 1.469224853 | G138: 0.766978474 | H138: 0.1887085148 | I138: 0.07144954646 | J138: 0.03030381208 | K138: 1 | L138: 0.3080060518 | M138: 0.1219385216 | N138: 0.561281192 | O138: 0.1309608566 | P138: 0.07492657233
D139: Exploitation minière | E139: 4.086513076 | F139: 0.7798499026 | G139: 0.9686339872 | H139: 0.2858106567 | I139: 0.04490812093 | J139: 0.03797432826 | K139: 1 | L139: 0.1600152695 | M139: 0.1537247983 | N139: 0.6466873598 | O139: 0.07576304583 | P139: 0.09428811758
D140: Construction | E140: 5.368197981 | F140: 1.940907078 | G140: 1.203325771 | H140: 0.3043333967 | I140: 0.1017340415 | J140: 0.04717957581 | K140: 1 | L140: 0.3165079305 | M140: 0.1908470997 | N140: 0.4547091021 | O140: 0.1565042844 | P140: 0.1174488076
D141: Secteur manufacturier | E141: 1.350639616 | F141: 1.033405312 | G141: 0.4050241309 | H141: 0.08114972866 | I141: 0.05475722846 | J141: 0.01574371247 | K141: 0.9999911406 | L141: 0.2359300135 | M141: 0.06459757216 | N141: 0.1497751868 | O141: 0.1045159074 | P141: 0.039557216
D142: Machinerie et équipement | E142: 5.53438871 | F142: 0.9364788721 | G142: 1.097284958 | H142: 0.2881231236 | I142: 0.04763433846 | J142: 0.04310168984 | K142: 0.9999462145 | L142: 0.1505160638 | M142: 0.1738142841 | N142: 0.4112689589 | O142: 0.0776387945 | P142: 0.1071012154
D143: TCSP | E143: 3.007700823 | F143: 1.995608589 | G143: 0.8917234139 | H143: 0.2041192375 | I143: 0.1020410601 | J143: 0.03507232815 | K143: 1 | L143: 0.4279643996 | M143: 0.1412950482 | N143: 0.4756191225 | O143: 0.1795969604 | P143: 0.087215844
D144: Commerce de gros | E144: 6.253858792 | F144: 1.685121229 | G144: 1.455278905 | H144: 0.3758578934 | I144: 0.08888836944 | J144: 0.05725043454 | K144: 1 | L144: 0.2819255797 | M144: 0.2307902119 | N144: 0.6157906532 | O144: 0.1519701847 | P144: 0.1422604196
D145: Commerce de détail | E145: 13.42137969 | F145: 1.877617403 | G145: 1.642972834 | H145: 0.4272472633 | I145: 0.09319622236 | J145: 0.06451620086 | K145: 1 | L145: 0.3182267288 | M145: 0.2604289147 | N145: 0.6152979371 | O145: 0.1758587513 | P145: 0.1605233808
D146: FAI | E146: 2.702350593 | F146: 2.473619763 | G146: 0.8850460722 | H146: 0.1727138235 | I146: 0.1283827129 | J146: 0.03469840674 | K146: 1 | L146: 0.3900080782 | M146: 0.140237379 | N146: 0.5570574065 | O146: 0.2171661489 | P146: 0.08665174549
D147: Services divers | E147: 7.903077446 | F147: 1.492462796 | G147: 1.218662975 | H147: 0.3383980049 | I147: 0.06945769802 | J147: 0.04776118879 | K147: 1 | L147: 0.2088831581 | M147: 0.1930521509 | N147: 0.6951814378 | O147: 0.1156320629 | P147: 0.1187956713
D148: Réparation et maintenance | E148: 13.374 | F148: 1.864 | G148: 1.774 | H148: 0.513 | I148: 0.091 | J148: 0.07 | K148: 1 | L148: 0.316 | M148: 0.281 | N148: 0.527 | O148: 0.166 | P148: 0.173
D149: Services professioniels | E149: 8.511486901 | F149: 1.818633902 | G149: 1.656056233 | H149: 0.4662422939 | I149: 0.08265016074 | J149: 0.06512768404 | K149: 1 | L149: 0.2415313147 | M149: 0.26248308 | N149: 0.6510902805 | O149: 0.1372720091 | P149: 0.1616830633
D150: Gouvernement | E150: 5.682697354 | F150: 2.114850445 | G150: 1.582047048 | H150: 0.4529609271 | I150: 0.1090250213 | J150: 0.06222712411 | K150: 1 | L150: 0.3130455785 | M150: 0.2509046726 | N150: 0.5901896869 | O150: 0.1819616541 | P150: 0.1546949187
E154: Emplois | H154: Revenus d'emploi | K154: Extrant | N154: Valeur ajoutée
E155: Direct | F155: Indirect | G155: Induit | H155: Direct | I155: Indirect | J155: Induit | K155: Direct | L155: Indirect | M155: Induit | N155: Direct | O155: Indirect | P155: Induit
C156: Terre-Neuve-et-Labrador | D156: Agriculture | E156: 1.923269322 | F156: 1.383522818 | G156: 0.3692165892 | H156: 0.1079459225 | I156: 0.08585645827 | J156: 0.01781002627 | K156: 1 | L156: 0.3014669044 | M156: 0.06576547734 | N156: 0.4831802958 | O156: 0.1501237194 | P156: 0.04190471869
D157: Exploitation minière | E157: 0.4277730001 | F157: 0.6009787554 | G157: 0.2979478929 | H157: 0.07035111336 | I157: 0.05205540953 | J157: 0.01428039038 | K157: 1 | L157: 0.1671702629 | M157: 0.05271385508 | N157: 0.7337815154 | O157: 0.07733256272 | P157: 0.03375867253
D158: Construction | E158: 2.849577369 | F158: 1.514984009 | G158: 0.9022791849 | H158: 0.2442607459 | I158: 0.1205649168 | J158: 0.043392945 | K158: 1 | L158: 0.3303492954 | M158: 0.1603006815 | N158: 0.4055097555 | O158: 0.1739969087 | P158: 0.1025013452
D159: Secteur manufacturier | E159: 1.327257408 | F159: 1.2770721 | G159: 0.4365073929 | H159: 0.1233423366 | I159: 0.08421399904 | J159: 0.02081253617 | K159: 0.9999784559 | L159: 0.4619948336 | M159: 0.07727085832 | N159: 0.2316751146 | O159: 0.2467297806 | P159: 0.04960077688
D160: Machinerie et équipement | E160: 5.212581338 | F160: 0.9900042797 | G160: 1.250781564 | H160: 0.4582192888 | I160: 0.0701650889 | J160: 0.05994537436 | K160: 1 | L160: 0.192237761 | M160: 0.2218888744 | N160: 0.5149585157 | O160: 0.1078593341 | P160: 0.1423297509
D161: TCSP | E161: 3.480188262 | F161: 1.157281392 | G161: 0.8981228427 | H161: 0.3024211813 | I161: 0.08023946397 | J161: 0.04329499099 | K161: 1 | L161: 0.3152935069 | M161: 0.1592870205 | N161: 0.5285396619 | O161: 0.1408749623 | P161: 0.1023310759
D162: Commerce de gros | E162: 6.198755501 | F162: 0.9912673651 | G162: 1.274527423 | H162: 0.4494364907 | I162: 0.06886380237 | J162: 0.06151352733 | K162: 1 | L162: 0.1998331558 | M162: 0.2263758314 | N162: 0.7114115848 | O162: 0.1145879711 | P162: 0.1449376463
D163: Commerce de détail | E163: 10.86378768 | F163: 1.600723397 | G163: 1.281917676 | H163: 0.4175173702 | I163: 0.09943309918 | J163: 0.06166682843 | K163: 1 | L163: 0.2889866178 | M163: 0.2276278844 | N163: 0.6389319166 | O163: 0.1691344419 | P163: 0.1458054623
D164: FAI | E164: 2.830654826 | F164: 1.850617428 | G164: 0.8193362804 | H164: 0.2185650376 | I164: 0.1256055008 | J164: 0.03917259013 | K164: 1 | L164: 0.356858985 | M164: 0.1453834466 | N164: 0.5761684546 | O164: 0.1946949383 | P164: 0.09289833795
D165: Services divers | E165: 7.095384894 | F165: 1.134625426 | G165: 1.068292013 | H165: 0.3955066423 | I165: 0.06661106534 | J165: 0.05130500436 | K165: 1 | L165: 0.1779150998 | M165: 0.1896074327 | N165: 0.7210654656 | O165: 0.1002986242 | P165: 0.1217464592
D166: Réparation et maintenance | E166: 5.119 | F166: 1.804 | G166: 1.331 | H166: 0.416 | I166: 0.121 | J166: 0.064 | K166: 1 | L166: 0.326 | M166: 0.236 | N166: 0.488 | O166: 0.193 | P166: 0.151
D167: Services professioniels | E167: 5.489986082 | F167: 1.322007457 | G167: 1.219897952 | H167: 0.4137832628 | I167: 0.08223020374 | J167: 0.05860608541 | K167: 1 | L167: 0.2274061952 | M167: 0.2163630058 | N167: 0.7418493083 | O167: 0.1335526546 | P167: 0.1387220745
D168: Gouvernement | E168: 4.814778331 | F168: 2.523296143 | G168: 1.27646046 | H168: 0.3908859052 | I168: 0.1607135619 | J168: 0.06105524124 | K168: 1 | L168: 0.415125024 | M168: 0.2266515749 | N168: 0.5376425369 | O168: 0.2498538242 | P168: 0.1449802658
E172: Emplois | H172: Revenus d'emploi | K172: Extrant | N172: Valeur ajoutée
E173: Direct | F173: Indirect | G173: Induit | H173: Direct | I173: Indirect | J173: Induit | K173: Direct | L173: Indirect | M173: Induit | N173: Direct | O173: Indirect | P173: Induit
C174: Territoires du Nord-Ouest | D174: Agriculture | E174: 11.1822033 | F174: 0.3695236593 | G174: 0.2862146215 | H174: 0.2661528584 | I174: 0.03165707689 | J174: 0.01833024272 | K174: 1 | L174: 0.0890041522 | M174: 0.07773801408 | N174: 0.5591261134 | O174: 0.05387523983 | P174: 0.05094261189
D175: Exploitation minière | E175: 0.987371029 | F175: 0.5056552411 | G175: 0.3515523249 | H175: 0.1880691817 | I175: 0.05070452837 | J175: 0.02243935992 | K175: 1 | L175: 0.1404739311 | M175: 0.0954767671 | N175: 0.4936740282 | O175: 0.07714880852 | P175: 0.06284064592
D176: Construction | E176: 1.279272054 | F176: 0.7198243899 | G176: 0.3314864409 | H176: 0.1585019129 | I176: 0.07507071387 | J176: 0.02113065741 | K176: 1 | L176: 0.1831178529 | M176: 0.08992401764 | N176: 0.2779186804 | O176: 0.1046684778 | P176: 0.05906906169
D177: Secteur manufacturier | E177: 2.012150838 | F177: 1.32499275 | G177: 0.3629194193 | H177: 0.1878542844 | I177: 0.08288018469 | J177: 0.02318892508 | K177: 1 | L177: 0.744181856 | M177: 0.09869470559 | N177: 0.3233275093 | O177: 0.1948592878 | P177: 0.0643432107
D178: Machinerie et équipement | E178: 0 | F178: 0 | G178: 0 | H178: 0 | I178: 0 | J178: 0 | K178: 0 | L178: 0 | M178: 0 | N178: 0 | O178: 0 | P178: 0
D179: TCSP | E179: 1.94349908 | F179: 0.7154093455 | G179: 0.4150673347 | H179: 0.2202729643 | I179: 0.05995637877 | J179: 0.02635434389 | K179: 1 | L179: 0.2002223296 | M179: 0.1129012265 | N179: 0.4160614712 | O179: 0.1026271108 | P179: 0.07381404237
D180: Commerce de gros | E180: 2.833672209 | F180: 0.4341279191 | G180: 0.5236381742 | H180: 0.3117110106 | I180: 0.03902328601 | J180: 0.03333655384 | K180: 1 | L180: 0.1210691948 | M180: 0.1426258912 | N180: 0.8007137322 | O180: 0.06663008723 | P180: 0.09324628035
D181: Commerce de détail | E181: 9.206228478 | F181: 0.9201368416 | G181: 0.8287105693 | H181: 0.466800307 | I181: 0.07520223569 | J181: 0.05264522562 | K181: 1 | L181: 0.2586107251 | M181: 0.2256496847 | N181: 0.6463776792 | O181: 0.1413402245 | P181: 0.1475569476
D182: FAI | E182: 1.133886174 | F182: 0.8678524223 | G182: 0.2690990559 | H182: 0.1046574629 | I182: 0.07764878451 | J182: 0.01749560245 | K182: 1 | L182: 0.2471937251 | M182: 0.0732288381 | N182: 0.6375774391 | O182: 0.1430243427 | P182: 0.04762693779
D183: Services divers | E183: 5.576444762 | F183: 0.5394633481 | G183: 0.6182872656 | H183: 0.4086547011 | I183: 0.04252386777 | J183: 0.03937820346 | K183: 1 | L183: 0.1279597491 | M183: 0.1683094014 | N183: 0.7122300772 | O183: 0.07356563823 | P183: 0.1100253199
D184: Réparation et maintenance | E184: 7.407 | F184: 0.511 | G184: 0.617 | H184: 0.433 | I184: 0.044 | J184: 0.039 | K184: 1 | L184: 0.156 | M184: 0.168 | N184: 0.632 | O184: 0.09 | P184: 0.11
D185: Services professioniels | E185: 6.102554524 | F185: 0.7617035279 | G185: 0.7263914637 | H185: 0.4615840324 | I185: 0.05869648724 | J185: 0.04620794042 | K185: 1 | L185: 0.1884826197 | M185: 0.1975173888 | N185: 0.6047537399 | O185: 0.1051680292 | P185: 0.1291576682
D186: Gouvernement | E186: 3.743635963 | F186: 1.232323371 | G186: 0.6423487088 | H186: 0.3806713613 | I186: 0.106195807 | J186: 0.04109242308 | K186: 1 | L186: 0.3209619835 | M186: 0.1750973362 | N186: 0.4920651209 | O186: 0.1760711667 | P186: 0.1143836899
E190: Emplois | H190: Revenus d'emploi | K190: Extrant | N190: Valeur ajoutée
E191: Direct | F191: Indirect | G191: Induit | H191: Direct | I191: Indirect | J191: Induit | K191: Direct | L191: Indirect | M191: Induit | N191: Direct | O191: Indirect | P191: Induit
C192: Nouvelle-Écosse | D192: Agriculture | E192: 4.518563461 | F192: 1.649812162 | G192: 0.8765130038 | H192: 0.2050685401 | I192: 0.0769191616 | J192: 0.03553172898 | K192: 1 | L192: 0.2559370427 | M192: 0.1364296371 | N192: 0.5595627636 | O192: 0.1306038493 | P192: 0.08704910547
D193: Exploitation minière | E193: 1.097485785 | F193: 2.883772311 | G193: 1.305097991 | H193: 0.1721247085 | I193: 0.2600886575 | J193: 0.05314501033 | K193: 1 | L193: 0.6974160048 | M193: 0.2036398143 | N193: 0.3234482547 | O193: 0.3290440889 | P193: 0.1294714574
D194: Construction | E194: 5.241425473 | F194: 2.321844927 | G194: 1.357926448 | H194: 0.3071133895 | I194: 0.1239218715 | J194: 0.0548632937 | K194: 1 | L194: 0.3395008827 | M194: 0.2114711367 | N194: 0.3980876888 | O194: 0.1817127404 | P194: 0.1349773555
D195: Secteur manufacturier | E195: 3.299825656 | F195: 2.046752643 | G195: 0.9972806068 | H195: 0.2157269979 | I195: 0.102201244 | J195: 0.04042006304 | K195: 0.9999825829 | L195: 0.3689820204 | M195: 0.1555996241 | N195: 0.3002603102 | O195: 0.1828571017 | P195: 0.09915057134
D196: Machinerie et équipement | E196: 4.930589468 | F196: 1.110222224 | G196: 1.370644774 | H196: 0.3333619391 | I196: 0.06168027151 | J196: 0.05564856405 | K196: 1 | L196: 0.1723635884 | M196: 0.213876386 | N196: 0.4852697984 | O196: 0.09562305895 | P196: 0.1365410963
D197: TCSP | E197: 3.863025525 | F197: 1.844966005 | G197: 1.168129664 | H197: 0.2658917658 | I197: 0.0969601482 | J197: 0.0474679205 | K197: 1 | L197: 0.308579043 | M197: 0.1820068744 | N197: 0.5024812682 | O197: 0.1591641637 | P197: 0.1162003409
D198: Commerce de gros | E198: 7.561730182 | F198: 1.75580251 | G198: 2.006428723 | H198: 0.4920611772 | I198: 0.09044288974 | J198: 0.08120038392 | K198: 1 | L198: 0.2792047534 | M198: 0.3128924512 | N198: 0.6182324241 | O198: 0.1519645312 | P198: 0.1996170719
D199: Commerce de détail | E199: 14.03205202 | F199: 1.962800134 | G199: 1.947611759 | H199: 0.4620892615 | I199: 0.09935850712 | J199: 0.07867798033 | K199: 1 | L199: 0.3364434899 | M199: 0.303682948 | N199: 0.6190652119 | O199: 0.1853718617 | P199: 0.1937440375
D200: FAI | E200: 3.083287667 | F200: 2.71704371 | G200: 1.048861814 | H200: 0.1867074106 | I200: 0.1363237517 | J200: 0.04250798693 | K200: 1 | L200: 0.3952494465 | M200: 0.1635630911 | N200: 0.5396670547 | O200: 0.217770257 | P200: 0.1042691184
D201: Services divers | E201: 8.432489061 | F201: 1.479579889 | G201: 1.456351433 | H201: 0.369062715 | I201: 0.0701093593 | J201: 0.058765139 | K201: 1 | L201: 0.1982577327 | M201: 0.22699334 | N201: 0.7289921419 | O201: 0.109507669 | P201: 0.1451338428
D202: Réparation et maintenance | E202: 10.663 | F202: 1.575 | G202: 1.715 | H202: 0.45 | I202: 0.084 | J202: 0.069 | K202: 1 | L202: 0.29 | M202: 0.267 | N202: 0.565 | O202: 0.159 | P202: 0.171
D203: Services professioniels | E203: 8.350448523 | F203: 1.876686105 | G203: 1.865428604 | H203: 0.4672182203 | I203: 0.0890776792 | J203: 0.07543365223 | K203: 1 | L203: 0.2467636251 | M203: 0.2910595079 | N203: 0.6599391185 | O203: 0.1417093562 | P203: 0.1858628658
D204: Gouvernement | E204: 4.36926869 | F204: 2.88294547 | G204: 1.659764039 | H204: 0.3656183236 | I204: 0.1569957451 | J204: 0.06720932186 | K204: 1 | L204: 0.428420254 | M204: 0.2591854171 | N204: 0.4881240752 | O204: 0.2489840195 | P204: 0.1653068645
E208: Emplois | H208: Revenus d'emploi | K208: Extrant | N208: Valeur ajoutée
E209: Direct | F209: Indirect | G209: Induit | H209: Direct | I209: Indirect | J209: Induit | K209: Direct | L209: Indirect | M209: Induit | N209: Direct | O209: Indirect | P209: Induit
C210: Nunavut | D210: Agriculture | E210: 1.072 | F210: 0.428 | G210: 0.106 | H210: 0.061 | I210: 0.023 | J210: 0.006 | K210: 1 | L210: 0.075 | M210: 0.026 | N210: 0.627 | O210: 0.043 | P210: 0.017
D211: Exploitation minière | E211: 1.507296782 | F211: 0.2821380662 | G211: 0.3406351093 | H211: 0.2059225944 | I211: 0.02393578531 | J211: 0.01961592889 | K211: 1 | L211: 0.07544615536 | M211: 0.08191829067 | N211: 0.5669434391 | O211: 0.04115125459 | P211: 0.05452079555
D212: Construction | E212: 1.375898072 | F212: 0.6621877418 | G212: 0.2934322765 | H212: 0.1414579744 | I212: 0.06675929702 | J212: 0.0164765111 | K212: 1 | L212: 0.1695595721 | M212: 0.07056959715 | N212: 0.3087410415 | O212: 0.09344712031 | P212: 0.04710751244
D213: Secteur manufacturier | E213: 2.389654558 | F213: 1.776109939 | G213: 0.3633811694 | H213: 0.1928196685 | I213: 0.1057927211 | J213: 0.0204513899 | K213: 0.9989354917 | L213: 0.3469860843 | M213: 0.08742666788 | N213: 0.4216207162 | O213: 0.1906327448 | P213: 0.0583492563
D214: Machinerie et équipement | E214: 0 | F214: 0 | G214: 0 | H214: 0 | I214: 0 | J214: 0 | K214: 0 | L214: 0 | M214: 0 | N214: 0 | O214: 0 | P214: 0
D215: TCSP | E215: 3.672356435 | F215: 0.7377406272 | G215: 0.5939366537 | H215: 0.3526515835 | I215: 0.06042189428 | J215: 0.0338733748 | K215: 1 | L215: 0.1742854079 | M215: 0.142527961 | N215: 0.449841966 | O215: 0.09472919063 | P215: 0.09587071618
D216: Commerce de gros | E216: 2.550460868 | F216: 0.3719106222 | G216: 0.4268730372 | H216: 0.2570153113 | I216: 0.03110965052 | J216: 0.02432130744 | K216: 1 | L216: 0.08746454788 | M216: 0.1026654897 | N216: 0.7649255645 | O216: 0.04667865162 | P216: 0.06893992741
D217: Commerce de détail | E217: 9.43669583 | F217: 0.8211008533 | G217: 0.5597014862 | H217: 0.3323353323 | I217: 0.06233779565 | J217: 0.03160193538 | K217: 1 | L217: 0.1920445285 | M217: 0.1344538645 | N217: 0.6506937625 | O217: 0.107375878 | P217: 0.09033598187
D218: FAI | E218: 1.386986307 | F218: 0.9321203376 | G218: 0.2127942266 | H218: 0.08913266985 | I218: 0.07145702043 | J218: 0.01220577898 | K218: 1 | L218: 0.2107784765 | M218: 0.05160123012 | N218: 0.720639201 | O218: 0.1174781718 | P218: 0.03417145829
D219: Services divers | E219: 4.538308372 | F219: 0.6792633418 | G219: 0.5173119132 | H219: 0.3107307887 | I219: 0.05776782924 | J219: 0.02925429816 | K219: 0.9995931949 | L219: 0.1903329534 | M219: 0.1242750798 | N219: 0.6781838506 | O219: 0.10014439 | P219: 0.08338365453
D220: Réparation et maintenance | E220: 3.755 | F220: 0.548 | G220: 0.319 | H220: 0.785 | I220: 0.062 | J220: 0.018 | K220: 1 | L220: 0.181 | M220: 0.077 | N220: 0.44 | O220: 0.098 | P220: 0.051
D221: Services professioniels | E221: 4.559252175 | F221: 0.8560624641 | G221: 0.5228579507 | H221: 0.3126439122 | I221: 0.06269710192 | J221: 0.02956865974 | K221: 1 | L221: 0.1996481473 | M221: 0.1259255055 | N221: 0.5441710824 | O221: 0.1205482426 | P221: 0.08416339642
D222: Gouvernement | E222: 3.967747575 | F222: 1.130156858 | G222: 0.6614191057 | H222: 0.4007285894 | I222: 0.08504186524 | J222: 0.03708035254 | K222: 1 | L222: 0.2514500902 | M222: 0.1591507954 | N222: 0.4881870774 | O222: 0.1351358867 | P222: 0.1067393891
E226: Emplois | H226: Revenus d'emploi | K226: Extrant | N226: Valeur ajoutée
E227: Direct | F227: Indirect | G227: Induit | H227: Direct | I227: Indirect | J227: Induit | K227: Direct | L227: Indirect | M227: Induit | N227: Direct | O227: Indirect | P227: Induit
C228: Ontario | D228: Agriculture | E228: 5.592289968 | F228: 2.52785354 | G228: 1.167644187 | H228: 0.1702889005 | I228: 0.1421709053 | J228: 0.05763525419 | K228: 1 | L228: 0.5360810213 | M228: 0.2121874364 | N228: 0.4524022106 | O228: 0.2693739464 | P228: 0.1240348933
D229: Exploitation minière | E229: 2.335252208 | F229: 1.543239121 | G229: 1.401886429 | H229: 0.001083058304 | I229: 0.1077667755 | J229: 0.06947997869 | K229: 1 | L229: 0.3232751551 | M229: 0.2544547659 | N229: 0.6198667831 | O229: 0.1760363406 | P229: 0.1491656027
D230: Construction | E230: 4.082103844 | F230: 2.537396139 | G230: 1.700165011 | H230: 0 | I230: 0.1633100031 | J230: 0.08421057528 | K230: 1 | L230: 0.504936486 | M230: 0.308515693 | N230: 0.4616021443 | O230: 0.2521555134 | P230: 0.1809431703
D231: Secteur manufacturier | E231: 1.684518849 | F231: 1.799815709 | G231: 0.9410676827 | H231: 0.06907448234 | I231: 0.1181682815 | J231: 0.04665021834 | K231: 1 | L231: 0.4767401215 | M231: 0.1710183737 | N231: 0.2353346754 | O231: 0.2088371806 | P231: 0.1002151808
D232: Machinerie et équipement | E232: 3.409492325 | F232: 1.710532387 | G232: 1.485120699 | H232: 0 | I232: 0.1173020355 | J232: 0.07343755383 | K232: 1 | L232: 0.3886624711 | M232: 0.2693932368 | N232: 0.3875829603 | O232: 0.1886927837 | P232: 0.1579357846
D233: TCSP | E233: 4.13800192 | F233: 2.637887567 | G233: 1.694218679 | H233: 0.2158953851 | I233: 0.1574688634 | J233: 0.08379531693 | K233: 1 | L233: 0.5381065894 | M233: 0.3075272497 | N233: 0.5350085261 | O233: 0.2638559384 | P233: 0.180351821
D234: Commerce de gros | E234: 3.928811784 | F234: 2.597410401 | G234: 1.815755467 | H234: 0 | I234: 0.1504299719 | J234: 0.08974524084 | K234: 1 | L234: 0.4643615198 | M234: 0.3290152234 | N234: 0.5849952103 | O234: 0.2462742783 | P234: 0.19307502
D235: Commerce de détail | E235: 12.56151659 | F235: 2.704524418 | G235: 2.360050063 | H235: 0 | I235: 0.1589001404 | J235: 0.1165707566 | K235: 1 | L235: 0.5168604312 | M235: 0.4276099659 | N235: 0.5800115963 | O235: 0.2867128109 | P235: 0.251042605
D236: FAI | E236: 3.075720658 | F236: 2.976370394 | G236: 1.625782942 | H236: 0.240968266 | I236: 0.1892674904 | J236: 0.08050264069 | K236: 1 | L236: 0.5272124256 | M236: 0.2949241849 | N236: 0.5430449137 | O236: 0.2975491779 | P236: 0.1728987569
D237: Services divers | E237: 7.116652393 | F237: 1.892342074 | G237: 1.751746392 | H237: 0.3395320234 | I237: 0.1051311668 | J237: 0.08653062704 | K237: 1 | L237: 0.3040700589 | M237: 0.3173481398 | N237: 0.6973190815 | O237: 0.1702543862 | P237: 0.1865738918
D238: Réparation et maintenance | E238: 9.843 | F238: 2.37 | G238: 2.269 | H238: 0.486 | I238: 0.134 | J238: 0.112 | K238: 1 | L238: 0.438 | M238: 0.411 | N238: 0.573 | O238: 0.233 | P238: 0.241
... 62 more rows

Sheet Listes
A1: *** AVERTISSEMENT *** Cette feuille de calcul contient des données et des formules qui font partie intégrante du modèle EI2. Bien que ces données et formules soient consultables pour examen, elles ne doivent pas être modifiées. Toute modification des données ou des formules affectera l'analyse et pourrait invalider les résultats du modèle. Pour les visualiser, faites simplement défiler les colonnes vers la droite.
C2: Years | E2: States | G2: Yes / No | I2: Technology/Service
C3: 2010 | E3: Canada | G3: O | I3: Pompe à chaleur air-source pour climat froid
C4: 2011 | E4: Alberta | G4: N | I4: Chaudière électrique
C5: 2012 | E5: Colombie-Britannique | I5: Isolation du grenier (atteindre un RSI minimum de 8,81 ou R-50)
C6: 2013 | E6: Manitoba | I6: Isolation du toit plat et/ou du plafond cathédrale (atteindre un RSI minimum de 4,93 ou R-28)
C7: 2014 | E7: Nouveau-Brunswick | I7: Isolation du sous-sol / des fondations (isoler au moins 60 % de la surface)
C8: 2015 | E8: Terre-Neuve-et-Labrador | I8: Isolation des murs extérieurs (100 % de la surface aux niveaux du CNB 2012)
C9: 2016 | E9: Territoires du Nord-Ouest | I9: Étanchéité à l'air
C10: 2017 | E10: Nouvelle-Écosse | I10: Remplacement des portes et des fenêtres (facteur U de 1,08 W/m2-K et homologation Energy Star).
C11: 2018 | E11: Nunavut
C12: 2019 | E12: Ontario
C13: 2020 | E13: Île-du-Prince-Édouard
C14: 2021 | E14: Québec
C15: 2022 | E15: Saskatchewan
C16: 2023 | E16: Yukon
C17: 2024
C18: 2025
C19: 2026
C20: 2027
C21: 2028
C22: 2029
C23: 2030
C24: 2031
C25: 2032
C26: 2033
C27: 2034
C28: 2035
C29: 2036
C30: 2037
C31: 2038
C32: 2039
C33: 2040
